Invoice Date,Transact,Invoice Number,Amount,Supplier Name(T),Supplier Name,VAT Registration Number,Expense Area(T),Expense Code,Expense Code(T),
,60068581,ARG01118,14984.96,A & R Guardian Services Ltd,RC509277,,ASC S&R Homecare OP,R5029,TPP - Home Care,
05/09/2022,60068845,ARG01125,15109.03,A & R Guardian Services Ltd,RC509277,,ASC S&R Homecare OP,R5029,TPP - Home Care,
12/09/2022,60069304,ARG01132,14516.95,A & R Guardian Services Ltd,RC509277,,ASC S&R Homecare OP,R5029,TPP - Home Care,
19/09/2022,60069384,ARG 01139,14736.12,A & R Guardian Services Ltd,RC509277,,ASC S&R Homecare OP,R5029,TPP - Home Care,
26/09/2022,60069462,ARG 01147,16165.9,A & R Guardian Services Ltd,RC509277,,ASC S&R Homecare OP,R5029,TPP - Home Care,
01/09/2022,3761585,Redacted Personal Data,139.85,Redacted Personal Data,RC503878,,Placements,R5017,TPP - Other,
08/09/2022,3761774,Redacted Personal Data,139.85,Redacted Personal Data,RC503878,,Placements,R5017,TPP - Other,
15/09/2022,3762074,Redacted Personal Data,139.85,Redacted Personal Data,RC503878,,Placements,R5017,TPP - Other,
22/09/2022,3762194,Redacted Personal Data,139.85,Redacted Personal Data,RC503878,,Placements,R5017,TPP - Other,
29/09/2022,3762406,Redacted Personal Data,139.85,Redacted Personal Data,RC503878,,Placements,R5017,TPP - Other,
01/09/2022,60068415,136767,51,A T Alarms Ltd,RC500110,385 2611 45,Museums Service,R2004,R & M - Programmed,
01/09/2022,60068515,136815,189,A T Alarms Ltd,RC500110,385 2611 45,Central Maintenance,R2003,R & M - Emergency Works,
,60068566,RCC0011,4633.23,A&S Rescue Services Limited,RC302095,,ASC S&R Homecare OP,R5029,TPP - Home Care,
05/09/2022,60068849,RCC0012,5005.91,A&S Rescue Services Limited,RC302095,,ASC S&R Homecare OP,R5029,TPP - Home Care,
12/09/2022,60069248,RCC0013,4982.96,A&S Rescue Services Limited,RC302095,,ASC S&R Homecare OP,R5029,TPP - Home Care,
20/09/2022,60069306,RCC0014,5540.07,A&S Rescue Services Limited,RC302095,,ASC S&R Homecare OP,R5029,TPP - Home Care,
26/09/2022,60069539,RCC0015,6293.31,A&S Rescue Services Limited,RC302095,,ASC S&R Homecare OP,R5029,TPP - Home Care,
09/09/2022,60068945,4603418,65,AAT,RC500114,524 8751 31,Rutland Adult Skill Budget Post July 2014,R4401,Fees and Charges,
20/09/2022,60069187,10296535 - SUBS OCT  22,175,AAT,RC500114,524 8751 31,Community Learning,R4702,Subscriptions - Employee,
15/09/2022,3762101,Redacted Personal Data,150,Redacted Personal Data,RC302056,,Placements,R4400,Professional Fees,
01/09/2022,60069432,991256316,260,Abel Alarm Company Ltd,RC504232,399 8033 95,Oakham Castle,R4000,Furniture & Equipment,
05/09/2022,3761800,45917/2,1116,Aberdeen House Care Limited,RC506722,,Older People,R5028,TPP - Residental Care,
05/09/2022,3761801,45917/3,1020,Aberdeen House Care Limited,RC506722,,Older People,R5028,TPP - Residental Care,
05/09/2022,3761802,45917/4,1116,Aberdeen House Care Limited,RC506722,,Older People,R5028,TPP - Residental Care,
05/09/2022,3761803,45917/5,1046,Aberdeen House Care Limited,RC506722,,Older People,R5028,TPP - Residental Care,
05/09/2022,3761804,45917/6,1116,Aberdeen House Care Limited,RC506722,,Older People,R5028,TPP - Residental Care,
05/09/2022,3761805,45917/7,1046,Aberdeen House Care Limited,RC506722,,Older People,R5028,TPP - Residental Care,
05/09/2022,3761806,45917/8,1720,Aberdeen House Care Limited,RC506722,,Older People,R5028,TPP - Residental Care,
05/09/2022,3761807,45917/9,1500,Aberdeen House Care Limited,RC506722,,Older People,R5028,TPP - Residental Care,
21/09/2022,3762219,46107/1,1116,Aberdeen House Care Limited,RC506722,,Older People,R5028,TPP - Residental Care,
21/09/2022,3762220,46107/2,1020,Aberdeen House Care Limited,RC506722,,Older People,R5028,TPP - Residental Care,
21/09/2022,3762221,46107/3,1116,Aberdeen House Care Limited,RC506722,,Older People,R5028,TPP - Residental Care,
21/09/2022,3762222,46107/4,1046,Aberdeen House Care Limited,RC506722,,Older People,R5028,TPP - Residental Care,
21/09/2022,3762223,46107/5,1116,Aberdeen House Care Limited,RC506722,,Older People,R5028,TPP - Residental Care,
21/09/2022,3762224,46107/6,1046,Aberdeen House Care Limited,RC506722,,Older People,R5028,TPP - Residental Care,
21/09/2022,3762226,46107/8,1500,Aberdeen House Care Limited,RC506722,,Older People,R5028,TPP - Residental Care,
05/09/2022,60068870,PI002251,628,Able Training Support Ltd,RC301245,245 7843 77,"Training, Confs & Seminars",R4405,Training Charges,
01/09/2022,60068777,17494,86,Access Independent Ltd,RC509402,158 075 83,"OT's, Aids & Equipment",R4401,Fees and Charges,
01/09/2022,60068944,1421849,2605.09,Access UK Ltd,RC503291,108 2213 56,Internal Homecare Staffing,R4535,Computing - Licences,
01/09/2022,60068803,384,1600,Ace Cabs Stamford Ltd,RC500124,184 8594 53,SEN Transport,R3207,Transport Contract,
01/09/2022,60068871,3677,633.8,Action Deafness Ltd,RC506720,978 8916 31,ASC S&R Homecare PD,R5029,TPP - Home Care,
01/09/2022,60068770,197,56.67,Activities Venture Ltd,RC301911,,Early Intervention Youth Services,R4401,Fees and Charges,
,60068619,INV-0511,898.12,ADHD Solutions CIC,RC506570,,SEN Recovery Plan Expenditure,R4400,Professional Fees,
06/09/2022,60068883,BRIGHTWAYS - AUG 2022,600,Age UK Leics & Rutland,RC503273,174 6643 83,Day Opportunities Services,R4000,Furniture & Equipment,
16/09/2022,60069482,18493,464.1,AGG Electrical Safety Testing Limited,RC507722,939 0624 09,Central Maintenance,R2004,R & M - Programmed,
01/09/2022,3761610,Redacted Personal Data,46,Redacted Personal Data,RC301918,,Unaccompanied Asylum Seekers - Over 18,R6292,Section 24 Payments,
29/09/2022,3762435,Redacted Personal Data,38,Redacted Personal Data,RC301918,,Unaccompanied Asylum Seekers - Over 18,R6292,Section 24 Payments,
01/09/2022,3761608,Redacted Personal Data,24.99,Redacted Personal Data,RC301827,,Unaccompanied Asylum Seekers - Over 18,R6292,Section 24 Payments,
01/09/2022,3761609,Redacted Personal Data,20,Redacted Personal Data,RC301827,,Unaccompanied Asylum Seekers - Over 18,R6292,Section 24 Payments,
29/09/2022,3762433,Redacted Personal Data,24.99,Redacted Personal Data,RC301827,,Unaccompanied Asylum Seekers - Over 18,R6292,Section 24 Payments,
29/09/2022,3762434,Redacted Personal Data,20,Redacted Personal Data,RC301827,,Unaccompanied Asylum Seekers - Over 18,R6292,Section 24 Payments,
01/09/2022,3761597,Redacted Personal Data,330.74,Redacted Personal Data,RC301545,,Placements,R5017,TPP - Other,
08/09/2022,3761786,Redacted Personal Data,330.74,Redacted Personal Data,RC301545,,Placements,R5017,TPP - Other,
15/09/2022,3762086,Redacted Personal Data,330.74,Redacted Personal Data,RC301545,,Placements,R5017,TPP - Other,
22/09/2022,3762206,Redacted Personal Data,330.74,Redacted Personal Data,RC301545,,Placements,R5017,TPP - Other,
29/09/2022,3762418,Redacted Personal Data,330.74,Redacted Personal Data,RC301545,,Placements,R5017,TPP - Other,
01/09/2022,60068627,C69277,241.61,Allied Publicity Services (Manchester) Limited t/a APS Group,RC300920,146 4941 52,Blue Badge Scheme,R4401,Fees and Charges,
27/09/2022,60069512,C70114,135.84,Allied Publicity Services (Manchester) Limited t/a APS Group,RC300920,146 4941 52,Blue Badge Scheme,R4401,Fees and Charges,
01/09/2022,60068753,E2015909310,975.67,Allstar Business Solutions Ltd,RC507815,747 8801 91,Pool Cars and Car Hire,R3000,Fuel,
01/09/2022,60068754,E2015909312,940.99,Allstar Business Solutions Ltd,RC507815,747 8801 91,Transport Fleet,R3000,Fuel,
15/09/2022,60069286,E2015969775,2316.38,Allstar Business Solutions Ltd,RC507815,747 8801 91,Transport Fleet,R3000,Fuel,
15/09/2022,60069318,E2015969774,705.88,Allstar Business Solutions Ltd,RC507815,747 8801 91,Pool Cars and Car Hire,R3000,Fuel,
01/09/2022,60068874,PL21455,190,Alpha Blinds Ltd,RC302125,330321908,Museums Service,R4000,Furniture & Equipment,
05/09/2022,3761808,45918/10,1800,Redacted Personal Data,RC301932,,Physical Disability,R5028,TPP - Residental Care,
05/09/2022,3761809,45918/11,2314.29,Redacted Personal Data,RC301932,,Older People,R5028,TPP - Residental Care,
21/09/2022,3762228,46117/10,1800,Redacted Personal Data,RC301932,,Older People,R5028,TPP - Residental Care,
21/09/2022,3762229,46117/11,1800,Redacted Personal Data,RC301932,,Physical Disability,R5028,TPP - Residental Care,
21/09/2022,3762230,46117/12,3586.29,Redacted Personal Data,RC301932,,Older People,R5028,TPP - Residental Care,
21/09/2022,3762231,46117/13,1928.57,Redacted Personal Data,RC301932,,Older People,R5028,TPP - Residental Care,
,60068677,AM2022-RCCAD02,6000,Redacted Personal Data,RC301932,,Interim Beds (CCG),R5028,TPP - Residental Care,
,60068679,AM2022-RCCJW01,6000,Redacted Personal Data,RC301932,,Interim Beds (CCG),R5028,TPP - Residental Care,
,60068857,AM2022-RCCCB01,1400,Redacted Personal Data,RC301932,,Interim Beds (CCG),R5028,TPP - Residental Care,
,60068861,AM2022-RCCRH01,6000,Redacted Personal Data,RC301932,,Interim Beds (CCG),R5028,TPP - Residental Care,
,60068862,AM2022-RCCRH02,-1071.43,Redacted Personal Data,RC301932,,Interim Beds (CCG),R5028,TPP - Residental Care,
01/09/2022,60068532,SIN188205,638.99,Ambitions Personnel Limited,RC302090,GB613557153,Customer Services Team,R1100,Agency Staff,
02/09/2022,60068661,SIN188362,638.99,Ambitions Personnel Limited,RC302090,GB613557153,Customer Services Team,R1100,Agency Staff,
09/09/2022,60068899,SIN188526,803.06,Ambitions Personnel Limited,RC302090,GB613557153,Highways Management,R1100,Agency Staff,
16/09/2022,60069276,SIN188697,630.36,Ambitions Personnel Limited,RC302090,GB613557153,Highways Management,R1100,Agency Staff,
23/09/2022,60069390,SIN188898,2551.68,Ambitions Personnel Limited,RC302090,GB613557153,Customer Services Team,R4401,Fees and Charges,
01/09/2022,60068695,210456501 - 24/8/22,1351.88,Anglian Water Business Ltd,RC500175,242 5074 29,Oakham Enterprise Park,R2401,Water Services,
01/09/2022,3761533,Redacted Personal Data,55,Redacted Personal Data,RC301012,,Care Leavers,R6292,Section 24 Payments,
01/09/2022,3761534,Redacted Personal Data,40,Redacted Personal Data,RC301012,,Care Leavers,R6292,Section 24 Payments,
29/09/2022,3762349,Redacted Personal Data,55,Redacted Personal Data,RC301012,,Care Leavers,R6292,Section 24 Payments,
29/09/2022,3762350,Redacted Personal Data,40,Redacted Personal Data,RC301012,,Care Leavers,R6292,Section 24 Payments,
,60068865,Redacted Personal Data,232.5,Redacted Personal Data,300917,,Homes for Ukraine,R1100,Agency Staff,
07/09/2022,60068902,Redacted Personal Data,503.2,Redacted Personal Data,300917,,Homes for Ukraine,R1100,Agency Staff,
,3761646,Redacted Personal Data,92,Redacted Personal Data,RC505078,,Carer Support,R6280,Direct Payments,
27/09/2022,3762437,Redacted Personal Data,92,Redacted Personal Data,RC505078,,Carer Support,R6280,Direct Payments,
07/09/2022,60069426,71166,300,Arboricultural Assoication,RC505690,844 2968 95,Development Control,R1700,Staff Advertising Costs,
05/09/2022,3761859,45921/61,2700,Ardale (Oakham) Limited,RC301619,,Older People,R5028,TPP - Residental Care,
21/09/2022,3762285,46116/67,2700,Ardale (Oakham) Limited,RC301619,,Older People,R5028,TPP - Residental Care,
23/09/2022,60069511,518200985,2800,Arthur J. Gallagher Insurance Brokers Limited,RC302118,,Corporate Insurance,R4400,Professional Fees,
,60069563,516633910,4500,Arthur J. Gallagher Insurance Brokers Limited,RC302118,,Interest Receivable,R4400,Professional Fees,
02/09/2022,60068928,94,2255,Ashwell Wheels,RC302187,,Transport Fleet,R3004,Vehicle Maintenance,
01/09/2022,60068638,1006163,215.38,Askews and Holts Library Services Ltd,RC505812,153 4009 95,Libraries,R4309,Books,
01/09/2022,60068639,1006162,969.78,Askews and Holts Library Services Ltd,RC505812,153 4009 95,Libraries,R4309,Books,
05/09/2022,60068942,1006479,1116.3,Askews and Holts Library Services Ltd,RC505812,153 4009 95,Libraries,R4309,Books,
05/09/2022,60068943,1006480,77.75,Askews and Holts Library Services Ltd,RC505812,153 4009 95,Libraries,R4309,Books,
19/09/2022,60069480,1006796,31.89,Askews and Holts Library Services Ltd,RC505812,153 4009 95,Libraries,R4309,Books,
19/09/2022,60069481,1006795,1490.83,Askews and Holts Library Services Ltd,RC505812,153 4009 95,Libraries,R4309,Books,
21/09/2022,3762227,46147/9,2914.29,Askham Village Community Ltd,RC302186,,Physical Disability,R5034,TPP - Nursing Care,
20/09/2022,60069296,30395,110,Association Of Democratic Services Officers,RC505495,985 7655 49,Governance,R1650,Training Expenses,
22/09/2022,60069376,30410,220,Association Of Democratic Services Officers,RC505495,985 7655 49,Governance,R4405,Training Charges,
26/09/2022,60069503,22666,350,Association Of Democratic Services Officers,RC505495,985 7655 49,Governance,R1700,Staff Advertising Costs,
01/09/2022,3761582,Redacted Personal Data,167.4,Redacted Personal Data,RC507009,,Placements,R5017,TPP - Other,
01/09/2022,3761583,Redacted Personal Data,168.13,Redacted Personal Data,RC507009,,Placements,R5017,TPP - Other,
08/09/2022,3761771,Redacted Personal Data,167.4,Redacted Personal Data,RC507009,,Placements,R5017,TPP - Other,
08/09/2022,3761772,Redacted Personal Data,168.13,Redacted Personal Data,RC507009,,Placements,R5017,TPP - Other,
15/09/2022,3762071,Redacted Personal Data,167.4,Redacted Personal Data,RC507009,,Placements,R5017,TPP - Other,
15/09/2022,3762072,Redacted Personal Data,168.13,Redacted Personal Data,RC507009,,Placements,R5017,TPP - Other,
22/09/2022,3762191,Redacted Personal Data,167.4,Redacted Personal Data,RC507009,,Placements,R5017,TPP - Other,
22/09/2022,3762192,Redacted Personal Data,168.13,Redacted Personal Data,RC507009,,Placements,R5017,TPP - Other,
29/09/2022,3762403,Redacted Personal Data,167.4,Redacted Personal Data,RC507009,,Placements,R5017,TPP - Other,
29/09/2022,3762404,Redacted Personal Data,168.13,Redacted Personal Data,RC507009,,Placements,R5017,TPP - Other,
01/09/2022,3761605,Redacted Personal Data,44.99,Redacted Personal Data,RC301231,,Unaccompanied Asylum Seekers - Over 18,R6292,Section 24 Payments,
01/09/2022,3761606,Redacted Personal Data,23,Redacted Personal Data,RC301231,,Unaccompanied Asylum Seekers - Over 18,R6292,Section 24 Payments,
01/09/2022,3761607,Redacted Personal Data,48,Redacted Personal Data,RC301231,,Unaccompanied Asylum Seekers - Over 18,R6292,Section 24 Payments,
29/09/2022,3762430,Redacted Personal Data,44.99,Redacted Personal Data,RC301231,,Unaccompanied Asylum Seekers - Over 18,R6292,Section 24 Payments,
29/09/2022,3762431,Redacted Personal Data,23,Redacted Personal Data,RC301231,,Unaccompanied Asylum Seekers - Over 18,R6292,Section 24 Payments,
29/09/2022,3762432,Redacted Personal Data,84.3,Redacted Personal Data,RC301231,,Unaccompanied Asylum Seekers - Over 18,R6292,Section 24 Payments,
,3761683,Redacted Personal Data,138,Redacted Personal Data,RC506334,,Carer Support,R6280,Direct Payments,
27/09/2022,3762476,Redacted Personal Data,138,Redacted Personal Data,RC506334,,Carer Support,R6280,Direct Payments,
,3761655,Redacted Personal Data,261.04,Redacted Personal Data,RC508792,,ASC S&R DPs OP,R6280,Direct Payments,
27/09/2022,3762448,Redacted Personal Data,261.04,Redacted Personal Data,RC508792,,ASC S&R DPs OP,R6280,Direct Payments,
01/09/2022,60069363,211576,13700,Barton Willmore LLP,RC301984,945 7066 96,Development Control,R4400,Professional Fees,
,60068723,151,6790.63,Bayou Bluenvironment Ltd,RC300096,125 8219 18,Local Plan (Started 2021-22),R4400,Professional Fees,
01/09/2022,3761603,Redacted Personal Data,11.99,Redacted Personal Data,RC300975,,Unaccompanied Asylum Seekers - Over 18,R6292,Section 24 Payments,
15/09/2022,3761987,2 Year Funding -September 2022 Claim and August 2022 Adjustment,735.24,Belton Pre-School,RC500093,,2 Year Old Nursery Funding,R5020,TPP - Nursery Provision,
15/09/2022,3762001,3 and 4 Year Funding - September 2022 Claim and August Adjustment,6061.04,Belton Pre-School,RC500093,,3 & 4 Year Old Nursery Funding,R5020,TPP - Nursery Provision,
22/09/2022,3762142,Redacted Personal Data,465,Bentons,RC301602,,Care Leavers,R4900,Accommodation Costs,
01/09/2022,60068657,220885,153,Berridge Taxis,RC503277,978 4186 62,SEN Transport,R3200,Hire of Vehicles & Plant,
01/09/2022,60068658,2208197,120,Berridge Taxis,RC503277,978 4186 62,SEN Transport,R3207,Transport Contract,
01/09/2022,60068667,220882,54,Berridge Taxis,RC503277,978 4186 62,SEN Transport,R3207,Transport Contract,
01/09/2022,60068668,220893,116,Berridge Taxis,RC503277,978 4186 62,Children Looked After Transport,R3200,Hire of Vehicles & Plant,
01/09/2022,60068669,220896,177,Berridge Taxis,RC503277,978 4186 62,SEN Transport,R3207,Transport Contract,
01/09/2022,60068670,2208101,312,Berridge Taxis,RC503277,978 4186 62,SEN Transport,R3207,Transport Contract,
01/09/2022,60068671,2208104,676.84,Berridge Taxis,RC503277,978 4186 62,SEN Transport,R3207,Transport Contract,
01/09/2022,60068672,2208109,157.5,Berridge Taxis,RC503277,978 4186 62,SEN Transport,R3207,Transport Contract,
01/09/2022,3761535,Redacted Personal Data,61.22,Redacted Personal Data,RC301656,,Care Leavers,R6292,Section 24 Payments,
08/09/2022,3761734,Redacted Personal Data,61.22,Redacted Personal Data,RC301656,,Care Leavers,R6292,Section 24 Payments,
15/09/2022,3762035,Redacted Personal Data,61.22,Redacted Personal Data,RC301656,,Care Leavers,R6292,Section 24 Payments,
22/09/2022,3762135,Redacted Personal Data,550,Redacted Personal Data,RC301656,,Care Leavers,R4900,Accommodation Costs,
22/09/2022,3762144,Redacted Personal Data,61.22,Redacted Personal Data,RC301656,,Care Leavers,R6292,Section 24 Payments,
29/09/2022,3762351,Redacted Personal Data,61.22,Redacted Personal Data,RC301656,,Care Leavers,R6292,Section 24 Payments,
01/09/2022,60068531,INV-UK10456,69.12,Bibliotheca Ltd,RC506068,100 1698 59,Libraries,R4530,Computing - Hardware,
01/09/2022,60068720,096R00440,4235.07,Biffa Municipal Ltd,RC501347,537 9116 27,Waste Management,R5021,TPP - Waste Disposal,
01/09/2022,60068774,278C13816,90.2,Biffa Municipal Ltd,RC501347,537 9116 27,Ashwell Road Business Units,R5002,TPP - Waste Collection,
01/09/2022,60068775,278C13818,48.92,Biffa Municipal Ltd,RC501347,537 9116 27,Ashwell Road Business Units,R5002,TPP - Waste Collection,
13/09/2022,60069052,460M01319,111805.71,Biffa Municipal Ltd,RC501347,537 9116 27,Refuse Collection,R5002,TPP - Waste Collection,
13/09/2022,60069053,460M01320,58566.56,Biffa Municipal Ltd,RC501347,537 9116 27,Street Cleaning,R5016,TPP - Private Contractors,
13/09/2022,60069054,460M01321,21578.99,Biffa Municipal Ltd,RC501347,537 9116 27,Waste Management,R5031,TPP - CA Site Management,
13/09/2022,60069055,460M01322,10034.79,Biffa Municipal Ltd,RC501347,537 9116 27,Waste Management,R5032,TPP - Waste Transport,
13/09/2022,60069092,460M01329,260.5,Biffa Municipal Ltd,RC501347,537 9116 27,Oakham Enterprise Park,R5002,TPP - Waste Collection,
13/09/2022,60069095,460M01328,429.44,Biffa Municipal Ltd,RC501347,537 9116 27,Waste Management,R5032,TPP - Waste Transport,
13/09/2022,60069105,460M01327,297.64,Biffa Municipal Ltd,RC501347,537 9116 27,Oakham Castle,R2704,Refuse Collection,
01/09/2022,60068748,BIM19-027,1400,Blue Ice Media,RC301344,N/A,Day Opportunities Services,R4401,Fees and Charges,
,60066503,199,45.77,Bluebird Care,RC506798,,ASC S&R Homecare OP,R5029,TPP - Home Care,
20/09/2022,60069369,202,9870.71,Bluebird Care,RC506798,,ASC S&R Homecare OP,R5029,TPP - Home Care,
20/09/2022,60069370,203,596.12,Bluebird Care,RC506798,,ASC S&R Homecare OP,R5029,TPP - Home Care,
01/09/2022,60068637,94596,466.28,Bolinda UK Ltd,RC508367,110 8809 34,Libraries,R4309,Books,
27/09/2022,60069504,97905-00150,869.5,Bolinda UK Ltd,RC508367,110 8809 34,Libraries,R4309,Books,
05/09/2022,3761820,45955/22,1252,Braceborough Hall,RC502352,,Older People,R5028,TPP - Residental Care,
21/09/2022,3762242,46127/24,1252,Braceborough Hall,RC502352,,Older People,R5028,TPP - Residental Care,
01/09/2022,3761536,Redacted Personal Data,61.22,Redacted Personal Data,RC301917,,Care Leavers,R6292,Section 24 Payments,
01/09/2022,3761537,Redacted Personal Data,26.95,Redacted Personal Data,RC301917,,Care Leavers,R6292,Section 24 Payments,
08/09/2022,3761735,Redacted Personal Data,61.22,Redacted Personal Data,RC301917,,Care Leavers,R6292,Section 24 Payments,
15/09/2022,3762036,Redacted Personal Data,61.22,Redacted Personal Data,RC301917,,Care Leavers,R6292,Section 24 Payments,
22/09/2022,3762145,Redacted Personal Data,61.22,Redacted Personal Data,RC301917,,Care Leavers,R6292,Section 24 Payments,
29/09/2022,3762352,Redacted Personal Data,61.22,Redacted Personal Data,RC301917,,Care Leavers,R6292,Section 24 Payments,
29/09/2022,3762353,Redacted Personal Data,26.95,Redacted Personal Data,RC301917,,Care Leavers,R6292,Section 24 Payments,
,60068662,2539,174.4,Breaking the Cycle Consultancy Ltd,RC300326,,ASC S&R Homecare MH,R5029,TPP - Home Care,
,60068663,2600,174.4,Breaking the Cycle Consultancy Ltd,RC300326,,ASC S&R Homecare MH,R5029,TPP - Home Care,
15/09/2022,3761988,2 Year Funding -September 2022 Claim and August 2022 Adjustment,367.62,Bright Sparks Pre-School,RC501571,,2 Year Old Nursery Funding,R5020,TPP - Nursery Provision,
15/09/2022,3762002,3 and 4 Year Funding - September 2022 Claim and August Adjustment,2023.56,Bright Sparks Pre-School,RC501571,,3 & 4 Year Old Nursery Funding,R5020,TPP - Nursery Provision,
,60068612,VISIONSCCC.107,420.75,Brimecome-Mills Creative Development,RC508061,,Children's Centres - Revenue,R4401,Fees and Charges,
01/09/2022,60068898,EM24413663M118,18.63,British Telecommunications Plc,RC501804,245 7193 48,Telecommunications,R4504,Telephone Rental,
14/09/2022,60069397,EM25528802Q032,163.54,British Telecommunications Plc,RC501804,245 7193 48,Telecommunications,R4504,Telephone Rental,
05/09/2022,3761821,45956/23,1230,Broadoak Group Of Care Homes (Grange),RC502363,,Older People,R5028,TPP - Residental Care,
05/09/2022,3761822,45956/24,1230,Broadoak Group Of Care Homes (Grange),RC502363,,Older People,R5028,TPP - Residental Care,
21/09/2022,3762244,46128/26,1230,Broadoak Group Of Care Homes (Grange),RC502363,,Older People,R5028,TPP - Residental Care,
13/09/2022,3761904,September 2022 dripfeed - High Needs Block Allocation,2210.48,Brooke Hill Academy Trust Ltd,RC501837,,SEN Funding Maintained Schools and Academies,R6300,Schools - Budget Share,
13/09/2022,3761905,September 2022 dripfeed - Element 3 top up funding - no EHCP,6873.2,Brooke Hill Academy Trust Ltd,RC501837,,Education Otherwise,R5022,TPP - Schools & Colleges,
15/09/2022,3762003,3 and 4 Year Funding - September 2022 Claim and August Adjustment,8104.93,Brooke Hill Academy Trust Ltd,RC501837,,3 & 4 Year Old Nursery Funding,R5020,TPP - Nursery Provision,
15/09/2022,3762004,3 and 4 Year Funding - September 2022 Claim and August Adjustment,6012.86,Brooke Priory School Ltd,RC501848,,3 & 4 Year Old Nursery Funding,R5020,TPP - Nursery Provision,
,60068624,1161,1143,Bullfrog Arts,RC302169,,Virtual School Head Resp,R4401,Fees and Charges,
01/09/2022,60068577,55858,128.39,C & M Tractors Ltd,RC502059,119 5252 73,Winter Maintenance,R5009,TPP - Highway`s,
12/09/2022,60069011,1817,720,C3 Creative,RC502115,704 8431 47,Aiming High,R4300,Printing & Photocopying,
07/09/2022,60069111,2.21E+12,57.34,Canon (UK) Ltd,RC301046,523 7971 28,Printers,R4300,Printing & Photocopying,
19/09/2022,60069301,6004124131,1000,Capita Pension Solutions Limited,RC301942,GB618184140,IT Operational Support,R4400,Professional Fees,
01/09/2022,60068697,R3607P 50% Sept 2022,21319.5,Car Van & Minibus World Ltd,RC301544,922260258,Capital Programme Places,C1001,"Vehicle, Plant & Equipment Purchase",
01/09/2022,3761594,Redacted Personal Data,295.62,Redacted Personal Data,RC300308,,Placements,R5017,TPP - Other,
08/09/2022,3761783,Redacted Personal Data,295.62,Redacted Personal Data,RC300308,,Placements,R5017,TPP - Other,
15/09/2022,3762083,Redacted Personal Data,295.62,Redacted Personal Data,RC300308,,Placements,R5017,TPP - Other,
22/09/2022,3762203,Redacted Personal Data,295.62,Redacted Personal Data,RC300308,,Placements,R5017,TPP - Other,
29/09/2022,3762415,Redacted Personal Data,295.62,Redacted Personal Data,RC300308,,Placements,R5017,TPP - Other,
15/09/2022,3762118,Redacted Personal Data,621.82,Redacted Personal Data,RC301807,,SEN Transport,R3200,Hire of Vehicles & Plant,
,60068550,Redacted Personal Data,280,Redacted Personal Data,RC301235,,SEN Funding Other,R5017,TPP - Other,
01/09/2022,3761538,Redacted Personal Data,40,Redacted Personal Data,RC301278,,Care Leavers,R6292,Section 24 Payments,
29/09/2022,3762354,Redacted Personal Data,40,Redacted Personal Data,RC301278,,Care Leavers,R6292,Section 24 Payments,
01/09/2022,60068930,32373,992.83,Casepak,RC507209,115128407,Waste Management,R5021,TPP - Waste Disposal,
13/09/2022,3761951,September 2022 - High Needs Block Allocation,1050.81,Casterton College,RC502333,,SEN Funding Maintained Schools and Academies,R6300,Schools - Budget Share,
15/09/2022,3761989,2 Year Funding -September 2022 Claim and August 2022 Adjustment,1240.11,Casterton Nursery,RC500449,,2 Year Old Nursery Funding,R5020,TPP - Nursery Provision,
15/09/2022,3762005,3 and 4 Year Funding - September 2022 Claim and August Adjustment,6359.83,Casterton Nursery,RC500449,,3 & 4 Year Old Nursery Funding,R5020,TPP - Nursery Provision,
22/09/2022,3762212,Redacted Personal Data,800,Casterton Nursery,RC500449,,3 & 4 Year Old Nursery Funding,R5020,TPP - Nursery Provision,
01/09/2022,60068726,2840,500,CASY,RC301626,,SEN Recovery Plan Expenditure,R4400,Professional Fees,
01/09/2022,60068730,2844,250,CASY,RC301626,,SEN Recovery Plan Expenditure,R4400,Professional Fees,
01/09/2022,60068731,2843,500,CASY,RC301626,,SEN Recovery Plan Expenditure,R4400,Professional Fees,
01/09/2022,60068742,2839,250,CASY,RC301626,,SEN Recovery Plan Expenditure,R4400,Professional Fees,
08/09/2022,60068925,2857,750,CASY,RC301626,,SEN Recovery Plan Expenditure,R4400,Professional Fees,
20/09/2022,60069371,2872,300,CASY,RC301626,,SEN Recovery Plan Expenditure,R4400,Professional Fees,
,3761672,45900/27,805.18,Redacted Personal Data,RC301415,,ASC S&R DPs OP,R6280,Direct Payments,
27/09/2022,3762465,46333/29,805.18,Redacted Personal Data,RC301415,,ASC S&R DPs OP,R6280,Direct Payments,
01/09/2022,60068556,27308,11395.95,Centrebus Ltd,RC500615,834 8659 85,Public Transport,R5017,TPP - Other,
01/09/2022,60068557,27309,12511.29,Centrebus Ltd,RC500615,834 8659 85,Public Transport,R5017,TPP - Other,
01/09/2022,60068558,27310,3358.74,Centrebus Ltd,RC500615,834 8659 85,Public Transport,R5017,TPP - Other,
01/09/2022,60068559,27311,1774.32,Centrebus Ltd,RC500615,834 8659 85,Public Transport,R5017,TPP - Other,
01/09/2022,60068745,27312,11643.34,Centrebus Ltd,RC500615,834 8659 85,Concessionary Travel,R6270,Concessionary fares,
05/09/2022,60068799,27410,60,Centrebus Ltd,RC500615,834 8659 85,Public Transport,R5017,TPP - Other,
05/09/2022,60068800,27409,21481.85,Centrebus Ltd,RC500615,834 8659 85,Public Transport,R5017,TPP - Other,
13/09/2022,3761979,Aug 2022Charitable Giving Admin Fee,0.69,Charitable Giving Client,RC505683,,Corporate Financial Expenses,R4401,Fees and Charges,
,3761658,45900/13,679.72,Redacted Personal Data,RC300365,,ASC S&R DPs LD,R6280,Direct Payments,
27/09/2022,3762451,46333/15,679.72,Redacted Personal Data,RC300365,,ASC S&R DPs LD,R6280,Direct Payments,
22/09/2022,3762213,Redacted Personal Data,600,Redacted Personal Data,RC302200,,Aiming High,R4400,Professional Fees,
,3761708,45900/63,276,Redacted Personal Data,RC300602,,Carer Support,R6280,Direct Payments,
27/09/2022,3762501,46333/65,276,Redacted Personal Data,RC300602,,Carer Support,R6280,Direct Payments,
05/09/2022,3761826,45911/28,1116,Chater Lodge Care Home,RC502286,,Older People,R5028,TPP - Residental Care,
05/09/2022,3761827,45911/29,1116,Chater Lodge Care Home,RC502286,,Older People,R5028,TPP - Residental Care,
05/09/2022,3761828,45911/30,1116,Chater Lodge Care Home,RC502286,,Older People,R5028,TPP - Residental Care,
05/09/2022,3761829,45911/31,1116,Chater Lodge Care Home,RC502286,,Older People,R5028,TPP - Residental Care,
05/09/2022,3761830,45911/32,2500,Chater Lodge Care Home,RC502286,,Older People,R5028,TPP - Residental Care,
21/09/2022,3762248,46109/30,1116,Chater Lodge Care Home,RC502286,,Older People,R5028,TPP - Residental Care,
21/09/2022,3762249,46109/31,1116,Chater Lodge Care Home,RC502286,,Older People,R5028,TPP - Residental Care,
21/09/2022,3762250,46109/32,1116,Chater Lodge Care Home,RC502286,,Older People,R5028,TPP - Residental Care,
21/09/2022,3762251,46109/33,1116,Chater Lodge Care Home,RC502286,,Older People,R5028,TPP - Residental Care,
21/09/2022,3762252,46109/34,717.43,Chater Lodge Care Home,RC502286,,ASC P&S Respite OP,R5018,TPP - Respite,
05/09/2022,3761831,45957/33,1919.5,Chestnuts (Arnesby) Limited,RC506807,,Learning Disability,R5028,TPP - Residental Care,
05/09/2022,3761832,45957/34,2387.5,Chestnuts (Arnesby) Limited,RC506807,,Learning Disability,R5028,TPP - Residental Care,
21/09/2022,3762254,46129/36,1919.5,Chestnuts (Arnesby) Limited,RC506807,,Learning Disability,R5028,TPP - Residental Care,
21/09/2022,3762255,46129/37,2387.5,Chestnuts (Arnesby) Limited,RC506807,,Learning Disability,R5028,TPP - Residental Care,
13/09/2022,60069093,INV-1882,924.63,Children's Therapy Solutions,RC301842,,SEN Funding Other,R5017,TPP - Other,
13/09/2022,60069165,INV-1878,484,Children's Therapy Solutions,RC301842,,SEN Funding Other,R5017,TPP - Other,
13/09/2022,60069178,INV-1883,132.75,Children's Therapy Solutions,RC301842,,SEN Funding Other,R5017,TPP - Other,
13/09/2022,60069179,INV-1884,1102.33,Children's Therapy Solutions,RC301842,,SEN Funding Other,R5017,TPP - Other,
22/09/2022,3762147,Redacted Personal Data,103,Redacted Personal Data,RC301604,,Care Leavers,R6292,Section 24 Payments,
22/09/2022,3762148,Redacted Personal Data,25,Redacted Personal Data,RC301604,,Care Leavers,R6292,Section 24 Payments,
05/09/2022,3761871,45965/73,2367.84,Choice Ltd T/A Stoke Lodge,RC300621,,Mental Health,R5028,TPP - Residental Care,
21/09/2022,3762298,46125/80,2367.84,Choice Ltd T/A Stoke Lodge,RC300621,,Mental Health,R5028,TPP - Residental Care,
15/09/2022,3761998,Redacted Personal Data,642.11,Redacted Personal Data,RC507202,,2 Year Old Nursery Funding,R5020,TPP - Nursery Provision,
15/09/2022,3762023,Redacted Personal Data,7454.48,Redacted Personal Data,RC507202,,3 & 4 Year Old Nursery Funding,R5020,TPP - Nursery Provision,
21/09/2022,60069302,Redacted Personal Data,440,Redacted Personal Data,RC507202,,Early Senco (0-3yrs support),R5020,TPP - Nursery Provision,
21/09/2022,60069303,Redacted Personal Data,440,Redacted Personal Data,RC507202,,Early Years Inclusion 3-5yrs (DSG),R5020,TPP - Nursery Provision,
07/09/2022,60068914,169216,99.86,Citipost Mail Ltd,RC300882,881 8531 94,Reprographics & Post,R4503,Postage,
13/09/2022,60068998,M/RB105426,1524.71,Civica UK Ltd,RC501070,391 1710 65,Benefit Processing,R4401,Fees and Charges,
23/09/2022,60069392,M/RB105930,101.25,Civica UK Ltd,RC501070,391 1710 65,IT Operational Support,R4531,Computing - Software,
,60068654,Redacted Personal Data,605.7,Redacted Personal Data,RC302137,,Section 31 Holiday Activities and Food,R4401,Fees and Charges,
,60068769,Redacted Personal Data,343,Redacted Personal Data,RC302137,,Aiming High,R4400,Professional Fees,
01/09/2022,60068783,MDN231801-98,278.16,Claranet Limited,RC500963,908 7593 83,IT Operational Support,R4537,Computing - Internet,
01/09/2022,60068784,MDN240903-80,1164.41,Claranet Limited,RC500963,908 7593 83,IT Operational Support,R4537,Computing - Internet,
01/09/2022,60069419,17601,204,Clearview Communications,RC507073,665813511,Waste Management,R4000,Furniture & Equipment,
01/09/2022,60069420,17611,129,Clearview Communications,RC507073,665813511,Waste Management,R4000,Furniture & Equipment,
15/09/2022,3762017,3 and 4 Year Funding - September 2022 Claim and August Adjustment,5280.5,Climbing High Nurseries Ltd - The Day Nursery At Oakham,RC300926,,3 & 4 Year Old Nursery Funding,R5020,TPP - Nursery Provision,
01/09/2022,60069443,R220831-71,884.6,Cobalt Telephone Technologies Ltd,RC508614,636 1371 49,Parking,R5017,TPP - Other,
,60069042,AMSI 162,28059.66,Community Inclusive Trust,RC508202,,SEN Funding Maintained Schools and Academies,R5011,TPP - Local Authorities,
,60069049,SASI 108,9157.67,Community Inclusive Trust,RC508202,,SEN Funding Maintained Schools and Academies,R5011,TPP - Local Authorities,
07/09/2022,60068901,C-0003352868,57.71,Computershare Voucher Services,RC502015,720707460,Corporate Financial Expenses,R4401,Fees and Charges,
16/09/2022,60069338,INV-4173,18150,Connected Together CIC,RC300552,,Healthwatch,R5017,TPP - Other,
01/09/2022,60068771,1618341,14.82,Cooler Aid Ltd,RC501333,599 5176 72,Community Learning,R4000,Furniture & Equipment,
01/09/2022,60068633,1032568,5862.7,Coolspirit Ltd,RC302158,GB715995201,IT Operational Support,R4400,Professional Fees,
01/09/2022,60068611,RCC 08/22,1760,Corby Jet Carz,RC508056,,Adult Social Services Transport,R3207,Transport Contract,
27/09/2022,60069501,19006a,94.72,Corby Kilns Ltd,RC509365,694 8753 67,Community Learning,R4000,Furniture & Equipment,
01/09/2022,60068920,INV-1049,204,Corby Star Cars Ltd,RC501949,307243038,SEN Transport,R3207,Transport Contract,
01/09/2022,60068947,INV-1048,1966.24,Corby Star Cars Ltd,RC501949,307243038,SEN Transport,R3207,Transport Contract,
01/09/2022,60069389,INV-1094,1837.45,Corby Star Cars Ltd,RC501949,307243038,Disabled Children,R3200,Hire of Vehicles & Plant,
15/09/2022,3762092,Redacted Personal Data,495,Countrywide Residential Lettings Limited,RC301700,,Unaccompanied Asylum Seekers - Over 18,R4900,Accommodation Costs,
,60069341,TA-2023,1350,County Rents,RC302039,,Homelessness,R4900,Accommodation Costs,
05/09/2022,3761864,45973/66,1144.72,Craegmoor Mar Lodge Priory,RC502624,,Learning Disability,R5028,TPP - Residental Care,
21/09/2022,3762290,46137/72,1144.72,Craegmoor Mar Lodge Priory,RC502624,,Learning Disability,R5028,TPP - Residental Care,
05/09/2022,3761880,45962/82,5892.8,Cristalcare Ltd,RC300259,,Learning Disability,R5028,TPP - Residental Care,
21/09/2022,3762306,46122/88,5892.8,Cristalcare Ltd,RC300259,,Learning Disability,R5028,TPP - Residental Care,
05/09/2022,3761834,45920/36,1046,Crown House Residential Home,RC502474,,Older People,R5028,TPP - Residental Care,
21/09/2022,3762257,46106/39,-3063.29,Crown House Residential Home,RC502474,,Older People,R5028,TPP - Residental Care,
05/09/2022,60068793,SN42 - Aug 2022,300,D C Taxis,RC509186,,SEN Transport,R3207,Transport Contract,
09/09/2022,60069094,SN 38,910,D C Taxis,RC509186,,SEN Transport,R3207,Transport Contract,
01/09/2022,60068915,11825519,898.09,Daisy Communications Ltd,RC507045,722 4713 55,IT Operational Support,R4537,Computing - Internet,
01/09/2022,60068374,105065,68,Datashredders Ltd,RC300141,741 0093 71,Management of Community Support Services,R5021,TPP - Waste Disposal,
12/09/2022,60069159,105600,68,Datashredders Ltd,RC300141,741 0093 71,Management of Community Support Services,R5021,TPP - Waste Disposal,
15/09/2022,3762098,Redacted Personal Data,150,Redacted Personal Data,RC301361,,Placements,R4400,Professional Fees,
01/09/2022,60068665,8331,250,Davlyn's Bodyshop,RC508893,786 7076 75,Pool Cars and Car Hire,R4962,Insurance Claim Expenditure,
15/09/2022,3762018,Redacted Personal Data,456.75,Redacted Personal Data,RC509420,,3 & 4 Year Old Nursery Funding,R5020,TPP - Nursery Provision,
01/09/2022,60068743,CONCESSIONARY FARE AUG 2022,884.86,Delaine Buses Ltd,RC501419,119 2077 80,Concessionary Travel,R6270,Concessionary fares,
12/09/2022,60069014,10284,648,Delaine Buses Ltd,RC501419,119 2077 80,Post 16 Transport,R3207,Transport Contract,
01/09/2022,3761560,Redacted Personal Data,165,Redacted Personal Data,RC301040,,Placements,R5017,TPP - Other,
01/09/2022,3761561,Redacted Personal Data,165,Redacted Personal Data,RC301040,,Placements,R5017,TPP - Other,
01/09/2022,3761576,Redacted Personal Data,124.74,Redacted Personal Data,RC301040,,Placements,R5017,TPP - Other,
01/09/2022,3761577,Redacted Personal Data,93.56,Redacted Personal Data,RC301040,,Placements,R5017,TPP - Other,
08/09/2022,3761749,Redacted Personal Data,165,Redacted Personal Data,RC301040,,Placements,R5017,TPP - Other,
08/09/2022,3761750,Redacted Personal Data,165,Redacted Personal Data,RC301040,,Placements,R5017,TPP - Other,
08/09/2022,3761765,Redacted Personal Data,124.74,Redacted Personal Data,RC301040,,Placements,R5017,TPP - Other,
08/09/2022,3761766,Redacted Personal Data,93.56,Redacted Personal Data,RC301040,,Placements,R5017,TPP - Other,
15/09/2022,3762049,Redacted Personal Data,165,Redacted Personal Data,RC301040,,Placements,R5017,TPP - Other,
15/09/2022,3762050,Redacted Personal Data,165,Redacted Personal Data,RC301040,,Placements,R5017,TPP - Other,
15/09/2022,3762065,Redacted Personal Data,124.74,Redacted Personal Data,RC301040,,Placements,R5017,TPP - Other,
15/09/2022,3762066,Redacted Personal Data,93.56,Redacted Personal Data,RC301040,,Placements,R5017,TPP - Other,
22/09/2022,3762169,Redacted Personal Data,165,Redacted Personal Data,RC301040,,Placements,R5017,TPP - Other,
22/09/2022,3762170,Redacted Personal Data,165,Redacted Personal Data,RC301040,,Placements,R5017,TPP - Other,
22/09/2022,3762185,Redacted Personal Data,124.74,Redacted Personal Data,RC301040,,Placements,R5017,TPP - Other,
22/09/2022,3762186,Redacted Personal Data,93.56,Redacted Personal Data,RC301040,,Placements,R5017,TPP - Other,
29/09/2022,3762380,Redacted Personal Data,165,Redacted Personal Data,RC301040,,Placements,R5017,TPP - Other,
29/09/2022,3762381,Redacted Personal Data,165,Redacted Personal Data,RC301040,,Placements,R5017,TPP - Other,
29/09/2022,3762397,Redacted Personal Data,124.74,Redacted Personal Data,RC301040,,Placements,R5017,TPP - Other,
29/09/2022,3762398,Redacted Personal Data,93.56,Redacted Personal Data,RC301040,,Placements,R5017,TPP - Other,
15/09/2022,3762022,Redacted Personal Data,215.85,Redacted Personal Data,RC509223,,3 & 4 Year Old Nursery Funding,R5020,TPP - Nursery Provision,
,3761613,45901/1,641.5,Disability Direct,RC503281,,ASC S&R DPs MH,R6280,Direct Payments,
,3761614,45901/2,9,Disability Direct,RC503281,,ASC S&R DPs LD,R6280,Direct Payments,
,3761615,45901/3,9,Disability Direct,RC503281,,ASC S&R DPs LD,R6280,Direct Payments,
,3761616,45901/4,4812.24,Disability Direct,RC503281,,ASC S&R DPs LD,R6280,Direct Payments,
,3761617,45901/5,6529.72,Disability Direct,RC503281,,ASC S&R DPs LD,R6280,Direct Payments,
,3761618,45901/6,1110.64,Disability Direct,RC503281,,ASC S&R DPs LD,R6280,Direct Payments,
,3761619,45901/7,193,Disability Direct,RC503281,,ASC S&R DPs MH,R6280,Direct Payments,
,3761620,45901/8,31.92,Disability Direct,RC503281,,ASC S&R DPs LD,R6280,Direct Payments,
,3761621,45901/9,1619,Disability Direct,RC503281,,ASC S&R DPs PD,R6280,Direct Payments,
,3761622,45901/10,138,Disability Direct,RC503281,,Carer Support,R6280,Direct Payments,
,3761623,45901/11,216.04,Disability Direct,RC503281,,ASC S&R DPs LD,R6280,Direct Payments,
,3761624,45901/12,655.68,Disability Direct,RC503281,,ASC S&R DPs LD,R6280,Direct Payments,
,3761625,45901/13,9,Disability Direct,RC503281,,ASC S&R DPs LD,R6280,Direct Payments,
,3761626,45901/14,1046,Disability Direct,RC503281,,ASC S&R DPs LD,R6280,Direct Payments,
,3761627,45901/15,1656.72,Disability Direct,RC503281,,ASC S&R DPs OP,R6280,Direct Payments,
,3761628,45901/16,549,Disability Direct,RC503281,,ASC S&R DPs LD,R6280,Direct Payments,
,3761629,45901/17,289,Disability Direct,RC503281,,ASC S&R DPs MH,R6280,Direct Payments,
,3761630,45901/18,9.02,Disability Direct,RC503281,,ASC S&R DPs OP,R6280,Direct Payments,
,3761631,45901/19,1113,Disability Direct,RC503281,,ASC S&R DPs LD,R6280,Direct Payments,
,3761632,45901/20,1074.2,Disability Direct,RC503281,,ASC S&R DPs LD,R6280,Direct Payments,
,3761633,45901/21,423,Disability Direct,RC503281,,ASC S&R DPs LD,R6280,Direct Payments,
,3761634,45901/22,377,Disability Direct,RC503281,,ASC S&R DPs MH,R6280,Direct Payments,
,3761635,45901/23,1872,Disability Direct,RC503281,,ASC S&R DPs LD,R6280,Direct Payments,
,3761636,45901/24,320.56,Disability Direct,RC503281,,ASC S&R DPs PD,R6280,Direct Payments,
,3761637,45901/25,1113,Disability Direct,RC503281,,ASC S&R DPs OP,R6280,Direct Payments,
,3761638,45901/26,239,Disability Direct,RC503281,,ASC S&R DPs MH,R6280,Direct Payments,
,3761639,45901/27,9,Disability Direct,RC503281,,ASC S&R DPs LD,R6280,Direct Payments,
,3761640,45901/28,251.6,Disability Direct,RC503281,,ASC S&R DPs OP,R6280,Direct Payments,
,3761641,45901/29,342.6,Disability Direct,RC503281,,ASC S&R DPs MH,R6280,Direct Payments,
,3761642,45901/30,144.94,Disability Direct,RC503281,,ASC S&R DPs MH,R6280,Direct Payments,
,3761643,45901/31,193,Disability Direct,RC503281,,ASC S&R DPs LD,R6280,Direct Payments,
,3761644,45901/32,-34.82,Disability Direct,RC503281,,ASC S&R DPs OP,R6280,Direct Payments,
,3761645,45901/33,-730.14,Disability Direct,RC503281,,ASC S&R DPs PD,R6280,Direct Payments,
27/09/2022,3762522,46334/1,641.5,Disability Direct,RC503281,,ASC S&R DPs MH,R6280,Direct Payments,
27/09/2022,3762523,46334/2,9,Disability Direct,RC503281,,ASC S&R DPs LD,R6280,Direct Payments,
27/09/2022,3762524,46334/3,9,Disability Direct,RC503281,,ASC S&R DPs LD,R6280,Direct Payments,
27/09/2022,3762525,46334/4,4812.24,Disability Direct,RC503281,,ASC S&R DPs LD,R6280,Direct Payments,
27/09/2022,3762526,46334/5,5933.32,Disability Direct,RC503281,,ASC S&R DPs LD,R6280,Direct Payments,
27/09/2022,3762527,46334/6,1110.64,Disability Direct,RC503281,,ASC S&R DPs LD,R6280,Direct Payments,
27/09/2022,3762528,46334/7,193,Disability Direct,RC503281,,ASC S&R DPs MH,R6280,Direct Payments,
27/09/2022,3762529,46334/8,31.92,Disability Direct,RC503281,,ASC S&R DPs LD,R6280,Direct Payments,
27/09/2022,3762530,46334/9,1619,Disability Direct,RC503281,,ASC S&R DPs PD,R6280,Direct Payments,
27/09/2022,3762531,46334/10,138,Disability Direct,RC503281,,Carer Support,R6280,Direct Payments,
27/09/2022,3762532,46334/11,216.04,Disability Direct,RC503281,,ASC S&R DPs LD,R6280,Direct Payments,
27/09/2022,3762533,46334/12,655.68,Disability Direct,RC503281,,ASC S&R DPs LD,R6280,Direct Payments,
27/09/2022,3762534,46334/13,9,Disability Direct,RC503281,,ASC S&R DPs LD,R6280,Direct Payments,
27/09/2022,3762535,46334/14,1046,Disability Direct,RC503281,,ASC S&R DPs LD,R6280,Direct Payments,
27/09/2022,3762536,46334/15,1656.72,Disability Direct,RC503281,,ASC S&R DPs OP,R6280,Direct Payments,
27/09/2022,3762537,46334/16,549,Disability Direct,RC503281,,ASC S&R DPs LD,R6280,Direct Payments,
27/09/2022,3762538,46334/17,289,Disability Direct,RC503281,,ASC S&R DPs MH,R6280,Direct Payments,
27/09/2022,3762539,46334/18,9.02,Disability Direct,RC503281,,ASC S&R DPs OP,R6280,Direct Payments,
27/09/2022,3762540,46334/19,1113,Disability Direct,RC503281,,ASC S&R DPs LD,R6280,Direct Payments,
27/09/2022,3762541,46334/20,1074.2,Disability Direct,RC503281,,ASC S&R DPs LD,R6280,Direct Payments,
27/09/2022,3762542,46334/21,377,Disability Direct,RC503281,,ASC S&R DPs MH,R6280,Direct Payments,
27/09/2022,3762543,46334/22,1872,Disability Direct,RC503281,,ASC S&R DPs LD,R6280,Direct Payments,
27/09/2022,3762544,46334/23,320.56,Disability Direct,RC503281,,ASC S&R DPs PD,R6280,Direct Payments,
27/09/2022,3762545,46334/24,1113,Disability Direct,RC503281,,ASC S&R DPs OP,R6280,Direct Payments,
27/09/2022,3762546,46334/25,239,Disability Direct,RC503281,,ASC S&R DPs MH,R6280,Direct Payments,
27/09/2022,3762547,46334/26,9,Disability Direct,RC503281,,ASC S&R DPs LD,R6280,Direct Payments,
27/09/2022,3762548,46334/27,251.6,Disability Direct,RC503281,,ASC S&R DPs OP,R6280,Direct Payments,
27/09/2022,3762549,46334/28,342.6,Disability Direct,RC503281,,ASC S&R DPs MH,R6280,Direct Payments,
27/09/2022,3762550,46334/29,373.84,Disability Direct,RC503281,,ASC S&R DPs MH,R6280,Direct Payments,
27/09/2022,3762551,46334/30,193,Disability Direct,RC503281,,ASC S&R DPs LD,R6280,Direct Payments,
01/09/2022,60068843,12840,385,DPM,RC302052,997 1450 78,Tourism,R4401,Fees and Charges,
01/09/2022,60068846,12788,307.5,DPM,RC302052,997 1450 78,Tourism,R4401,Fees and Charges,
23/09/2022,60069473,INV-0071,180,DRC Electrical Services Ltd,RC302119,,Central Maintenance,R2003,R & M - Emergency Works,
13/09/2022,60069006,83626939,100.82,Dx Network Services Ltd,RC501467,849 7413 85,Libraries,R4503,Postage,
01/09/2022,60068466,39007,275,E P Cowen & Company Limited,RC302135,166700171,Licenses,R4318,Goods For Resale,
01/09/2022,60068655,27997752,460,Ebuyer (UK) Ltd,RC504014,836 5923 00,Community Learning,R4530,Computing - Hardware,
01/09/2022,60068806,1296649,1572.5,Eden Brown Ltd,RC300857,743724037,Contact and Referral Team,R1100,Agency Staff,
01/09/2022,60068807,1297062,1572.5,Eden Brown Ltd,RC300857,743724037,Contact and Referral Team,R1100,Agency Staff,
01/09/2022,60068808,1297063,40,Eden Brown Ltd,RC300857,743724037,Contact and Referral Team,R1100,Agency Staff,
01/09/2022,60068809,1297599,1572.5,Eden Brown Ltd,RC300857,743724037,Contact and Referral Team,R1100,Agency Staff,
01/09/2022,60068810,1297744,1572.5,Eden Brown Ltd,RC300857,743724037,Contact and Referral Team,R1100,Agency Staff,
07/09/2022,60069174,1298147,1275,Eden Brown Ltd,RC300857,743724037,Contact and Referral Team,R1100,Agency Staff,
14/09/2022,60069175,1298585,1572.5,Eden Brown Ltd,RC300857,743724037,Contact and Referral Team,R1100,Agency Staff,
14/09/2022,60069398,1298586,52,Eden Brown Ltd,RC300857,743724037,Contact and Referral Team,R1100,Agency Staff,
01/09/2022,60068786,315117950,19.65,Eden Springs UK Ltd,RC300505,232 1604 11,The King Centre,R4000,Furniture & Equipment,
01/09/2022,60066937,5974363390/000012543780,11305.37,EDF Energy Customers Plc,RC501509,523 0412 02,Street Lighting,R2100,Electricity,
01/09/2022,60068097,5974363390/000012809753,7235.76,EDF Energy Customers Plc,RC501509,523 0412 02,Street Lighting,R2100,Electricity,
01/09/2022,60068103,5974363390/000012850547,7876.42,EDF Energy Customers Plc,RC501509,523 0412 02,Street Lighting,R2100,Electricity,
,60068323,5974363390/000012969904,32.48,EDF Energy Customers Plc,RC501509,523 0412 02,Street Lighting,R2100,Electricity,
01/09/2022,60068787,6795510000/000013040192,-14589.09,EDF Energy Customers Plc,RC501509,523 0412 02,Oakham Enterprise Park,R2100,Electricity,
01/09/2022,60068788,6795510000/000013040212,14595.69,EDF Energy Customers Plc,RC501509,523 0412 02,Oakham Enterprise Park,R2100,Electricity,
01/09/2022,60068892,5974363390/000013082118,10474.15,EDF Energy Customers Plc,RC501509,523 0412 02,Street Lighting,R2100,Electricity,
01/09/2022,60068895,5974363390/000013082127,8146.79,EDF Energy Customers Plc,RC501509,523 0412 02,Street Lighting,R2100,Electricity,
01/09/2022,60068896,5974363390/000013082131,9996.16,EDF Energy Customers Plc,RC501509,523 0412 02,Street Lighting,R2100,Electricity,
01/09/2022,60068897,6795510000/000013117860,20845.13,EDF Energy Customers Plc,RC501509,523 0412 02,Oakham Enterprise Park,R2100,Electricity,
13/09/2022,3761913,September 2022 dripfeed - High Needs Block Allocation,5496.41,Edith Weston Academy,RC509059,,SEN Funding Maintained Schools and Academies,R6300,Schools - Budget Share,
01/09/2022,60068811,98880229/01287602084,4483.41,EE Limited,RC508788,771592016,Mobile Phones,R4507,Mobile Telephones,
01/09/2022,60068812,98836882/01287600088,523.41,EE Limited,RC508788,771592016,Mobile Phones,R4507,Mobile Telephones,
01/09/2022,3761540,Redacted Personal Data,17.98,Redacted Personal Data,RC300764,,Care Leavers,R6292,Section 24 Payments,
29/09/2022,3762355,Redacted Personal Data,17.98,Redacted Personal Data,RC300764,,Care Leavers,R6292,Section 24 Payments,
01/09/2022,60068721,SI-481,500,Elite Housing & Support,RC300384,,Care Leavers,R4900,Accommodation Costs,
01/09/2022,60068722,SI-482,400,Elite Housing & Support,RC300384,,Unaccompanied Asylum Seekers - Over 18,R4900,Accommodation Costs,
15/09/2022,3762025,Redacted Personal Data,578.16,Redacted Personal Data,RC301912,,3 & 4 Year Old Nursery Funding,R5020,TPP - Nursery Provision,
01/09/2022,60069291,22-164,252.25,Elms Landscaping Design Ltd,RC508065,763 6001 46,Registration Service,R4401,Fees and Charges,
01/09/2022,60069496,22-152,220,Elms Landscaping Design Ltd,RC508065,763 6001 46,Oakham Castle,R2075,Grounds Maintenance - Contract,
07/09/2022,60068963,212353,7980,ELR GP Federation Ltd,RC300392,,Sexual Health,R5017,TPP - Other,
01/09/2022,60068822,RUTCC072,7336,Enterprise Car Club,RC509499,215 5573 14,Pool Cars and Car Hire,R3207,Transport Contract,
01/09/2022,60068727,47415,1260,Envtec Services Limited,RC300271,936 9666 63,The King Centre,R2004,R & M - Programmed,
,60068995,EPASI004239,550,EPA Plus,RC302199,297 5309 60,Rutland Adult Skill Budget Post July 2014,R4401,Fees and Charges,
01/09/2022,3761604,Redacted Personal Data,5,Redacted Personal Data,RC301476,,Unaccompanied Asylum Seekers - Over 18,R6292,Section 24 Payments,
08/09/2022,3761796,Redacted Personal Data,30,Redacted Personal Data,RC301476,,Unaccompanied Asylum Seekers - Over 18,R6292,Section 24 Payments,
15/09/2022,3762093,Redacted Personal Data,5,Redacted Personal Data,RC301476,,Unaccompanied Asylum Seekers - Over 18,R6292,Section 24 Payments,
29/09/2022,3762429,Redacted Personal Data,5,Redacted Personal Data,RC301476,,Unaccompanied Asylum Seekers - Over 18,R6292,Section 24 Payments,
01/09/2022,60068146,6608435,34.85,Espo,RC502268,705 1805 61,Museums Service,R4000,Furniture & Equipment,
01/09/2022,60068147,6608436,4.18,Espo,RC502268,705 1805 61,Museums Service,R4000,Furniture & Equipment,
01/09/2022,60068540,6620492,32.22,Espo,RC502268,705 1805 61,Children's Centres - Revenue,R4000,Furniture & Equipment,
01/09/2022,60068614,6632232,3,Espo,RC502268,705 1805 61,Admin Buildings,R4000,Furniture & Equipment,
01/09/2022,60068660,6632407,16.35,Espo,RC502268,705 1805 61,Day Opportunities Services,R4000,Furniture & Equipment,
01/09/2022,60068773,6635854,39.75,Espo,RC502268,705 1805 61,Day Opportunities Services,R4000,Furniture & Equipment,
01/09/2022,60069064,6631493,79.43,Espo,RC502268,705 1805 61,Community Learning,R4000,Furniture & Equipment,
01/09/2022,60069065,6632240,15.48,Espo,RC502268,705 1805 61,Transport Management,R4000,Furniture & Equipment,
01/09/2022,60069066,6632252,3.11,Espo,RC502268,705 1805 61,Registration Service,R4401,Fees and Charges,
01/09/2022,60069067,6632257,9,Espo,RC502268,705 1805 61,Stationery,R4308,Stationery,
01/09/2022,60069069,6632543,15.75,Espo,RC502268,705 1805 61,Museums Service,R4000,Furniture & Equipment,
02/09/2022,60069070,6638445,88.5,Espo,RC502268,705 1805 61,Stationery,R4308,Stationery,
16/09/2022,60069274,6666054,39,Espo,RC502268,705 1805 61,Admin Buildings,R4000,Furniture & Equipment,
21/09/2022,60069315,6672856,108.4,Espo,RC502268,705 1805 61,Day Opportunities Services,R4000,Furniture & Equipment,
23/09/2022,60069388,6678130,105.71,Espo,RC502268,705 1805 61,Day Opportunities Services,R4000,Furniture & Equipment,
28/09/2022,60069534,6689641,38.98,Espo,RC502268,705 1805 61,Day Opportunities Services,R4000,Furniture & Equipment,
28/09/2022,60069535,6689861,69.54,Espo,RC502268,705 1805 61,Day Opportunities Services,R4000,Furniture & Equipment,
14/09/2022,60069115,G1218781,109.74,Espo (Gas),RC501573,705180561,Admin Buildings,R2101,Gas,
14/09/2022,60069116,G1218782,199.52,Espo (Gas),RC501573,705180561,Oakham Castle,R2101,Gas,
14/09/2022,60069117,G1218783,110.27,Espo (Gas),RC501573,705180561,Libraries,R2101,Gas,
14/09/2022,60069118,G1218784,53.63,Espo (Gas),RC501573,705180561,Early Intervention Youth Services,R2101,Gas,
14/09/2022,60069119,G1218785,410.13,Espo (Gas),RC501573,705180561,Admin Buildings,R2101,Gas,
14/09/2022,60069120,G1218786,342.58,Espo (Gas),RC501573,705180561,Museums Service,R2101,Gas,
14/09/2022,60069121,G1218788,1092.6,Espo (Gas),RC501573,705180561,Oakham Enterprise Park,R2101,Gas,
14/09/2022,60069122,G1218789,347.6,Espo (Gas),RC501573,705180561,The King Centre,R2101,Gas,
01/09/2022,60068688,EFW214755 - 24/08/22,149.35,Everflow Limited,RC301184,216493600,The King Centre,R2401,Water Services,
18/09/2022,60069172,EFW214755-0 18/9/22,164.01,Everflow Limited,RC301184,216493600,The King Centre,R2401,Water Services,
01/09/2022,60068214,825060,7324.53,FCC Recycling (UK) Ltd,RC502258,637 8808 92,Waste Management,R5021,TPP - Waste Disposal,
01/09/2022,60068337,825489,40039.75,FCC Recycling (UK) Ltd,RC502258,637 8808 92,Waste Management,R5021,TPP - Waste Disposal,
01/09/2022,60068524,825919,3326.6,FCC Recycling (UK) Ltd,RC502258,637 8808 92,Waste Management,R5021,TPP - Waste Disposal,
07/09/2022,60068885,827032,35885.63,FCC Recycling (UK) Ltd,RC502258,637 8808 92,Waste Management,R5021,TPP - Waste Disposal,
07/09/2022,60068956,SI6493,2343.29,FCC Recycling (UK) Ltd,RC502258,637 8808 92,Waste Management,R5021,TPP - Waste Disposal,
09/09/2022,60069048,MI142637,3769,FCC Recycling (UK) Ltd,RC502258,637 8808 92,Waste Management,R5021,TPP - Waste Disposal,
22/09/2022,3762146,Redacted Personal Data,162,Fenland District Council,RC302155,,Care Leavers,R6292,Section 24 Payments,
10/09/2022,60069050,SI-706,8400,Fiesta Sports Coaching,RC301836,,Section 31 Holiday Activities and Food,R4401,Fees and Charges,
01/09/2022,60068757,135769,42.35,Firemark Ltd,RC508582,923492910,Oakham Enterprise Park Service Chargeable Expenditure,R2004,R & M - Programmed,
01/09/2022,60068758,135770,50.51,Firemark Ltd,RC508582,923492910,Oakham Enterprise Park Service Chargeable Expenditure,R2004,R & M - Programmed,
05/09/2022,60068817,UK154448,1436.4,Flowbird Smart City UK Ltd,RC301556,GB821077453,Parking,R5017,TPP - Other,
23/09/2022,60069479,UK155242,143,Flowbird Smart City UK Ltd,RC301556,GB821077453,Parking,R5017,TPP - Other,
16/09/2022,60069240,29 - 16/9/22,360,Fox Taxis,RC501652,,SEN Transport,R3207,Transport Contract,
16/09/2022,60069241,31 - 16/9/22,1410,Fox Taxis,RC501652,,SEN Transport,R3207,Transport Contract,
04/09/2022,60068955,OCH006,100,Future OAK Ltd,RC301928,,Section 31 Holiday Activities and Food,R4401,Fees and Charges,
,60068664,539,5617.5,Futures in Mind Ltd,RC301653,,SEN Operations,R4400,Professional Fees,
01/09/2022,60067675,INV-0846,100,G D Sleath Electronics Ltd,RC508495,775 4891 75,The King Centre,R2003,R & M - Emergency Works,
01/09/2022,60068533,107280,1246.05,G2 Recruitment Limited - a division of G2V Recruitment Group Limited,RC300732,182 8193 83,Revenues,R1100,Agency Staff,
01/09/2022,60068534,107281,1215,G2 Recruitment Limited - a division of G2V Recruitment Group Limited,RC300732,182 8193 83,Community Care Finance,R1100,Agency Staff,
01/09/2022,60068628,107705,1298.7,G2 Recruitment Limited - a division of G2V Recruitment Group Limited,RC300732,182 8193 83,Revenues,R1100,Agency Staff,
01/09/2022,60068629,107706,1221.12,G2 Recruitment Limited - a division of G2V Recruitment Group Limited,RC300732,182 8193 83,Community Care Finance,R1100,Agency Staff,
07/09/2022,60068879,108189,1017,G2 Recruitment Limited - a division of G2V Recruitment Group Limited,RC300732,182 8193 83,Community Care Finance,R1100,Agency Staff,
07/09/2022,60068880,108188,456.3,G2 Recruitment Limited - a division of G2V Recruitment Group Limited,RC300732,182 8193 83,Revenues,R1100,Agency Staff,
14/09/2022,60069160,108577,1325.03,G2 Recruitment Limited - a division of G2V Recruitment Group Limited,RC300732,182 8193 83,Revenues,R1100,Agency Staff,
14/09/2022,60069161,108578,1202.76,G2 Recruitment Limited - a division of G2V Recruitment Group Limited,RC300732,182 8193 83,Community Care Finance,R1100,Agency Staff,
21/09/2022,60069350,108925,1263.6,G2 Recruitment Limited - a division of G2V Recruitment Group Limited,RC300732,182 8193 83,Revenues,R1100,Agency Staff,
21/09/2022,60069351,108926,1213.56,G2 Recruitment Limited - a division of G2V Recruitment Group Limited,RC300732,182 8193 83,Community Care Finance,R1100,Agency Staff,
28/09/2022,60069549,109379,1184.63,G2 Recruitment Limited - a division of G2V Recruitment Group Limited,RC300732,182 8193 83,Revenues,R1100,Agency Staff,
28/09/2022,60069550,109380,993.96,G2 Recruitment Limited - a division of G2V Recruitment Group Limited,RC300732,182 8193 83,Community Care Finance,R1100,Agency Staff,
01/09/2022,60068884,2022084118,52.24,G4S Cash Solutions UK Limited,RC301953,238560256,Corporate Financial Expenses,R4401,Fees and Charges,
05/09/2022,60068866,518,360,Gail Justice Drama Therapist,RC302019,,SEN Funding Other,R5017,TPP - Other,
01/09/2022,60069130,13740,1505.74,George Walker Tree Care Ltd,RC501703,566 0980 16,Amenity Grass (Urban Grass & Public Open Spaces),R2076,Grounds Maintenance - Non Contract,
01/09/2022,60069414,13738,7766.17,George Walker Tree Care Ltd,RC501703,566 0980 16,Forestry Maintenance,R5009,TPP - Highway`s,
01/09/2022,3761541,Redacted Personal Data,61.22,Redacted Personal Data,RC301765,,Care Leavers,R6292,Section 24 Payments,
08/09/2022,3761736,Redacted Personal Data,61.22,Redacted Personal Data,RC301765,,Care Leavers,R6292,Section 24 Payments,
15/09/2022,3762037,Redacted Personal Data,61.22,Redacted Personal Data,RC301765,,Care Leavers,R6292,Section 24 Payments,
22/09/2022,3762152,Redacted Personal Data,61.22,Redacted Personal Data,RC301765,,Care Leavers,R6292,Section 24 Payments,
29/09/2022,3762356,Redacted Personal Data,61.22,Redacted Personal Data,RC301765,,Care Leavers,R6292,Section 24 Payments,
06/09/2022,60068823,1584,8404,GHM Planning Limited,RC301996,855590787,Development Control,R1100,Agency Staff,
01/09/2022,60068929,1574,7949,GHM Planning Limited,RC301996,855590787,Development Control,R1100,Agency Staff,
01/09/2022,3761611,Redacted Personal Data,6046.5,Redacted Personal Data,RC302043,,SEN Funding EOTAS & Tuition,R6280,Direct Payments,
01/09/2022,60069290,INV-94094,150,Global Mediation Ltd,RC508789,740 3623 59,SEN Operations,R4400,Professional Fees,
16/09/2022,60069168,30130780,12605,Grant Thornton UK LLP,RC506156,835 5861 02,External Audit & Inspection,R4404,Audit Fees,
,60069043,GRSI 18,10513,Greenfields Academy,RC508944,,SEN Funding Maintained Schools and Academies,R5011,TPP - Local Authorities,
01/09/2022,60069061,177939,204.4,Greenline Service & Supplies Ltd,RC501732,610 5559 61,Transport Fleet,R4201,Uniforms,
11/09/2022,60069270,042/2223,89,Greetham Community Centre,RC505312,,Aiming High,R2201,Room Hire,
11/09/2022,60069271,043/2223,188,Greetham Community Centre,RC505312,,Aiming High,R2201,Room Hire,
06/09/2022,60068949,RCCSPORT,208.33,Greetham Valley Golf Club Ltd,RC501734,690 4849 01,Recreation and Leisure,R4401,Fees and Charges,
01/09/2022,60068589,9977,166.25,Gregory's of Leeds,RC302117,355670873,Museum Trading Account,R4318,Goods For Resale,
,60068549,Redacted Personal Data,195,Redacted Personal Data,RC301867,,Aiming High,R4400,Professional Fees,
,60068768,Redacted Personal Data,250,Redacted Personal Data,RC301867,,Aiming High,R4400,Professional Fees,
16/09/2022,60069287,INV-0264,19631.28,Hardwick House,RC300218,,SEN Funding - Independent Special Schools,R5017,TPP - Other,
15/09/2022,3762120,Redacted Personal Data,198.62,Redacted Personal Data,RC301909,,SEN Transport,R3200,Hire of Vehicles & Plant,
,3761652,45900/7,3864,Redacted Personal Data,RC506747,,ASC S&R DPs PD,R6280,Direct Payments,
27/09/2022,3762444,46333/8,3864,Redacted Personal Data,RC506747,,ASC S&R DPs PD,R6280,Direct Payments,
,60068575,95,150,Redacted Personal Data,RC302170,,Section 31 Holiday Activities and Food,R4401,Fees and Charges,
15/09/2022,3762099,Redacted Personal Data,150,Helen Daft - Consultant in Social Care Ltd,RC301728,,Placements,R4400,Professional Fees,
,60068744,51,500,Helen O'Grady Drama Academy,RC302177,,Section 31 Holiday Activities and Food,R4401,Fees and Charges,
01/09/2022,60068724,INV-2596,310.68,Hill-fort Tree Care Ltd,RC302175,,Forestry Maintenance,R5009,TPP - Highway`s,
13/09/2022,3761970,Aug 2022Apprenticeship Levy GL,5496,HM Revenue & Customs,RC502557,,External Levies,R5013,TPP - Government Departments,
13/09/2022,3761983,Aug 2022Apprenticeship Levy Rebate,-1250,HM Revenue & Customs,RC502557,,External Levies,R5013,TPP - Government Departments,
,3761706,45900/61,276,Redacted Personal Data,RC300650,,ASC S&R DPs MH,R6280,Direct Payments,
27/09/2022,3762499,46333/63,276,Redacted Personal Data,RC300650,,ASC S&R DPs MH,R6280,Direct Payments,
05/09/2022,3761843,45969/45,2296.52,Holme Lodge,RC300450,,Physical Disability,R5028,TPP - Residental Care,
21/09/2022,3762266,46133/48,2296.52,Holme Lodge,RC300450,,Physical Disability,R5028,TPP - Residental Care,
,60068564,340,458.25,Home Straight Partnership Ltd,RC508404,,ASC S&R Homecare OP,R5029,TPP - Home Care,
04/09/2022,60069415,341,516.75,Home Straight Partnership Ltd,RC508404,,ASC S&R Homecare OP,R5029,TPP - Home Care,
12/09/2022,60069416,342,468,Home Straight Partnership Ltd,RC508404,,ASC S&R Homecare OP,R5029,TPP - Home Care,
18/09/2022,60069417,343,468,Home Straight Partnership Ltd,RC508404,,ASC S&R Homecare OP,R5029,TPP - Home Care,
01/09/2022,60068827,24673,15001.5,Horizon Care & Education Group Ltd,RC502356,284410509,Placements,R5017,TPP - Other,
06/09/2022,60068829,S123687,1569,Horizon Specialist Contracting Ltd,RC505965,610 6134 88,Central Maintenance,R2003,R & M - Emergency Works,
01/09/2022,60069268,CP-RUT005,2635,Housing Partners Ltd,RC300542,834 8582 94,Homelessness,R5016,TPP - Private Contractors,
13/09/2022,3761984,Redacted Personal Data,2200,Hudson Homes Estate Agent Ltd,RC302193,,Children Looked After,R4900,Accommodation Costs,
01/09/2022,60068728,28676,232.75,Hunter Gatherer AHP Resourcing Limited,RC302146,,Hospital Discharge and Therapy,R1100,Agency Staff,
07/09/2022,60068873,29030,330.75,Hunter Gatherer AHP Resourcing Limited,RC302146,,Hospital Discharge and Therapy,R1100,Agency Staff,
14/09/2022,60069158,29424,551.25,Hunter Gatherer AHP Resourcing Limited,RC302146,,Hospital Discharge and Therapy,R1100,Agency Staff,
22/09/2022,60069375,29839,551.25,Hunter Gatherer AHP Resourcing Limited,RC302146,,Hospital Discharge and Therapy,R1100,Agency Staff,
28/09/2022,60069548,30204,330.75,Hunter Gatherer AHP Resourcing Limited,RC302146,,Hospital Discharge and Therapy,R1100,Agency Staff,
01/09/2022,60068635,HX8715,1567,Hydro-X Water Treatment Ltd,RC501824,436 6598 12,Central Maintenance,R2004,R & M - Programmed,
01/09/2022,60068636,HX8716,725,Hydro-X Water Treatment Ltd,RC501824,436 6598 12,Active Rutland Hub,R2004,R & M - Programmed,
01/09/2022,60068761,SI-119720,826.86,Ian Bryers Car & Commercial Repairs,RC502875,550 9095 37,Transport Fleet,R3004,Vehicle Maintenance,
01/09/2022,60068878,SI-119721,282.37,Ian Bryers Car & Commercial Repairs,RC502875,550 9095 37,Transport Fleet,R3004,Vehicle Maintenance,
26/09/2022,60069569,SI-119737,80,Ian Bryers Car & Commercial Repairs,RC502875,550 9095 37,Transport Fleet,R3004,Vehicle Maintenance,
27/09/2022,60069570,SI-119738,80,Ian Bryers Car & Commercial Repairs,RC502875,550 9095 37,Transport Fleet,R3004,Vehicle Maintenance,
27/09/2022,60069571,SI-119739,1391.35,Ian Bryers Car & Commercial Repairs,RC502875,550 9095 37,Transport Fleet,R3004,Vehicle Maintenance,
,60068630,IMAUJ-290822,1603.77,ICall Care,RC302020,,ASC S&R Homecare PD,R5029,TPP - Home Care,
,60068634,ISARB-290822,1850.99,ICall Care,RC302020,,ASC S&R Homecare PD,R5029,TPP - Home Care,
05/09/2022,60068850,IMAUJ-050922,1603.77,ICall Care,RC302020,,ASC S&R Homecare OP,R5029,TPP - Home Care,
05/09/2022,60068851,ISARB-050922,320.46,ICall Care,RC302020,,ASC S&R Homecare PD,R5029,TPP - Home Care,
12/09/2022,60069242,IMAUJ-120922,1719.46,ICall Care,RC302020,,ASC S&R Homecare OP,R5029,TPP - Home Care,
20/09/2022,60069308,IMAUJ-200922,1719.46,ICall Care,RC302020,,ASC S&R Homecare OP,R5029,TPP - Home Care,
20/09/2022,60069309,ISARB-200922,1878.99,ICall Care,RC302020,,ASC S&R Homecare PD,R5029,TPP - Home Care,
26/09/2022,60069463,IMAUJ-260922,1719.46,ICall Care,RC302020,,ASC S&R Homecare OP,R5029,TPP - Home Care,
12/09/2022,60069464,ISARB-120922,1878.99,ICall Care,RC302020,,ASC S&R Homecare PD,R5029,TPP - Home Care,
26/09/2022,60069465,ISARB-260922,1878.99,ICall Care,RC302020,,ASC S&R Homecare PD,R5029,TPP - Home Care,
01/09/2022,60068512,7039084,1500,Idox Software Ltd,RC506407,766 8008 04,IT Operational Support,R4534,Computing - Maintenance Agreements,
01/09/2022,60068537,7039120,30240,Idox Software Ltd,RC506407,766 8008 04,IT Operational Support,R4534,Computing - Maintenance Agreements,
28/09/2022,60069573,7039545,2482.8,Idox Software Ltd,RC506407,766 8008 04,Elections - Administration,R4400,Professional Fees,
01/09/2022,60068596,I487668,170.5,Iliffe Media Publishing Ltd,RC501920,261 6151 24,Highways Management,R4317,Non Staff Advertising,
01/09/2022,60068597,I487669,372,Iliffe Media Publishing Ltd,RC501920,261 6151 24,Highways Management,R4317,Non Staff Advertising,
01/09/2022,60068598,I487670,186,Iliffe Media Publishing Ltd,RC501920,261 6151 24,Highways Management,R4317,Non Staff Advertising,
01/09/2022,60068599,I487666,170.5,Iliffe Media Publishing Ltd,RC501920,261 6151 24,Highways Management,R4317,Non Staff Advertising,
01/09/2022,60068600,I487672,186,Iliffe Media Publishing Ltd,RC501920,261 6151 24,Highways Management,R4317,Non Staff Advertising,
01/09/2022,60068601,I487671,170.5,Iliffe Media Publishing Ltd,RC501920,261 6151 24,Capital Programme Places - Highways,C1010,Capital Fees & Charges,
01/09/2022,60068602,I487673,186,Iliffe Media Publishing Ltd,RC501920,261 6151 24,Highways Management,R4317,Non Staff Advertising,
01/09/2022,60068603,I487661,186,Iliffe Media Publishing Ltd,RC501920,261 6151 24,Highways Management,R4317,Non Staff Advertising,
01/09/2022,60068604,I487667,186,Iliffe Media Publishing Ltd,RC501920,261 6151 24,Highways Management,R4317,Non Staff Advertising,
01/09/2022,60068605,I487664,155,Iliffe Media Publishing Ltd,RC501920,261 6151 24,Capital Programme Places - Highways,C1010,Capital Fees & Charges,
01/09/2022,60068606,I487662,170.5,Iliffe Media Publishing Ltd,RC501920,261 6151 24,Highways Management,R4317,Non Staff Advertising,
01/09/2022,60068607,I487663,186,Iliffe Media Publishing Ltd,RC501920,261 6151 24,Highways Management,R4317,Non Staff Advertising,
01/09/2022,60068608,I487665,217,Iliffe Media Publishing Ltd,RC501920,261 6151 24,Capital Programme Places - Highways,C1010,Capital Fees & Charges,
01/09/2022,60068609,I487660,201.5,Iliffe Media Publishing Ltd,RC501920,261 6151 24,Highways Management,R4317,Non Staff Advertising,
01/09/2022,60068610,I487659,55.08,Iliffe Media Publishing Ltd,RC501920,261 6151 24,Development Control,R4515,Publicity,
04/09/2022,60068838,I489961,170.5,Iliffe Media Publishing Ltd,RC501920,261 6151 24,Capital Programme Places - Highways,C1010,Capital Fees & Charges,
04/09/2022,60068839,I489960,186,Iliffe Media Publishing Ltd,RC501920,261 6151 24,Highways Management,R4317,Non Staff Advertising,
04/09/2022,60068840,I489959,137.7,Iliffe Media Publishing Ltd,RC501920,261 6151 24,Development Control,R4515,Publicity,
11/09/2022,60069044,I492007,110.16,Iliffe Media Publishing Ltd,RC501920,261 6151 24,Development Control,R4515,Publicity,
11/09/2022,60069045,I492009,186,Iliffe Media Publishing Ltd,RC501920,261 6151 24,Highways Management,R4317,Non Staff Advertising,
11/09/2022,60069046,I492010,170.5,Iliffe Media Publishing Ltd,RC501920,261 6151 24,Highways Management,R4317,Non Staff Advertising,
18/09/2022,60069334,I494144,91.8,Iliffe Media Publishing Ltd,RC501920,261 6151 24,Development Control,R4515,Publicity,
18/09/2022,60069335,I494145,217,Iliffe Media Publishing Ltd,RC501920,261 6151 24,Capital Programme Places - Highways,C1010,Capital Fees & Charges,
25/09/2022,60069466,I496199,91.8,Iliffe Media Publishing Ltd,RC501920,261 6151 24,Development Control,R4515,Publicity,
25/09/2022,60069470,I496203,186,Iliffe Media Publishing Ltd,RC501920,261 6151 24,Highways Management,R4317,Non Staff Advertising,
25/09/2022,60069471,I496204,155,Iliffe Media Publishing Ltd,RC501920,261 6151 24,Capital Programme Places - Highways,C1010,Capital Fees & Charges,
01/09/2022,60068835,INV0000005599,382.5,Imperial Civil Enforcement Solutions Ltd,RC501321,794 3960 79,Parking,R5017,TPP - Other,
22/09/2022,3762216,Redacted Personal Data,400,Redacted Personal Data,RC301566,,Aiming High,R4400,Professional Fees,
12/09/2022,60069047,INV0775,3750,Ingham Pinnock Associates,RC302139,GV 136 3346 23,Heritage Projects,R4400,Professional Fees,
09/09/2022,60068966,34430857,52.14,Initial Washroom Solutions,RC501850,209 9189 33,Active Rutland Hub,R4000,Furniture & Equipment,
13/09/2022,60069110,34433530,98.02,Initial Washroom Solutions,RC501850,209 9189 33,The King Centre,R4000,Furniture & Equipment,
01/09/2022,60069294,17494,870.5,Instant Promotion (UK) Ltd,RC302064,906772605,Communication,R4515,Publicity,
01/09/2022,3761526,Redacted Personal Data,100,Redacted Personal Data,RC507010,,Care Leavers,R4900,Accommodation Costs,
01/09/2022,3761527,Redacted Personal Data,103.65,Redacted Personal Data,RC507010,,Care Leavers,R4900,Accommodation Costs,
08/09/2022,3761728,Redacted Personal Data,100,Redacted Personal Data,RC507010,,Care Leavers,R4900,Accommodation Costs,
08/09/2022,3761729,Redacted Personal Data,103.65,Redacted Personal Data,RC507010,,Care Leavers,R4900,Accommodation Costs,
15/09/2022,3762029,Redacted Personal Data,100,Redacted Personal Data,RC507010,,Care Leavers,R4900,Accommodation Costs,
15/09/2022,3762030,Redacted Personal Data,103.65,Redacted Personal Data,RC507010,,Care Leavers,R4900,Accommodation Costs,
22/09/2022,3762136,Redacted Personal Data,100,Redacted Personal Data,RC507010,,Care Leavers,R4900,Accommodation Costs,
22/09/2022,3762137,Redacted Personal Data,103.65,Redacted Personal Data,RC507010,,Care Leavers,R4900,Accommodation Costs,
29/09/2022,3762342,Redacted Personal Data,100,Redacted Personal Data,RC507010,,Care Leavers,R4900,Accommodation Costs,
29/09/2022,3762343,Redacted Personal Data,103.65,Redacted Personal Data,RC507010,,Care Leavers,R4900,Accommodation Costs,
,3761649,45900/4,138,Redacted Personal Data,RC506917,,Carer Support,R6280,Direct Payments,
27/09/2022,3762441,46333/5,138,Redacted Personal Data,RC506917,,Carer Support,R6280,Direct Payments,
,60068759,102,375,Redacted Personal Data,RC302059,,SEN Funding Other,R5017,TPP - Other,
01/09/2022,3761528,Redacted Personal Data,100,Redacted Personal Data,RC301144,,Care Leavers,R4900,Accommodation Costs,
01/09/2022,3761529,Redacted Personal Data,103.65,Redacted Personal Data,RC301144,,Care Leavers,R4900,Accommodation Costs,
01/09/2022,3761556,Redacted Personal Data,206,Redacted Personal Data,RC301144,,Placements,R5017,TPP - Other,
01/09/2022,3761572,Redacted Personal Data,218.81,Redacted Personal Data,RC301144,,Placements,R5017,TPP - Other,
08/09/2022,3761730,Redacted Personal Data,100,Redacted Personal Data,RC301144,,Care Leavers,R4900,Accommodation Costs,
08/09/2022,3761731,Redacted Personal Data,103.65,Redacted Personal Data,RC301144,,Care Leavers,R4900,Accommodation Costs,
08/09/2022,3761745,Redacted Personal Data,206,Redacted Personal Data,RC301144,,Placements,R5017,TPP - Other,
08/09/2022,3761761,Redacted Personal Data,218.81,Redacted Personal Data,RC301144,,Placements,R5017,TPP - Other,
15/09/2022,3762031,Redacted Personal Data,100,Redacted Personal Data,RC301144,,Care Leavers,R4900,Accommodation Costs,
15/09/2022,3762032,Redacted Personal Data,103.65,Redacted Personal Data,RC301144,,Care Leavers,R4900,Accommodation Costs,
15/09/2022,3762045,Redacted Personal Data,206,Redacted Personal Data,RC301144,,Placements,R5017,TPP - Other,
15/09/2022,3762061,Redacted Personal Data,218.81,Redacted Personal Data,RC301144,,Placements,R5017,TPP - Other,
22/09/2022,3762138,Redacted Personal Data,100,Redacted Personal Data,RC301144,,Care Leavers,R4900,Accommodation Costs,
22/09/2022,3762139,Redacted Personal Data,103.65,Redacted Personal Data,RC301144,,Care Leavers,R4900,Accommodation Costs,
22/09/2022,3762165,Redacted Personal Data,206,Redacted Personal Data,RC301144,,Placements,R5017,TPP - Other,
22/09/2022,3762181,Redacted Personal Data,218.81,Redacted Personal Data,RC301144,,Placements,R5017,TPP - Other,
29/09/2022,3762344,Redacted Personal Data,100,Redacted Personal Data,RC301144,,Care Leavers,R4900,Accommodation Costs,
29/09/2022,3762345,Redacted Personal Data,103.65,Redacted Personal Data,RC301144,,Care Leavers,R4900,Accommodation Costs,
29/09/2022,3762375,Redacted Personal Data,206,Redacted Personal Data,RC301144,,Placements,R5017,TPP - Other,
29/09/2022,3762392,Redacted Personal Data,218.81,Redacted Personal Data,RC301144,,Placements,R5017,TPP - Other,
21/09/2022,60069354,256044,770,James Andrews Recruitment Solutions,RC302195,976026696,Housing Options Team,R1100,Agency Staff,
21/09/2022,60069355,256045,1050,James Andrews Recruitment Solutions,RC302195,976026696,Housing Options Team,R1100,Agency Staff,
,3761647,45900/2,184,Redacted Personal Data,RC506150,,Carer Support,R6280,Direct Payments,
27/09/2022,3762438,46333/2,184,Redacted Personal Data,RC506150,,Carer Support,R6280,Direct Payments,
01/09/2022,60068831,406021,3600,Jay Fostering Limited,RC501901,,UASC 16-17,R4900,Accommodation Costs,
01/09/2022,60068833,406041,3112,Jay Fostering Limited,RC501901,,Placements,R5017,TPP - Other,
01/09/2022,60068834,406040,3292.89,Jay Fostering Limited,RC501901,,Placements,R5017,TPP - Other,
01/09/2022,60068760,27982313,926.2,JCS Online Resources,RC508982,104 2059 64,Libraries,R4701,Subscriptions,
05/09/2022,60068802,203628,413.33,Jensen Fire & Security Systems Ltd,RC300385,313 1103 33,The King Centre,R2004,R & M - Programmed,
,60068652,14,495,JFrostPlayTherapy,RC301930,,SEN Recovery Plan Expenditure,R4400,Professional Fees,
30/09/2022,60069495,19,1875,JFrostPlayTherapy,RC301930,,SEN Recovery Plan Expenditure,R4400,Professional Fees,
,60068563,30,240,Redacted Personal Data,RC509375,,Leisure and Health,R4401,Fees and Charges,
01/09/2022,60068796,INV-1891,7815,Johns Associates Ltd,RC302086,901 0054 93,Local Plan (Started 2021-22),R4400,Professional Fees,
01/09/2022,3761555,Redacted Personal Data,206,Redacted Personal Data,RC301960,,Placements,R5017,TPP - Other,
01/09/2022,3761571,Redacted Personal Data,124.74,Redacted Personal Data,RC301960,,Placements,R5017,TPP - Other,
08/09/2022,3761744,Redacted Personal Data,206,Redacted Personal Data,RC301960,,Placements,R5017,TPP - Other,
08/09/2022,3761760,Redacted Personal Data,124.74,Redacted Personal Data,RC301960,,Placements,R5017,TPP - Other,
15/09/2022,3762044,Redacted Personal Data,206,Redacted Personal Data,RC301960,,Placements,R5017,TPP - Other,
15/09/2022,3762060,Redacted Personal Data,124.74,Redacted Personal Data,RC301960,,Placements,R5017,TPP - Other,
22/09/2022,3762128,Redacted Personal Data,93.6,Redacted Personal Data,RC301960,,Placements,R5017,TPP - Other,
22/09/2022,3762129,Redacted Personal Data,18.15,Redacted Personal Data,RC301960,,Placements,R5017,TPP - Other,
22/09/2022,3762130,Redacted Personal Data,60,Redacted Personal Data,RC301960,,Placements,R5017,TPP - Other,
22/09/2022,3762164,Redacted Personal Data,206,Redacted Personal Data,RC301960,,Placements,R5017,TPP - Other,
22/09/2022,3762180,Redacted Personal Data,124.74,Redacted Personal Data,RC301960,,Placements,R5017,TPP - Other,
29/09/2022,3762366,Redacted Personal Data,15,Redacted Personal Data,RC301960,,Placements,R6291,Section 23 Payments,
29/09/2022,3762374,Redacted Personal Data,206,Redacted Personal Data,RC301960,,Placements,R5017,TPP - Other,
29/09/2022,3762391,Redacted Personal Data,124.74,Redacted Personal Data,RC301960,,Placements,R5017,TPP - Other,
29/09/2022,3762423,Redacted Personal Data,15,Redacted Personal Data,RC301960,,Placements,R6291,Section 23 Payments,
,3761679,45900/34,14154.29,Redacted Personal Data,RC509308,,ASC S&R DPs LD,R6280,Direct Payments,
27/09/2022,3762472,46333/36,12005.64,Redacted Personal Data,RC509308,,ASC S&R DPs LD,R6280,Direct Payments,
06/09/2022,60069068,501,571.07,JR Education Ltd t/a Meadow View Farm School,RC300789,,SEN Funding - Independent Special Schools,R5017,TPP - Other,
01/09/2022,3761591,Redacted Personal Data,206,Redacted Personal Data,RC502377,,Placements,R5017,TPP - Other,
08/09/2022,3761780,Redacted Personal Data,206,Redacted Personal Data,RC502377,,Placements,R5017,TPP - Other,
15/09/2022,3762080,Redacted Personal Data,206,Redacted Personal Data,RC502377,,Placements,R5017,TPP - Other,
22/09/2022,3762200,Redacted Personal Data,206,Redacted Personal Data,RC502377,,Placements,R5017,TPP - Other,
29/09/2022,3762412,Redacted Personal Data,206,Redacted Personal Data,RC502377,,Placements,R5017,TPP - Other,
,3761686,45900/41,506,Redacted Personal Data,RC507016,,Carer Support,R6280,Direct Payments,
27/09/2022,3762479,46333/43,506,Redacted Personal Data,RC507016,,Carer Support,R6280,Direct Payments,
,3761654,45900/9,156,Redacted Personal Data,RC508687,,ASC S&R DPs LD,R6280,Direct Payments,
27/09/2022,3762446,46333/10,156,Redacted Personal Data,RC508687,,ASC S&R DPs LD,R6280,Direct Payments,
15/09/2022,3762109,Redacted Personal Data,209.86,Redacted Personal Data,RC300200,,SEN Transport,R3200,Hire of Vehicles & Plant,
01/09/2022,3761563,Redacted Personal Data,143.95,Redacted Personal Data,RC301658,,Placements,R5017,TPP - Other,
08/09/2022,3761752,Redacted Personal Data,143.95,Redacted Personal Data,RC301658,,Placements,R5017,TPP - Other,
15/09/2022,3762052,Redacted Personal Data,143.95,Redacted Personal Data,RC301658,,Placements,R5017,TPP - Other,
22/09/2022,3762172,Redacted Personal Data,143.95,Redacted Personal Data,RC301658,,Placements,R5017,TPP - Other,
29/09/2022,3762383,Redacted Personal Data,143.95,Redacted Personal Data,RC301658,,Placements,R5017,TPP - Other,
08/09/2022,60068931,171031,85.75,Keltic,RC501956,754 0807 33,Parking,R4201,Uniforms,
15/09/2022,3761990,2 Year Funding -September 2022 Claim and August 2022 Adjustment,382.1,Ketton Playgroup,RC501972,,2 Year Old Nursery Funding,R5020,TPP - Nursery Provision,
15/09/2022,3762007,3 and 4 Year Funding - September 2022 Claim and August Adjustment,4712.89,Ketton Playgroup,RC501972,,3 & 4 Year Old Nursery Funding,R5020,TPP - Nursery Provision,
15/09/2022,3762008,3 and 4 Year Funding - September 2022 Claim and August Adjustment,2543.89,Ketton Road Day Nursery,RC501953,,3 & 4 Year Old Nursery Funding,R5020,TPP - Nursery Provision,
,60069058,37594,220,Key 2 Futures Ltd,RC506973,841 788494,UASC 16-17,R4900,Accommodation Costs,
01/09/2022,60069059,37828,1941.48,Key 2 Futures Ltd,RC506973,841 788494,UASC 16-17,R4900,Accommodation Costs,
01/09/2022,60069106,37833,1179.26,Key 2 Futures Ltd,RC506973,841 788494,Care Leavers,R4900,Accommodation Costs,
01/09/2022,60069107,37903,2593.15,Key 2 Futures Ltd,RC506973,841 788494,Care Leavers,R4900,Accommodation Costs,
01/09/2022,60069108,37904,2897.57,Key 2 Futures Ltd,RC506973,841 788494,Care Leavers,R4900,Accommodation Costs,
01/09/2022,60068584,SIKSA136,7557.92,Kingsley Special Academy Trust,RC507622,128 3755 01,SEN Funding Maintained Schools and Academies,R5011,TPP - Local Authorities,
05/09/2022,3761844,45970/46,5076.76,Kisimul Group Ltd,RC506920,,Learning Disability,R5028,TPP - Residental Care,
21/09/2022,3762267,46134/49,5076.76,Kisimul Group Ltd,RC506920,,Learning Disability,R5028,TPP - Residental Care,
,60068547,4 - KC AUG 2022,375,Kleena Windows,RC501990,,The King Centre,R2004,R & M - Programmed,
05/09/2022,60068847,5C,25,Kleena Windows,RC501990,,Children's Centres - Revenue,R2700,Contract Cleaning,
06/09/2022,60068948,INV111150,214.8,Knighton Janitorial Ltd,RC505319,799 6985 18,Admin Buildings,R4000,Furniture & Equipment,
05/09/2022,3761810,45919/12,1046,Kross Investments Ltd T/A Belton House Retirement Home,RC502319,,Older People,R5028,TPP - Residental Care,
05/09/2022,3761811,45919/13,1116,Kross Investments Ltd T/A Belton House Retirement Home,RC502319,,Mental Health,R5025,TPP - Short Term Care,
05/09/2022,3761812,45919/14,1116,Kross Investments Ltd T/A Belton House Retirement Home,RC502319,,Older People,R5028,TPP - Residental Care,
05/09/2022,3761813,45919/15,1116,Kross Investments Ltd T/A Belton House Retirement Home,RC502319,,Older People,R5028,TPP - Residental Care,
05/09/2022,3761814,45919/16,1116,Kross Investments Ltd T/A Belton House Retirement Home,RC502319,,Older People,R5028,TPP - Residental Care,
05/09/2022,3761815,45919/17,1116,Kross Investments Ltd T/A Belton House Retirement Home,RC502319,,Older People,R5028,TPP - Residental Care,
05/09/2022,3761816,45919/18,2166.72,Kross Investments Ltd T/A Belton House Retirement Home,RC502319,,Older People,R5028,TPP - Residental Care,
05/09/2022,3761817,45919/19,1046,Kross Investments Ltd T/A Belton House Retirement Home,RC502319,,Older People,R5028,TPP - Residental Care,
05/09/2022,3761818,45919/20,1116,Kross Investments Ltd T/A Belton House Retirement Home,RC502319,,Older People,R5028,TPP - Residental Care,
05/09/2022,3761819,45919/21,1116,Kross Investments Ltd T/A Belton House Retirement Home,RC502319,,Older People,R5028,TPP - Residental Care,
21/09/2022,3762232,46108/14,1046,Kross Investments Ltd T/A Belton House Retirement Home,RC502319,,Older People,R5028,TPP - Residental Care,
21/09/2022,3762233,46108/15,1116,Kross Investments Ltd T/A Belton House Retirement Home,RC502319,,Mental Health,R5025,TPP - Short Term Care,
21/09/2022,3762234,46108/16,1116,Kross Investments Ltd T/A Belton House Retirement Home,RC502319,,Older People,R5028,TPP - Residental Care,
21/09/2022,3762235,46108/17,1116,Kross Investments Ltd T/A Belton House Retirement Home,RC502319,,Older People,R5028,TPP - Residental Care,
21/09/2022,3762236,46108/18,1116,Kross Investments Ltd T/A Belton House Retirement Home,RC502319,,Older People,R5028,TPP - Residental Care,
21/09/2022,3762237,46108/19,1116,Kross Investments Ltd T/A Belton House Retirement Home,RC502319,,Older People,R5028,TPP - Residental Care,
21/09/2022,3762238,46108/20,1046,Kross Investments Ltd T/A Belton House Retirement Home,RC502319,,Older People,R5028,TPP - Residental Care,
21/09/2022,3762239,46108/21,1116,Kross Investments Ltd T/A Belton House Retirement Home,RC502319,,Older People,R5028,TPP - Residental Care,
21/09/2022,3762240,46108/22,1116,Kross Investments Ltd T/A Belton House Retirement Home,RC502319,,Older People,R5028,TPP - Residental Care,
21/09/2022,3762241,46108/23,3436.86,Kross Investments Ltd T/A Belton House Retirement Home,RC502319,,Older People,R5028,TPP - Residental Care,
,60068860,SI-1417,2166.72,Kross Investments Ltd T/A Belton House Retirement Home,RC502319,,Interim Beds (CCG),R5028,TPP - Residental Care,
15/09/2022,60069193,SCN-135,-1270.14,Kross Investments Ltd T/A Belton House Retirement Home,RC502319,,Interim Beds (CCG),R5028,TPP - Residental Care,
,60069194,SI-1435,2092,Kross Investments Ltd T/A Belton House Retirement Home,RC502319,,Interim Beds (CCG),R5028,TPP - Residental Care,
01/09/2022,3761612,Redacted Personal Data,3926.67,Redacted Personal Data,RC302093,,SEN Funding EOTAS & Tuition,R6280,Direct Payments,
15/09/2022,3761991,2 Year Funding -September 2022 Claim and August 2022 Adjustment,269.59,Langham Nursery,RC501101,,2 Year Old Nursery Funding,R5020,TPP - Nursery Provision,
15/09/2022,3762009,3 and 4 Year Funding - September 2022 Claim and August Adjustment,4817.99,Langham Nursery,RC501101,,3 & 4 Year Old Nursery Funding,R5020,TPP - Nursery Provision,
05/09/2022,3761881,45963/83,3488.26,Langley House Trust,RC300376,,Mental Health,R5028,TPP - Residental Care,
21/09/2022,3762307,46123/89,3488.26,Langley House Trust,RC300376,,Mental Health,R5028,TPP - Residental Care,
26/09/2022,60069444,Redacted Personal Data,69,Redacted Personal Data,RC508930,,Disabled Children,R6280,Direct Payments,
09/09/2022,60069237,8577,4136,Lawson's of Corby Ltd,RC506128,937 1394 07,Home to School Transport,R3207,Transport Contract,
09/09/2022,60069238,8578,1999.84,Lawson's of Corby Ltd,RC506128,937 1394 07,Home to School Transport,R3207,Transport Contract,
22/09/2022,3762131,Redacted Personal Data,278,Leicester City Council,RC502036,115 3370 04,Unaccompanied Asylum Seekers - Over 18,R6292,Section 24 Payments,
,60068505,89412096,3651.2,Leicester City Council,RC502036,115 3370 04,DOLS,R5011,TPP - Local Authorities,
22/09/2022,3762143,Redacted Personal Data,450,Leicester Lettings Ltd,RC506055,108245630,Care Leavers,R4900,Accommodation Costs,
22/09/2022,3762158,Redacted Personal Data,415,Leicester Lettings Ltd,RC506055,108245630,Unaccompanied Asylum Seekers - Over 18,R4900,Accommodation Costs,
,60068572,5408,170,Leicester LGBT Centre,RC301107,,Early Intervention Youth Services,R4401,Fees and Charges,
05/09/2022,3761845,45971/47,1276,Leicestershire County Care Ltd,RC509037,,Older People,R5028,TPP - Residental Care,
21/09/2022,3762268,46135/50,1276,Leicestershire County Care Ltd,RC509037,,Older People,R5028,TPP - Residental Care,
,60068368,100103759,2785.9,Leicestershire County Council (Treasurers Dept),RC502058,115 3371 02,Crime And Disorder,R5011,TPP - Local Authorities,
01/09/2022,60068460,100132664,340,Leicestershire County Council (Treasurers Dept),RC502058,115 3371 02,ASC Support and Review Staffing,R1700,Staff Advertising Costs,
07/09/2022,60069010,100136626,1780,Leicestershire County Council (Treasurers Dept),RC502058,115 3371 02,School Sports Activities,R5011,TPP - Local Authorities,
,60069428,5001279,1937.85,Leicestershire Fire & Rescue Service,RC300826,,Section 31 Holiday Activities and Food,R4401,Fees and Charges,
,60068632,53737,211234.15,Leicestershire Partnership Nhs Trust,RC502063,654 9698 72,Public Health Commissioning 0-19,R5012,TPP - Health Authorities,
13/09/2022,3761921,September 2022 dripfeed - High Needs Block Allocation,1063.62,Leighfield Academy,RC507697,,SEN Funding Maintained Schools and Academies,R6300,Schools - Budget Share,
13/09/2022,3761922,September 2022 dripfeed - Element 3 top up funding - no EHCP,3945.8,Leighfield Academy,RC507697,,Education Otherwise,R5022,TPP - Schools & Colleges,
01/09/2022,60065611,10144240,1416.2,Lincolnshire County Council,RC502090,129 3923 55,SEN Operations,R1100,Agency Staff,
20/09/2022,60069300,10150267,22938.5,Lincolnshire County Council,RC502090,129 3923 55,Adoption,R5011,TPP - Local Authorities,
01/09/2022,60068917,P0000450,132,Lincs Community Health Services NHST,RC508052,654 4409 75,Sexual Health,R5017,TPP - Other,
01/09/2022,60068918,P0000471,264,Lincs Community Health Services NHST,RC508052,654 4409 75,Sexual Health,R5017,TPP - Other,
08/09/2022,3761798,Redacted Personal Data,600,Redacted Personal Data,RC302185,,Aiming High,R4400,Professional Fees,
29/09/2022,3762436,Redacted Personal Data,400,Redacted Personal Data,RC302185,,Aiming High,R4400,Professional Fees,
20/09/2022,60069436,LHS - 20721,240,LionHart Security Services Limited,RC301165,322 8636 04,Oakham Castle,R4400,Professional Fees,
01/09/2022,60068932,559560,1512,Liquid Personnel Ltd,RC302142,,ASC Support and Review Staffing,R1100,Agency Staff,
01/09/2022,60068933,560931,1554,Liquid Personnel Ltd,RC302142,,DOLS,R1100,Agency Staff,
01/09/2022,60068934,560932,1554,Liquid Personnel Ltd,RC302142,,DOLS,R1100,Agency Staff,
01/09/2022,60068935,562435,1554,Liquid Personnel Ltd,RC302142,,ASC Support and Review Staffing,R1100,Agency Staff,
01/09/2022,60068936,562436,1512,Liquid Personnel Ltd,RC302142,,ASC Support and Review Staffing,R1100,Agency Staff,
01/09/2022,60068937,563788,1426.95,Liquid Personnel Ltd,RC302142,,ASC Support and Review Staffing,R1100,Agency Staff,
01/09/2022,60068938,565136,1554,Liquid Personnel Ltd,RC302142,,DOLS,R1100,Agency Staff,
01/09/2022,60068939,566312,1554,Liquid Personnel Ltd,RC302142,,DOLS,R1100,Agency Staff,
01/09/2022,60068940,567521,1554,Liquid Personnel Ltd,RC302142,,DOLS,R1100,Agency Staff,
08/09/2022,60068941,568698,1239,Liquid Personnel Ltd,RC302142,,DOLS,R1100,Agency Staff,
14/09/2022,60069265,569972,1260,Liquid Personnel Ltd,RC302142,,DOLS,R1100,Agency Staff,
21/09/2022,60069379,571169,924,Liquid Personnel Ltd,RC302142,,DOLS,R1100,Agency Staff,
01/09/2022,60068561,32478,39424.67,Liquidlogic,RC508957,927 4382 06,IT Operational Support,R4534,Computing - Maintenance Agreements,
01/09/2022,60068562,32479,43801.09,Liquidlogic,RC508957,927 4382 06,IT Operational Support,R4534,Computing - Maintenance Agreements,
15/09/2022,3761992,2 Year Funding -September 2022 Claim and August 2022 Adjustment,823.47,Little Angels Uppingham Ltd,RC505798,,2 Year Old Nursery Funding,R5020,TPP - Nursery Provision,
15/09/2022,3762010,3 and 4 Year Funding - September 2022 Claim and August Adjustment,11879.34,Little Angels Uppingham Ltd,RC505798,,3 & 4 Year Old Nursery Funding,R5020,TPP - Nursery Provision,
15/09/2022,3762006,3 and 4 Year Funding - September 2022 Claim and August Adjustment,2640.26,Little Ospreys,RC501514,,3 & 4 Year Old Nursery Funding,R5020,TPP - Nursery Provision,
15/09/2022,3762012,3 and 4 Year Funding - September 2022 Claim and August Adjustment,4866.19,Little Saints,RC508480,,3 & 4 Year Old Nursery Funding,R5020,TPP - Nursery Provision,
14/09/2022,60069163,INV-0387,130,Local Registration Service Association,RC507154,985 2223 06,Registration Service,R4401,Fees and Charges,
14/09/2022,60069164,INV-0388,130,Local Registration Service Association,RC507154,985 2223 06,Registration Service,R4401,Fees and Charges,
01/09/2022,60069399,INV-26627,300,Locate Accommodation Ltd,RC301793,737619993,Unaccompanied Asylum Seekers - Over 18,R4400,Professional Fees,
01/09/2022,60069400,INV-26628,614,Locate Accommodation Ltd,RC301793,737619993,UASC 16-17,R4400,Professional Fees,
01/09/2022,60069401,INV-26629,564.86,Locate Accommodation Ltd,RC301793,737619993,UASC 16-17,R4400,Professional Fees,
01/09/2022,60069402,INV-26630,146.09,Locate Accommodation Ltd,RC301793,737619993,UASC 16-17,R4400,Professional Fees,
01/09/2022,60069403,INV-26664,1574.03,Locate Accommodation Ltd,RC301793,737619993,UASC 16-17,R6293,Asylum Seekers Allowance,
01/09/2022,60069404,INV-26665,1590.46,Locate Accommodation Ltd,RC301793,737619993,Unaccompanied Asylum Seekers - Over 18,R6293,Asylum Seekers Allowance,
01/09/2022,60069405,INV-26666,1723.23,Locate Accommodation Ltd,RC301793,737619993,UASC 16-17,R6293,Asylum Seekers Allowance,
01/09/2022,60069406,INV-26667,1590.46,Locate Accommodation Ltd,RC301793,737619993,UASC 16-17,R6293,Asylum Seekers Allowance,
01/09/2022,60068764,SINVFT00016886,2439.98,Longhurst Group Ltd,RC502529,326027036,BCF: Assistive Technology,R4401,Fees and Charges,
01/09/2022,60068765,SINVFT00016887,4416.25,Longhurst Group Ltd,RC502529,326027036,"OT's, Aids & Equipment",R5017,TPP - Other,
08/09/2022,60069182,SINVFT00017172,4738.8,Longhurst Group Ltd,RC502529,326027036,"OT's, Aids & Equipment",R4000,Furniture & Equipment,
05/09/2022,3761846,45972/48,1027.94,Longueville Court Care Home,RC509439,,Older People,R5034,TPP - Nursing Care,
21/09/2022,3762269,46136/51,1027.94,Longueville Court Care Home,RC509439,,Older People,R5034,TPP - Nursing Care,
,3761691,45900/46,1725.42,Redacted Personal Data,RC506457,,ASC S&R DPs PD,R6280,Direct Payments,
27/09/2022,3762484,46333/48,1518.42,Redacted Personal Data,RC506457,,ASC S&R DPs PD,R6280,Direct Payments,
15/09/2022,3762121,Redacted Personal Data,190.26,Redacted Personal Data,RC302099,,SEN Transport,R3200,Hire of Vehicles & Plant,
15/09/2022,3762125,Redacted Personal Data,248.73,Redacted Personal Data,RC507974,,SEN Transport,R3200,Hire of Vehicles & Plant,
09/09/2022,60068921,Redacted Personal Data,475,Redacted Personal Data,RC302189,,Home to School Transport,R3207,Transport Contract,
15/09/2022,3762024,3 and 4 Year Funding - September 2022 Claim and August Adjustment,713.06,Redacted Personal Data,RC508806,,3 & 4 Year Old Nursery Funding,R5020,TPP - Nursery Provision,
01/09/2022,60068644,111216,481.93,Macildowie Associates Limited,RC300706,694 2566 96,Finance,R1100,Agency Staff,
01/09/2022,60068645,111218,1476,Macildowie Associates Limited,RC300706,694 2566 96,Finance,R1100,Agency Staff,
01/09/2022,60068646,111217,1107,Macildowie Associates Limited,RC300706,694 2566 96,Finance,R1100,Agency Staff,
04/09/2022,60068830,111329,1476,Macildowie Associates Limited,RC300706,694 2566 96,Finance,R1100,Agency Staff,
11/09/2022,60069060,111436,963.86,Macildowie Associates Limited,RC300706,694 2566 96,Finance,R1100,Agency Staff,
18/09/2022,60069352,111560,1445.79,Macildowie Associates Limited,RC300706,694 2566 96,Finance,R1100,Agency Staff,
18/09/2022,60069353,111561,1845,Macildowie Associates Limited,RC300706,694 2566 96,Finance,R1100,Agency Staff,
25/09/2022,60069505,111677,1445.79,Macildowie Associates Limited,RC300706,694 2566 96,Finance,R1100,Agency Staff,
25/09/2022,60069506,111678,1476,Macildowie Associates Limited,RC300706,694 2566 96,Finance,R1100,Agency Staff,
,60069510,76 - Aug 22,1000,Man & Van,RC509207,,Community Care Finance,R4401,Fees and Charges,
05/09/2022,3761847,45912/49,1116,Manton Hall (Foundation),RC502541,,Older People,R5028,TPP - Residental Care,
05/09/2022,3761848,45912/50,1116,Manton Hall (Foundation),RC502541,,Older People,R5028,TPP - Residental Care,
05/09/2022,3761849,45912/51,1046,Manton Hall (Foundation),RC502541,,Older People,R5028,TPP - Residental Care,
05/09/2022,3761850,45912/52,1116,Manton Hall (Foundation),RC502541,,Older People,R5028,TPP - Residental Care,
05/09/2022,3761851,45912/53,650,Manton Hall (Foundation),RC502541,,Older People,R5028,TPP - Residental Care,
05/09/2022,3761852,45912/54,1100,Manton Hall (Foundation),RC502541,,Older People,R5028,TPP - Residental Care,
05/09/2022,3761853,45912/55,558,Manton Hall (Foundation),RC502541,,Older People,R5028,TPP - Residental Care,
05/09/2022,3761854,45912/56,1116,Manton Hall (Foundation),RC502541,,Older People,R5028,TPP - Residental Care,
05/09/2022,3761855,45912/57,1116,Manton Hall (Foundation),RC502541,,Older People,R5028,TPP - Residental Care,
05/09/2022,3761856,45912/58,1046,Manton Hall (Foundation),RC502541,,Older People,R5028,TPP - Residental Care,
05/09/2022,3761857,45912/59,1116,Manton Hall (Foundation),RC502541,,Older People,R5028,TPP - Residental Care,
05/09/2022,3761858,45912/60,1116,Manton Hall (Foundation),RC502541,,Older People,R5028,TPP - Residental Care,
21/09/2022,3762270,46118/52,1116,Manton Hall (Foundation),RC502541,,Older People,R5028,TPP - Residental Care,
21/09/2022,3762271,46118/53,1116,Manton Hall (Foundation),RC502541,,Older People,R5028,TPP - Residental Care,
21/09/2022,3762272,46118/54,1046,Manton Hall (Foundation),RC502541,,Older People,R5028,TPP - Residental Care,
21/09/2022,3762273,46118/55,1116,Manton Hall (Foundation),RC502541,,Older People,R5028,TPP - Residental Care,
21/09/2022,3762274,46118/56,650,Manton Hall (Foundation),RC502541,,Older People,R5028,TPP - Residental Care,
21/09/2022,3762275,46118/57,5500.29,Manton Hall (Foundation),RC502541,,Older People,R5028,TPP - Residental Care,
21/09/2022,3762276,46118/58,5261.14,Manton Hall (Foundation),RC502541,,Older People,R5028,TPP - Residental Care,
21/09/2022,3762277,46118/59,3857.14,Manton Hall (Foundation),RC502541,,Older People,R5028,TPP - Residental Care,
21/09/2022,3762278,46118/60,1100,Manton Hall (Foundation),RC502541,,Older People,R5028,TPP - Residental Care,
21/09/2022,3762279,46118/61,558,Manton Hall (Foundation),RC502541,,Older People,R5028,TPP - Residental Care,
21/09/2022,3762280,46118/62,1116,Manton Hall (Foundation),RC502541,,Older People,R5028,TPP - Residental Care,
21/09/2022,3762281,46118/63,1116,Manton Hall (Foundation),RC502541,,Older People,R5028,TPP - Residental Care,
21/09/2022,3762282,46118/64,1046,Manton Hall (Foundation),RC502541,,Older People,R5028,TPP - Residental Care,
21/09/2022,3762283,46118/65,1116,Manton Hall (Foundation),RC502541,,Older People,R5028,TPP - Residental Care,
21/09/2022,3762284,46118/66,1116,Manton Hall (Foundation),RC502541,,Older People,R5028,TPP - Residental Care,
,60068900,506271,1434.86,Manton Hall (Foundation),RC502541,,Interim Beds (CCG),R5028,TPP - Residental Care,
01/09/2022,3761554,Redacted Personal Data,165,Redacted Personal Data,RC300814,,Placements,R5017,TPP - Other,
01/09/2022,3761570,Redacted Personal Data,218.81,Redacted Personal Data,RC300814,,Placements,R5017,TPP - Other,
08/09/2022,3761743,Redacted Personal Data,165,Redacted Personal Data,RC300814,,Placements,R5017,TPP - Other,
08/09/2022,3761759,Redacted Personal Data,218.81,Redacted Personal Data,RC300814,,Placements,R5017,TPP - Other,
15/09/2022,3762043,Redacted Personal Data,165,Redacted Personal Data,RC300814,,Placements,R5017,TPP - Other,
15/09/2022,3762059,Redacted Personal Data,218.81,Redacted Personal Data,RC300814,,Placements,R5017,TPP - Other,
22/09/2022,3762163,Redacted Personal Data,165,Redacted Personal Data,RC300814,,Placements,R5017,TPP - Other,
22/09/2022,3762179,Redacted Personal Data,218.81,Redacted Personal Data,RC300814,,Placements,R5017,TPP - Other,
29/09/2022,3762373,Redacted Personal Data,165,Redacted Personal Data,RC300814,,Placements,R5017,TPP - Other,
29/09/2022,3762390,Redacted Personal Data,218.81,Redacted Personal Data,RC300814,,Placements,R5017,TPP - Other,
01/09/2022,60067870,INV-0083,2927,Mark Bland Travel Ltd,RC502164,610 5787 48,Concessionary Travel,R6270,Concessionary fares,
01/09/2022,60068590,INV-0088,2927,Mark Bland Travel Ltd,RC502164,610 5787 48,Concessionary Travel,R6270,Concessionary fares,
01/09/2022,60068729,12384,765,Mark Bland Travel Ltd,RC502164,610 5787 48,Recreation and Leisure,R4400,Professional Fees,
01/09/2022,60068732,12541,122.95,Mark Bland Travel Ltd,RC502164,610 5787 48,Home to School Transport,R3207,Transport Contract,
01/09/2022,60068733,12546,149.5,Mark Bland Travel Ltd,RC502164,610 5787 48,Home to School Transport,R3207,Transport Contract,
01/09/2022,60068734,12545,288.75,Mark Bland Travel Ltd,RC502164,610 5787 48,Home to School Transport,R3207,Transport Contract,
01/09/2022,60068735,12537,2241.67,Mark Bland Travel Ltd,RC502164,610 5787 48,Public Transport,R5017,TPP - Other,
01/09/2022,60068736,12542,208.5,Mark Bland Travel Ltd,RC502164,610 5787 48,Home to School Transport,R3207,Transport Contract,
01/09/2022,60068737,12543,164.7,Mark Bland Travel Ltd,RC502164,610 5787 48,Home to School Transport,R3207,Transport Contract,
01/09/2022,60068738,12538,10995.83,Mark Bland Travel Ltd,RC502164,610 5787 48,Public Transport,R5017,TPP - Other,
01/09/2022,60068739,12540,304.5,Mark Bland Travel Ltd,RC502164,610 5787 48,Home to School Transport,R3207,Transport Contract,
01/09/2022,60068740,12539,505.8,Mark Bland Travel Ltd,RC502164,610 5787 48,Public Transport,R5017,TPP - Other,
01/09/2022,60068741,12544,299.25,Mark Bland Travel Ltd,RC502164,610 5787 48,Home to School Transport,R3207,Transport Contract,
,3761650,45900/5,253,Redacted Personal Data,RC506641,,ASC S&R DPs MH,R6280,Direct Payments,
27/09/2022,3762442,46333/6,253,Redacted Personal Data,RC506641,,ASC S&R DPs MH,R6280,Direct Payments,
01/09/2022,60068919,31744,4653.05,Mason Infotech Ltd,RC300408,209 4874 85,Telecommunications,R4505,Telephone Call charges,
01/09/2022,60069277,MTGI00133166,1739,Matchtech,RC301148,991 2571 00,Highways Management,R1100,Agency Staff,
01/09/2022,60069278,MTGI00133167,1739,Matchtech,RC301148,991 2571 00,Highways Management,R1100,Agency Staff,
01/09/2022,60069279,MTGI00133168,616,Matchtech,RC301148,991 2571 00,Highways Management,R1100,Agency Staff,
01/09/2022,60069280,MTGI00133169,188,Matchtech,RC301148,991 2571 00,Highways Management,R1100,Agency Staff,
01/09/2022,60069281,MTGI00133170,660,Matchtech,RC301148,991 2571 00,Highways Management,R1100,Agency Staff,
08/09/2022,60069282,MTGI00136100,1739,Matchtech,RC301148,991 2571 00,Highways Management,R1100,Agency Staff,
08/09/2022,60069283,MTGI00136101,638,Matchtech,RC301148,991 2571 00,Highways Management,R1100,Agency Staff,
15/09/2022,60069284,MTGI00137801,528,Matchtech,RC301148,991 2571 00,Highways Management,R1100,Agency Staff,
15/09/2022,60069285,MTGI00137802,1391.2,Matchtech,RC301148,991 2571 00,Highways Management,R1100,Agency Staff,
,3761671,45900/26,586.32,Redacted Personal Data,RC509296,,ASC S&R DPs LD,R6280,Direct Payments,
27/09/2022,3762464,46333/28,586.32,Redacted Personal Data,RC509296,,ASC S&R DPs LD,R6280,Direct Payments,
22/09/2022,3762153,Redacted Personal Data,102,Melton Borough Council,RC502186,115 3945 76,Care Leavers,R6292,Section 24 Payments,
,60068617,3179,1395,Melton Mowbray Mencap,RC502188,,Disabled Children,R4401,Fees and Charges,
,60069272,2868,155,Melton Mowbray Mencap,RC502188,,Disabled Children,R4401,Fees and Charges,
01/09/2022,60068335,45565,122.5,Melton Mowbray Tyre Recycling Centre,RC507527,970 505 131,Waste Management,R5021,TPP - Waste Disposal,
,60068223,450/08415,2891,Mental Health Matters,RC300461,,DOLS,R5017,TPP - Other,
01/09/2022,60069180,450/08473,2891,Mental Health Matters,RC300461,,DOLS,R5017,TPP - Other,
01/09/2022,60068647,210 - 27/08/2022,17.6,Mercury News Shop,RC502191,377 5866 89,Libraries,R4310,Newspapers and Magazines,
01/09/2022,60068649,11276 - 27/08/2022,135.88,Mercury News Shop,RC502191,377 5866 89,Prison Library Service - Stocken,R4310,Newspapers and Magazines,
24/09/2022,60069517,210 - 24/09/2022,18.5,Mercury News Shop,RC502191,377 5866 89,Libraries,R4310,Newspapers and Magazines,
24/09/2022,60069519,11276 - 24/09/2022,139.6,Mercury News Shop,RC502191,377 5866 89,Prison Library Service - Stocken,R4310,Newspapers and Magazines,
01/09/2022,60067934,SLS439758,365.08,MG Recycling Limited,RC301398,333 2986 91,Waste Management,R5021,TPP - Waste Disposal,
01/09/2022,60068117,SLS441747,317.5,MG Recycling Limited,RC301398,333 2986 91,Waste Management,R5021,TPP - Waste Disposal,
01/09/2022,60068621,SLS448238,388.87,MG Recycling Limited,RC301398,333 2986 91,Waste Management,R5021,TPP - Waste Disposal,
05/09/2022,60068804,SLS449419,324.82,MG Recycling Limited,RC301398,333 2986 91,Waste Management,R5021,TPP - Waste Disposal,
01/09/2022,3761593,Redacted Personal Data,121.08,Redacted Personal Data,RC508044,,Placements,R5017,TPP - Other,
08/09/2022,3761782,Redacted Personal Data,121.08,Redacted Personal Data,RC508044,,Placements,R5017,TPP - Other,
15/09/2022,3762082,Redacted Personal Data,121.08,Redacted Personal Data,RC508044,,Placements,R5017,TPP - Other,
22/09/2022,3762202,Redacted Personal Data,121.08,Redacted Personal Data,RC508044,,Placements,R5017,TPP - Other,
29/09/2022,3762414,Redacted Personal Data,121.08,Redacted Personal Data,RC508044,,Placements,R5017,TPP - Other,
06/09/2022,60068848,I0100767,804.17,Midlands Partnership NHS FT,RC508170,654441580,Sexual Health,R5017,TPP - Other,
,60068586,RCC0044,7156.7,Midlands Total Care Limited,RC301877,,ASC S&R Homecare OP,R5029,TPP - Home Care,
,60068620,RCC0045,6737.95,Midlands Total Care Limited,RC301877,,ASC S&R Homecare OP,R5029,TPP - Home Care,
20/09/2022,60069233,RCC0048,6244.27,Midlands Total Care Limited,RC301877,,ASC S&R Homecare OP,R5029,TPP - Home Care,
20/09/2022,60069235,RCC0047,6266.73,Midlands Total Care Limited,RC301877,,ASC S&R Homecare OP,R5029,TPP - Home Care,
09/09/2022,60069249,RCC0046,6894.75,Midlands Total Care Limited,RC301877,,ASC S&R Homecare OP,R5029,TPP - Home Care,
,60067960,269136,1287.84,MiHomecare limited,RC502617,,ASC S&R Homecare MH,R5029,TPP - Home Care,
05/09/2022,60068801,269226,1287.84,MiHomecare limited,RC502617,,ASC S&R Homecare MH,R5029,TPP - Home Care,
07/09/2022,60069231,Redacted Personal Data,44.74,Redacted Personal Data,RC302188,,Museums Service,R4318,Goods For Resale,
01/09/2022,60068523,58670,90,Millennium Telecom Ltd,RC508183,876312804,IT Operational Support,R4537,Computing - Internet,
01/09/2022,60069310,58934,52.48,Millennium Telecom Ltd,RC508183,876312804,IT Operational Support,R4537,Computing - Internet,
01/09/2022,60069311,58935,90,Millennium Telecom Ltd,RC508183,876312804,IT Operational Support,R4537,Computing - Internet,
01/09/2022,60069312,58936,259.94,Millennium Telecom Ltd,RC508183,876312804,IT Operational Support,R4537,Computing - Internet,
01/09/2022,60069313,59003,40,Millennium Telecom Ltd,RC508183,876312804,IT Operational Support,R4537,Computing - Internet,
,3761685,45900/40,368,Redacted Personal Data,RC301785,,ASC S&R DPs LD,R6280,Direct Payments,
27/09/2022,3762478,46333/42,368,Redacted Personal Data,RC301785,,ASC S&R DPs LD,R6280,Direct Payments,
,3761712,45900/67,463.8,Redacted Personal Data,RC301098,,ASC S&R DPs LD,R6280,Direct Payments,
27/09/2022,3762505,46333/69,463.8,Redacted Personal Data,RC301098,,ASC S&R DPs LD,R6280,Direct Payments,
15/09/2022,3762111,Redacted Personal Data,808.36,Redacted Personal Data,RC300759,,SEN Transport,R3200,Hire of Vehicles & Plant,
,3761723,45900/78,480,Redacted Personal Data,RC301936,,ASC S&R DPs LD,R6280,Direct Payments,
27/09/2022,3762517,46333/81,480,Redacted Personal Data,RC301936,,ASC S&R DPs LD,R6280,Direct Payments,
01/09/2022,3761578,Redacted Personal Data,172.8,Redacted Personal Data,RC507547,,Placements,R5017,TPP - Other,
01/09/2022,3761584,Redacted Personal Data,222.96,Redacted Personal Data,RC507547,,Placements,R5017,TPP - Other,
08/09/2022,3761767,Redacted Personal Data,172.8,Redacted Personal Data,RC507547,,Placements,R5017,TPP - Other,
08/09/2022,3761773,Redacted Personal Data,222.96,Redacted Personal Data,RC507547,,Placements,R5017,TPP - Other,
15/09/2022,3762067,Redacted Personal Data,172.8,Redacted Personal Data,RC507547,,Placements,R5017,TPP - Other,
15/09/2022,3762073,Redacted Personal Data,222.96,Redacted Personal Data,RC507547,,Placements,R5017,TPP - Other,
22/09/2022,3762187,Redacted Personal Data,172.8,Redacted Personal Data,RC507547,,Placements,R5017,TPP - Other,
22/09/2022,3762193,Redacted Personal Data,222.96,Redacted Personal Data,RC507547,,Placements,R5017,TPP - Other,
29/09/2022,3762399,Redacted Personal Data,172.8,Redacted Personal Data,RC507547,,Placements,R5017,TPP - Other,
29/09/2022,3762405,Redacted Personal Data,222.96,Redacted Personal Data,RC507547,,Placements,R5017,TPP - Other,
,3761724,45900/79,184,Redacted Personal Data,RC301924,,ASC S&R DPs LD,R6280,Direct Payments,
27/09/2022,3762518,46333/82,184,Redacted Personal Data,RC301924,,ASC S&R DPs LD,R6280,Direct Payments,
,3761681,45900/36,5.4,Redacted Personal Data,RC301963,,ASC S&R DPs LD,R6280,Direct Payments,
27/09/2022,3762474,46333/38,5.4,Redacted Personal Data,RC301963,,ASC S&R DPs LD,R6280,Direct Payments,
,3761718,45900/73,30,Redacted Personal Data,RC301162,,Carer Support,R6280,Direct Payments,
27/09/2022,3762511,46333/75,30,Redacted Personal Data,RC301162,,Carer Support,R6280,Direct Payments,
,3761680,45900/35,9433.88,Redacted Personal Data,RC301536,,ASC S&R DPs LD,R6280,Direct Payments,
27/09/2022,3762473,46333/37,8708.72,Redacted Personal Data,RC301536,,ASC S&R DPs LD,R6280,Direct Payments,
,3761697,45900/52,1909.08,Redacted Personal Data,RC509164,,ASC S&R DPs LD,R6280,Direct Payments,
,3761699,45900/54,92,Redacted Personal Data,RC509164,,Carer Support,R6280,Direct Payments,
27/09/2022,3762491,46333/55,1909.08,Redacted Personal Data,RC509164,,ASC S&R DPs LD,R6280,Direct Payments,
27/09/2022,3762493,46333/57,92,Redacted Personal Data,RC509164,,Carer Support,R6280,Direct Payments,
01/09/2022,3761552,Redacted Personal Data,165,Redacted Personal Data,RC506075,,Placements,R5017,TPP - Other,
01/09/2022,3761568,Redacted Personal Data,218.81,Redacted Personal Data,RC506075,,Placements,R5017,TPP - Other,
08/09/2022,3761741,Redacted Personal Data,165,Redacted Personal Data,RC506075,,Placements,R5017,TPP - Other,
08/09/2022,3761757,Redacted Personal Data,218.81,Redacted Personal Data,RC506075,,Placements,R5017,TPP - Other,
15/09/2022,3762041,Redacted Personal Data,165,Redacted Personal Data,RC506075,,Placements,R5017,TPP - Other,
15/09/2022,3762057,Redacted Personal Data,218.81,Redacted Personal Data,RC506075,,Placements,R5017,TPP - Other,
22/09/2022,3762161,Redacted Personal Data,165,Redacted Personal Data,RC506075,,Placements,R5017,TPP - Other,
22/09/2022,3762177,Redacted Personal Data,218.81,Redacted Personal Data,RC506075,,Placements,R5017,TPP - Other,
29/09/2022,3762367,Redacted Personal Data,15,Redacted Personal Data,RC506075,,Placements,R6291,Section 23 Payments,
29/09/2022,3762371,Redacted Personal Data,165,Redacted Personal Data,RC506075,,Placements,R5017,TPP - Other,
29/09/2022,3762388,Redacted Personal Data,218.81,Redacted Personal Data,RC506075,,Placements,R5017,TPP - Other,
29/09/2022,3762424,Redacted Personal Data,15,Redacted Personal Data,RC506075,,Placements,R6291,Section 23 Payments,
15/09/2022,3762096,Redacted Personal Data,650,Redacted Personal Data,RC301592,,Care Leavers,R6292,Section 24 Payments,
29/09/2022,3762365,Redacted Personal Data,49.85,Redacted Personal Data,RC301591,,Care Leavers,R6292,Section 24 Payments,
15/09/2022,3762097,Redacted Personal Data,11.8,Redacted Personal Data,RC301035,,Care Leavers,R6292,Section 24 Payments,
27/09/2022,3762516,Redacted Personal Data,828,Redacted Personal Data,RC302216,,ASC S&R DPs PD,R6280,Direct Payments,
01/09/2022,3761524,Redacted Personal Data,100,Redacted Personal Data,RC500229,,Care Leavers,R4900,Accommodation Costs,
01/09/2022,3761525,Redacted Personal Data,103.65,Redacted Personal Data,RC500229,,Care Leavers,R4900,Accommodation Costs,
08/09/2022,3761726,Redacted Personal Data,100,Redacted Personal Data,RC500229,,Care Leavers,R4900,Accommodation Costs,
08/09/2022,3761727,Redacted Personal Data,103.65,Redacted Personal Data,RC500229,,Care Leavers,R4900,Accommodation Costs,
15/09/2022,3762027,Redacted Personal Data,100,Redacted Personal Data,RC500229,,Care Leavers,R4900,Accommodation Costs,
15/09/2022,3762028,Redacted Personal Data,103.65,Redacted Personal Data,RC500229,,Care Leavers,R4900,Accommodation Costs,
15/09/2022,3762107,Redacted Personal Data,323.35,Redacted Personal Data,RC500229,,SEN Transport,R3200,Hire of Vehicles & Plant,
22/09/2022,3762133,Redacted Personal Data,100,Redacted Personal Data,RC500229,,Care Leavers,R4900,Accommodation Costs,
22/09/2022,3762134,Redacted Personal Data,103.65,Redacted Personal Data,RC500229,,Care Leavers,R4900,Accommodation Costs,
29/09/2022,3762340,Redacted Personal Data,100,Redacted Personal Data,RC500229,,Care Leavers,R4900,Accommodation Costs,
29/09/2022,3762341,Redacted Personal Data,103.65,Redacted Personal Data,RC500229,,Care Leavers,R4900,Accommodation Costs,
15/09/2022,3762119,Redacted Personal Data,310.91,Redacted Personal Data,RC301900,,SEN Transport,R3200,Hire of Vehicles & Plant,
01/09/2022,60068926,17481,446.67,Modes Users Association,RC500237,718 360 240,Museums Service,R4701,Subscriptions,
,60068996,1510,1440,Momma J's Kitchen,RC300782,,Section 31 Holiday Activities and Food,R4401,Fees and Charges,
,60069000,1511,936.95,Momma J's Kitchen,RC300782,,Section 31 Holiday Activities and Food,R4401,Fees and Charges,
01/09/2022,60069003,1518,3015,Momma J's Kitchen,RC300782,,Section 31 Holiday Activities and Food,R4401,Fees and Charges,
01/09/2022,60069007,1519,3716.4,Momma J's Kitchen,RC300782,,Section 31 Holiday Activities and Food,R4401,Fees and Charges,
08/09/2022,60069009,1520,134.97,Momma J's Kitchen,RC300782,,Section 31 Holiday Activities and Food,R4401,Fees and Charges,
27/09/2022,60069509,93431952,42.91,Morplan,RC505479,740 6339 41,Museums Service,R4503,Postage,
01/09/2022,60069540,SIN108797,313.2,MPL Contact Ltd,RC302220,163807304,Customer Services Team,R1100,Agency Staff,
01/09/2022,60069541,SIN109506,220.7,MPL Contact Ltd,RC302220,163807304,Customer Services Team,R1100,Agency Staff,
01/09/2022,60069542,SIN110288,236.65,MPL Contact Ltd,RC302220,163807304,Customer Services Team,R1100,Agency Staff,
01/09/2022,60069547,SIN108124,510,MPL Contact Ltd,RC302220,163807304,Customer Services Team,R1100,Agency Staff,
01/09/2022,3761586,Redacted Personal Data,404.59,Redacted Personal Data,RC508604,,Placements,R5017,TPP - Other,
08/09/2022,3761775,Redacted Personal Data,404.59,Redacted Personal Data,RC508604,,Placements,R5017,TPP - Other,
15/09/2022,3762075,Redacted Personal Data,404.59,Redacted Personal Data,RC508604,,Placements,R5017,TPP - Other,
22/09/2022,3762195,Redacted Personal Data,404.59,Redacted Personal Data,RC508604,,Placements,R5017,TPP - Other,
29/09/2022,3762407,Redacted Personal Data,404.59,Redacted Personal Data,RC508604,,Placements,R5017,TPP - Other,
01/09/2022,3761553,Redacted Personal Data,249,Redacted Personal Data,RC506286,,Placements,R5017,TPP - Other,
01/09/2022,3761569,Redacted Personal Data,218.81,Redacted Personal Data,RC506286,,Placements,R5017,TPP - Other,
08/09/2022,3761742,Redacted Personal Data,249,Redacted Personal Data,RC506286,,Placements,R5017,TPP - Other,
08/09/2022,3761758,Redacted Personal Data,218.81,Redacted Personal Data,RC506286,,Placements,R5017,TPP - Other,
15/09/2022,3762042,Redacted Personal Data,249,Redacted Personal Data,RC506286,,Placements,R5017,TPP - Other,
15/09/2022,3762058,Redacted Personal Data,218.81,Redacted Personal Data,RC506286,,Placements,R5017,TPP - Other,
22/09/2022,3762162,Redacted Personal Data,249,Redacted Personal Data,RC506286,,Placements,R5017,TPP - Other,
22/09/2022,3762178,Redacted Personal Data,218.81,Redacted Personal Data,RC506286,,Placements,R5017,TPP - Other,
29/09/2022,3762368,Redacted Personal Data,15,Redacted Personal Data,RC506286,,Placements,R6291,Section 23 Payments,
29/09/2022,3762372,Redacted Personal Data,249,Redacted Personal Data,RC506286,,Placements,R5017,TPP - Other,
29/09/2022,3762389,Redacted Personal Data,218.81,Redacted Personal Data,RC506286,,Placements,R5017,TPP - Other,
29/09/2022,3762425,Redacted Personal Data,15,Redacted Personal Data,RC506286,,Placements,R6291,Section 23 Payments,
01/09/2022,3761592,Redacted Personal Data,130.77,Redacted Personal Data,RC507903,,Placements,R5017,TPP - Other,
08/09/2022,3761781,Redacted Personal Data,130.77,Redacted Personal Data,RC507903,,Placements,R5017,TPP - Other,
15/09/2022,3762081,Redacted Personal Data,130.77,Redacted Personal Data,RC507903,,Placements,R5017,TPP - Other,
22/09/2022,3762201,Redacted Personal Data,130.77,Redacted Personal Data,RC507903,,Placements,R5017,TPP - Other,
29/09/2022,3762413,Redacted Personal Data,130.77,Redacted Personal Data,RC507903,,Placements,R5017,TPP - Other,
01/09/2022,3761522,Redacted Personal Data,106.85,Redacted Personal Data,RC502418,,Care Leavers,R4900,Accommodation Costs,
01/09/2022,3761523,Redacted Personal Data,396,Redacted Personal Data,RC502418,,Care Leavers,R4900,Accommodation Costs,
08/09/2022,3761725,Redacted Personal Data,106.85,Redacted Personal Data,RC502418,,Care Leavers,R4900,Accommodation Costs,
15/09/2022,3762026,Redacted Personal Data,106.85,Redacted Personal Data,RC502418,,Care Leavers,R4900,Accommodation Costs,
22/09/2022,3762132,Redacted Personal Data,106.85,Redacted Personal Data,RC502418,,Care Leavers,R4900,Accommodation Costs,
29/09/2022,3762338,Redacted Personal Data,106.85,Redacted Personal Data,RC502418,,Care Leavers,R4900,Accommodation Costs,
29/09/2022,3762339,Redacted Personal Data,396,Redacted Personal Data,RC502418,,Care Leavers,R4900,Accommodation Costs,
,3761664,Redacted Personal Data,368,Redacted Personal Data,RC300244,,Carer Support,R6280,Direct Payments,
27/09/2022,3762457,Redacted Personal Data,368,Redacted Personal Data,RC300244,,Carer Support,R6280,Direct Payments,
,3761662,Redacted Personal Data,184,Redacted Personal Data,RC508363,,Carer Support,R6280,Direct Payments,
27/09/2022,3762455,Redacted Personal Data,184,Redacted Personal Data,RC508363,,Carer Support,R6280,Direct Payments,
01/09/2022,3761539,Redacted Personal Data,40,Redacted Personal Data,RC301590,,Care Leavers,R6292,Section 24 Payments,
22/09/2022,3762149,Redacted Personal Data,40,Redacted Personal Data,RC301590,,Care Leavers,R6292,Section 24 Payments,
,3761669,Redacted Personal Data,563.36,Redacted Personal Data,RC508054,,ASC S&R DPs LD,R6280,Direct Payments,
27/09/2022,3762462,Redacted Personal Data,563.36,Redacted Personal Data,RC508054,,ASC S&R DPs LD,R6280,Direct Payments,
01/09/2022,3761588,Redacted Personal Data,124,Redacted Personal Data,RC300006,,Placements,R5017,TPP - Other,
08/09/2022,3761777,Redacted Personal Data,124,Redacted Personal Data,RC300006,,Placements,R5017,TPP - Other,
15/09/2022,3762077,Redacted Personal Data,124,Redacted Personal Data,RC300006,,Placements,R5017,TPP - Other,
22/09/2022,3762197,Redacted Personal Data,124,Redacted Personal Data,RC300006,,Placements,R5017,TPP - Other,
29/09/2022,3762409,Redacted Personal Data,124,Redacted Personal Data,RC300006,,Placements,R5017,TPP - Other,
,3761673,Redacted Personal Data,1901.68,Redacted Personal Data,RC502586,,ASC S&R DPs PD,R6280,Direct Payments,
,3761674,Redacted Personal Data,276,Redacted Personal Data,RC502586,,Carer Support,R6280,Direct Payments,
27/09/2022,3762466,Redacted Personal Data,1901.68,Redacted Personal Data,RC502586,,ASC S&R DPs PD,R6280,Direct Payments,
27/09/2022,3762467,Redacted Personal Data,276,Redacted Personal Data,RC502586,,Carer Support,R6280,Direct Payments,
,3761663,Redacted Personal Data,184,Redacted Personal Data,RC300717,,Carer Support,R6280,Direct Payments,
27/09/2022,3762456,Redacted Personal Data,184,Redacted Personal Data,RC300717,,Carer Support,R6280,Direct Payments,
,3761689,Redacted Personal Data,822.48,Redacted Personal Data,RC301584,,ASC S&R DPs LD,R6280,Direct Payments,
27/09/2022,3762482,Redacted Personal Data,822.48,Redacted Personal Data,RC301584,,ASC S&R DPs LD,R6280,Direct Payments,
,3761651,Redacted Personal Data,138,Redacted Personal Data,RC506786,,Carer Support,R6280,Direct Payments,
27/09/2022,3762443,Redacted Personal Data,138,Redacted Personal Data,RC506786,,Carer Support,R6280,Direct Payments,
,3761711,Redacted Personal Data,391,Redacted Personal Data,RC301411,,ASC S&R DPs PD,R6280,Direct Payments,
27/09/2022,3762504,Redacted Personal Data,299,Redacted Personal Data,RC301411,,ASC S&R DPs PD,R6280,Direct Payments,
,3761705,Redacted Personal Data,138,Redacted Personal Data,RC301850,,ASC S&R DPs OP,R6280,Direct Payments,
27/09/2022,3762498,Redacted Personal Data,138,Redacted Personal Data,RC301850,,ASC S&R DPs OP,R6280,Direct Payments,
,3761719,Redacted Personal Data,1150.56,Redacted Personal Data,RC301272,,ASC S&R DPs LD,R6280,Direct Payments,
27/09/2022,3762512,Redacted Personal Data,1150.56,Redacted Personal Data,RC301272,,ASC S&R DPs LD,R6280,Direct Payments,
,3761720,Redacted Personal Data,80,Redacted Personal Data,RC301494,,ASC S&R DPs LD,R6280,Direct Payments,
27/09/2022,3762513,Redacted Personal Data,80,Redacted Personal Data,RC301494,,ASC S&R DPs LD,R6280,Direct Payments,
,3761703,Redacted Personal Data,2576,Redacted Personal Data,RC301749,,ASC S&R DPs OP,R6280,Direct Payments,
27/09/2022,3762496,Redacted Personal Data,2576,Redacted Personal Data,RC301749,,ASC S&R DPs OP,R6280,Direct Payments,
27/09/2022,3762447,46333/11,826.7,Redacted Personal Data,RC302215,,ASC S&R DPs OP,R6280,Direct Payments,
15/09/2022,3762102,Redacted Personal Data,300,Redacted Personal Data,RC302201,,Aiming High,R4400,Professional Fees,
,3761696,45900/51,92,Redacted Personal Data,RC506412,,Carer Support,R6280,Direct Payments,
27/09/2022,3762490,46333/54,92,Redacted Personal Data,RC506412,,Carer Support,R6280,Direct Payments,
,3761665,45900/20,368,Redacted Personal Data,RC301863,,ASC S&R DPs OP,R6280,Direct Payments,
27/09/2022,3762458,46333/22,368,Redacted Personal Data,RC301863,,ASC S&R DPs OP,R6280,Direct Payments,
,3761678,45900/33,140,Redacted Personal Data,RC506275,,ASC S&R DPs OP,R6280,Direct Payments,
27/09/2022,3762471,46333/35,140,Redacted Personal Data,RC506275,,ASC S&R DPs OP,R6280,Direct Payments,
,3761710,45900/65,368,Redacted Personal Data,RC300727,,Carer Support,R6280,Direct Payments,
27/09/2022,3762503,46333/67,368,Redacted Personal Data,RC300727,,Carer Support,R6280,Direct Payments,
,3761668,45900/23,92,Redacted Personal Data,RC300282,,Carer Support,R6280,Direct Payments,
27/09/2022,3762461,46333/25,92,Redacted Personal Data,RC300282,,Carer Support,R6280,Direct Payments,
,3761653,45900/8,655.5,Redacted Personal Data,RC302000,,ASC S&R DPs PD,R6280,Direct Payments,
27/09/2022,3762445,46333/9,655.5,Redacted Personal Data,RC302000,,ASC S&R DPs PD,R6280,Direct Payments,
,3761684,45900/39,1366.52,Redacted Personal Data,RC502467,,ASC S&R DPs LD,R6280,Direct Payments,
15/09/2022,3762108,Redacted Personal Data,951.84,Redacted Personal Data,RC502467,,SEN Transport,R3200,Hire of Vehicles & Plant,
27/09/2022,3762477,46333/41,1320.5,Redacted Personal Data,RC502467,,ASC S&R DPs LD,R6280,Direct Payments,
,3761701,45900/56,276,Redacted Personal Data,RC301134,,Carer Support,R6280,Direct Payments,
27/09/2022,3762495,46333/59,276,Redacted Personal Data,RC301134,,Carer Support,R6280,Direct Payments,
,3761715,45900/70,1288,Redacted Personal Data,RC302028,,ASC S&R DPs OP,R6280,Direct Payments,
27/09/2022,3762508,46333/72,1288,Redacted Personal Data,RC302028,,ASC S&R DPs OP,R6280,Direct Payments,
,3761717,45900/72,368,Redacted Personal Data,RC301120,,Carer Support,R6280,Direct Payments,
27/09/2022,3762510,46333/74,368,Redacted Personal Data,RC301120,,Carer Support,R6280,Direct Payments,
15/09/2022,3761997,Redacted Personal Data,274.49,Redacted Personal Data,RC506113,,2 Year Old Nursery Funding,R5020,TPP - Nursery Provision,
15/09/2022,3762021,Redacted Personal Data,551.88,Redacted Personal Data,RC506113,,2 Year Old Nursery Funding,R5020,TPP - Nursery Provision,
,3761702,45900/57,0,Redacted Personal Data,RC301961,,ASC S&R DPs OP,R6280,Direct Payments,
15/09/2022,3762113,Redacted Personal Data,126.65,Redacted Personal Data,RC300907,,SEN Transport,R3200,Hire of Vehicles & Plant,
,3761675,45900/30,92,Redacted Personal Data,RC300557,,Carer Support,R6280,Direct Payments,
27/09/2022,3762468,46333/32,92,Redacted Personal Data,RC300557,,Carer Support,R6280,Direct Payments,
15/09/2022,3762112,Redacted Personal Data,893.45,Redacted Personal Data,RC300853,,SEN Transport,R3200,Hire of Vehicles & Plant,
27/09/2022,3762488,46333/52,44.42,Redacted Personal Data,RC302218,,ASC S&R DPs OP,R6280,Direct Payments,
15/09/2022,3762115,Redacted Personal Data,491.24,Redacted Personal Data,RC301575,,SEN Transport,R3200,Hire of Vehicles & Plant,
,3761695,45900/50,661.56,Redacted Personal Data,RC302111,,ASC S&R DPs OP,R6280,Direct Payments,
27/09/2022,3762489,46333/53,661.56,Redacted Personal Data,RC302111,,ASC S&R DPs OP,R6280,Direct Payments,
15/09/2022,3762114,Redacted Personal Data,298.47,Redacted Personal Data,RC301342,,SEN Transport,R3200,Hire of Vehicles & Plant,
22/09/2022,3762218,Redacted Personal Data,600,Redacted Personal Data,RC301610,,Aiming High,R4400,Professional Fees,
01/09/2022,3761601,Redacted Personal Data,145,Redacted Personal Data,RC301485,,Placements,R5017,TPP - Other,
08/09/2022,3761790,Redacted Personal Data,145,Redacted Personal Data,RC301485,,Placements,R5017,TPP - Other,
15/09/2022,3762090,Redacted Personal Data,145,Redacted Personal Data,RC301485,,Placements,R5017,TPP - Other,
22/09/2022,3762210,Redacted Personal Data,145,Redacted Personal Data,RC301485,,Placements,R5017,TPP - Other,
29/09/2022,3762422,Redacted Personal Data,145,Redacted Personal Data,RC301485,,Placements,R5017,TPP - Other,
15/09/2022,3762116,Redacted Personal Data,223.85,Redacted Personal Data,RC301576,,SEN Transport,R3200,Hire of Vehicles & Plant,
27/09/2022,3762440,46333/4,872.25,Redacted Personal Data,RC302184,,ASC S&R DPs OP,R6280,Direct Payments,
,3761694,45900/49,0,Redacted Personal Data,RC302029,,ASC S&R DPs OP,R6280,Direct Payments,
27/09/2022,3762487,46333/51,0,Redacted Personal Data,RC302029,,ASC S&R DPs OP,R6280,Direct Payments,
,3761716,45900/71,40,Redacted Personal Data,RC300999,,Carer Support,R6280,Direct Payments,
27/09/2022,3762509,46333/73,40,Redacted Personal Data,RC300999,,Carer Support,R6280,Direct Payments,
,3761687,45900/42,1577.72,Redacted Personal Data,RC502472,,ASC S&R DPs LD,R6280,Direct Payments,
27/09/2022,3762480,46333/44,1577.72,Redacted Personal Data,RC502472,,ASC S&R DPs LD,R6280,Direct Payments,
,3761693,45900/48,184,Redacted Personal Data,RC300967,,Carer Support,R6280,Direct Payments,
27/09/2022,3762486,46333/50,184,Redacted Personal Data,RC300967,,Carer Support,R6280,Direct Payments,
,3761698,45900/53,2534.92,Redacted Personal Data,RC503306,,ASC S&R DPs OP,R6280,Direct Payments,
27/09/2022,3762492,46333/56,2534.92,Redacted Personal Data,RC503306,,ASC S&R DPs OP,R6280,Direct Payments,
,3761657,45900/12,46,Redacted Personal Data,RC301309,,Carer Support,R6280,Direct Payments,
27/09/2022,3762450,46333/14,46,Redacted Personal Data,RC301309,,Carer Support,R6280,Direct Payments,
,3761722,45900/77,92,Redacted Personal Data,RC301871,,Carer Support,R6280,Direct Payments,
27/09/2022,3762515,46333/79,92,Redacted Personal Data,RC301871,,Carer Support,R6280,Direct Payments,
,3761656,45900/11,92,Redacted Personal Data,RC301116,,Carer Support,R6280,Direct Payments,
27/09/2022,3762449,46333/13,92,Redacted Personal Data,RC301116,,Carer Support,R6280,Direct Payments,
,3761704,45900/59,368,Redacted Personal Data,RC300749,,Carer Support,R6280,Direct Payments,
27/09/2022,3762497,46333/61,368,Redacted Personal Data,RC300749,,Carer Support,R6280,Direct Payments,
27/09/2022,3762520,46333/84,2433.49,Redacted Personal Data,RC302217,,ASC S&R DPs OP,R6280,Direct Payments,
,3761713,45900/68,648.6,Redacted Personal Data,RC301990,,ASC S&R DPs OP,R6280,Direct Payments,
27/09/2022,3762506,46333/70,648.6,Redacted Personal Data,RC301990,,ASC S&R DPs OP,R6280,Direct Payments,
,3761707,45900/62,440.76,Redacted Personal Data,RC301938,,ASC S&R DPs OP,R6280,Direct Payments,
27/09/2022,3762500,46333/64,440.76,Redacted Personal Data,RC301938,,ASC S&R DPs OP,R6280,Direct Payments,
01/09/2022,3761595,Redacted Personal Data,163,Redacted Personal Data,RC506313,,Placements,R5017,TPP - Other,
08/09/2022,3761784,Redacted Personal Data,163,Redacted Personal Data,RC506313,,Placements,R5017,TPP - Other,
15/09/2022,3762084,Redacted Personal Data,163,Redacted Personal Data,RC506313,,Placements,R5017,TPP - Other,
22/09/2022,3762204,Redacted Personal Data,163,Redacted Personal Data,RC506313,,Placements,R5017,TPP - Other,
29/09/2022,3762416,Redacted Personal Data,163,Redacted Personal Data,RC506313,,Placements,R5017,TPP - Other,
15/09/2022,3762110,Redacted Personal Data,31.09,Redacted Personal Data,RC300314,,SEN Transport,R3200,Hire of Vehicles & Plant,
,3761690,45900/45,184,Redacted Personal Data,RC300652,,Carer Support,R6280,Direct Payments,
27/09/2022,3762483,46333/47,184,Redacted Personal Data,RC300652,,Carer Support,R6280,Direct Payments,
,3761721,45900/76,276,Redacted Personal Data,RC301945,,ASC S&R DPs PD,R6280,Direct Payments,
27/09/2022,3762514,46333/78,276,Redacted Personal Data,RC301945,,ASC S&R DPs PD,R6280,Direct Payments,
,3761714,45900/69,480.08,Redacted Personal Data,RC300950,,ASC S&R DPs OP,R6280,Direct Payments,
27/09/2022,3762507,46333/71,480.08,Redacted Personal Data,RC300950,,ASC S&R DPs OP,R6280,Direct Payments,
,3761688,45900/43,1502.46,Redacted Personal Data,RC300953,,ASC S&R DPs OP,R6280,Direct Payments,
27/09/2022,3762481,46333/45,1502.46,Redacted Personal Data,RC300953,,ASC S&R DPs OP,R6280,Direct Payments,
,3761700,45900/55,391,Redacted Personal Data,RC506717,,ASC S&R DPs PD,R6280,Direct Payments,
27/09/2022,3762494,46333/58,391,Redacted Personal Data,RC506717,,ASC S&R DPs PD,R6280,Direct Payments,
,3761659,45900/14,237.8,Redacted Personal Data,RC301697,,ASC S&R DPs OP,R6280,Direct Payments,
27/09/2022,3762452,46333/16,237.8,Redacted Personal Data,RC301697,,ASC S&R DPs OP,R6280,Direct Payments,
,3761709,45900/64,460,Redacted Personal Data,RC301078,,ASC S&R DPs OP,R6280,Direct Payments,
27/09/2022,3762502,46333/66,460,Redacted Personal Data,RC301078,,ASC S&R DPs OP,R6280,Direct Payments,
,3761670,45900/25,13560.24,Redacted Personal Data,RC507361,,ASC S&R DPs LD,R6280,Direct Payments,
27/09/2022,3762463,46333/27,13560.24,Redacted Personal Data,RC507361,,ASC S&R DPs LD,R6280,Direct Payments,
01/09/2022,3761589,Redacted Personal Data,206,Redacted Personal Data,RC502500,,Placements,R5017,TPP - Other,
01/09/2022,3761590,Redacted Personal Data,249,Redacted Personal Data,RC502500,,Placements,R5017,TPP - Other,
,3761660,45900/15,2072.88,Redacted Personal Data,RC507744,,ASC S&R DPs LD,R6280,Direct Payments,
08/09/2022,3761778,Redacted Personal Data,206,Redacted Personal Data,RC502500,,Placements,R5017,TPP - Other,
08/09/2022,3761779,Redacted Personal Data,249,Redacted Personal Data,RC502500,,Placements,R5017,TPP - Other,
15/09/2022,3762078,Redacted Personal Data,206,Redacted Personal Data,RC502500,,Placements,R5017,TPP - Other,
15/09/2022,3762079,Redacted Personal Data,249,Redacted Personal Data,RC502500,,Placements,R5017,TPP - Other,
22/09/2022,3762198,Redacted Personal Data,206,Redacted Personal Data,RC502500,,Placements,R5017,TPP - Other,
22/09/2022,3762199,Redacted Personal Data,249,Redacted Personal Data,RC502500,,Placements,R5017,TPP - Other,
22/09/2022,3762217,Redacted Personal Data,600,Redacted Personal Data,RC300821,,Aiming High,R4400,Professional Fees,
29/09/2022,3762410,Redacted Personal Data,206,Redacted Personal Data,RC502500,,Placements,R5017,TPP - Other,
29/09/2022,3762411,Redacted Personal Data,249,Redacted Personal Data,RC502500,,Placements,R5017,TPP - Other,
27/09/2022,3762453,46333/17,2072.88,Redacted Personal Data,RC507744,,ASC S&R DPs LD,R6280,Direct Payments,
,3761692,45900/47,69,Redacted Personal Data,RC300806,,Carer Support,R6280,Direct Payments,
27/09/2022,3762485,46333/49,69,Redacted Personal Data,RC300806,,Carer Support,R6280,Direct Payments,
,3761682,45900/37,184,Redacted Personal Data,RC500328,,Carer Support,R6280,Direct Payments,
27/09/2022,3762475,46333/39,184,Redacted Personal Data,RC500328,,Carer Support,R6280,Direct Payments,
01/09/2022,3761598,Redacted Personal Data,249,Redacted Personal Data,RC505729,,Placements,R5017,TPP - Other,
01/09/2022,3761599,Redacted Personal Data,249,Redacted Personal Data,RC505729,,Placements,R5017,TPP - Other,
08/09/2022,3761787,Redacted Personal Data,249,Redacted Personal Data,RC505729,,Placements,R5017,TPP - Other,
08/09/2022,3761788,Redacted Personal Data,249,Redacted Personal Data,RC505729,,Placements,R5017,TPP - Other,
15/09/2022,3762087,Redacted Personal Data,249,Redacted Personal Data,RC505729,,Placements,R5017,TPP - Other,
15/09/2022,3762088,Redacted Personal Data,249,Redacted Personal Data,RC505729,,Placements,R5017,TPP - Other,
22/09/2022,3762207,Redacted Personal Data,249,Redacted Personal Data,RC505729,,Placements,R5017,TPP - Other,
22/09/2022,3762208,Redacted Personal Data,249,Redacted Personal Data,RC505729,,Placements,R5017,TPP - Other,
29/09/2022,3762419,Redacted Personal Data,249,Redacted Personal Data,RC505729,,Placements,R5017,TPP - Other,
29/09/2022,3762420,Redacted Personal Data,249,Redacted Personal Data,RC505729,,Placements,R5017,TPP - Other,
27/09/2022,3762519,46333/83,601.29,Redacted Personal Data,RC302214,,ASC S&R DPs OP,R6280,Direct Payments,
,3761676,45900/31,184,Redacted Personal Data,RC300876,,Carer Support,R6280,Direct Payments,
27/09/2022,3762469,46333/33,184,Redacted Personal Data,RC300876,,Carer Support,R6280,Direct Payments,
15/09/2022,3762117,Redacted Personal Data,206.75,Redacted Personal Data,RC301577,,SEN Transport,R3200,Hire of Vehicles & Plant,
,3761666,45900/21,752.9,Redacted Personal Data,RC300503,,ASC S&R DPs OP,R6280,Direct Payments,
27/09/2022,3762459,46333/23,752.9,Redacted Personal Data,RC300503,,ASC S&R DPs OP,R6280,Direct Payments,
,3761661,45900/16,705.4,Redacted Personal Data,RC301962,,ASC S&R DPs OP,R6280,Direct Payments,
27/09/2022,3762454,46333/18,705.4,Redacted Personal Data,RC301962,,ASC S&R DPs OP,R6280,Direct Payments,
,3761667,45900/22,690,Redacted Personal Data,RC300584,,ASC S&R DPs OP,R6280,Direct Payments,
27/09/2022,3762460,46333/24,690,Redacted Personal Data,RC300584,,ASC S&R DPs OP,R6280,Direct Payments,
,3761677,45900/32,3581.8,Redacted Personal Data,RC507360,,ASC S&R DPs LD,R6280,Direct Payments,
27/09/2022,3762470,46333/34,3581.8,Redacted Personal Data,RC507360,,ASC S&R DPs LD,R6280,Direct Payments,
01/09/2022,3761581,Redacted Personal Data,163,Redacted Personal Data,RC508167,,Placements,R5017,TPP - Other,
08/09/2022,3761770,Redacted Personal Data,163,Redacted Personal Data,RC508167,,Placements,R5017,TPP - Other,
15/09/2022,3762070,Redacted Personal Data,163,Redacted Personal Data,RC508167,,Placements,R5017,TPP - Other,
22/09/2022,3762190,Redacted Personal Data,163,Redacted Personal Data,RC508167,,Placements,R5017,TPP - Other,
29/09/2022,3762402,Redacted Personal Data,163,Redacted Personal Data,RC508167,,Placements,R5017,TPP - Other,
01/09/2022,3761559,Redacted Personal Data,165,Redacted Personal Data,RC507222,,Placements,R5017,TPP - Other,
01/09/2022,3761575,Redacted Personal Data,218.81,Redacted Personal Data,RC507222,,Placements,R5017,TPP - Other,
08/09/2022,3761748,Redacted Personal Data,165,Redacted Personal Data,RC507222,,Placements,R5017,TPP - Other,
08/09/2022,3761764,Redacted Personal Data,218.81,Redacted Personal Data,RC507222,,Placements,R5017,TPP - Other,
15/09/2022,3762048,Redacted Personal Data,165,Redacted Personal Data,RC507222,,Placements,R5017,TPP - Other,
15/09/2022,3762064,Redacted Personal Data,218.81,Redacted Personal Data,RC507222,,Placements,R5017,TPP - Other,
22/09/2022,3762168,Redacted Personal Data,165,Redacted Personal Data,RC507222,,Placements,R5017,TPP - Other,
22/09/2022,3762184,Redacted Personal Data,218.81,Redacted Personal Data,RC507222,,Placements,R5017,TPP - Other,
29/09/2022,3762379,Redacted Personal Data,165,Redacted Personal Data,RC507222,,Placements,R5017,TPP - Other,
29/09/2022,3762396,Redacted Personal Data,218.81,Redacted Personal Data,RC507222,,Placements,R5017,TPP - Other,
,3761648,45900/3,679.84,Redacted Personal Data,RC300077,,ASC S&R DPs PD,R6280,Direct Payments,
27/09/2022,3762439,46333/3,679.84,Redacted Personal Data,RC300077,,ASC S&R DPs PD,R6280,Direct Payments,
22/09/2022,3762215,Redacted Personal Data,400,Redacted Personal Data,RC502871,,Aiming High,R4400,Professional Fees,
08/09/2022,3761794,Redacted Personal Data,5,Redacted Personal Data,RC302190,,UASC 16-17,R6292,Section 24 Payments,
08/09/2022,3761795,Redacted Personal Data,61.22,Redacted Personal Data,RC302190,,UASC 16-17,R6293,Asylum Seekers Allowance,
09/09/2022,3761902,Redacted Personal Data,5,Redacted Personal Data,RC302190,,UASC 16-17,R6292,Section 24 Payments,
09/09/2022,3761903,Redacted Personal Data,61.25,Redacted Personal Data,RC302190,,UASC 16-17,R6293,Asylum Seekers Allowance,
15/09/2022,3762094,Redacted Personal Data,5,Redacted Personal Data,RC302190,,UASC 16-17,R6292,Section 24 Payments,
15/09/2022,3762095,Redacted Personal Data,61.22,Redacted Personal Data,RC302190,,UASC 16-17,R6293,Asylum Seekers Allowance,
22/09/2022,3762156,Redacted Personal Data,5,Redacted Personal Data,RC302190,,UASC 16-17,R6292,Section 24 Payments,
22/09/2022,3762157,Redacted Personal Data,61.22,Redacted Personal Data,RC302190,,UASC 16-17,R6293,Asylum Seekers Allowance,
29/09/2022,3762329,Redacted Personal Data,30,Redacted Personal Data,RC302190,,UASC 16-17,R6292,Section 24 Payments,
29/09/2022,3762330,Redacted Personal Data,18,Redacted Personal Data,RC302190,,UASC 16-17,R6292,Section 24 Payments,
29/09/2022,3762427,Redacted Personal Data,5,Redacted Personal Data,RC302190,,UASC 16-17,R6292,Section 24 Payments,
29/09/2022,3762428,Redacted Personal Data,61.22,Redacted Personal Data,RC302190,,UASC 16-17,R6293,Asylum Seekers Allowance,
01/09/2022,60068696,OLCRED/01188882,-19.9,MWUK Ltd trading as Alexandra,RC500151,927156121,Internal Homecare Staffing,R4201,Uniforms,
14/09/2022,60069181,OLSINV/08597739,31.06,MWUK Ltd trading as Alexandra,RC500151,927156121,Internal Homecare Staffing,R4000,Furniture & Equipment,
13/09/2022,60069362,OLSINV/08595235,19.9,MWUK Ltd trading as Alexandra,RC500151,927156121,Internal Homecare Staffing,R4201,Uniforms,
21/09/2022,60069359,RUT/10/VT22-23,50,Nasacre,RC500363,,Education Improvement Consultancy,R4401,Fees and Charges,
09/09/2022,60068965,EC20777368,209.99,Nasstar,RC508092,647 2351 37,IT Operational Support,R4537,Computing - Internet,
01/09/2022,60068755,INV-012156,298.51,National Day Nurseries Association,RC500368,,Education For Under 5'S,R4701,Subscriptions,
01/09/2022,60068867,SI00119296,56,NCFE,RC502148,110 7856 30,Rutland Adult Skill Budget Post July 2014,R4401,Fees and Charges,
01/09/2022,60068903,90296336,2015.2,Neopost Finance Limited,RC500388,805 6441 40,Reprographics & Post,R4503,Postage,
01/09/2022,60068782,5897,720.17,Nesbit Bros Ltd,RC500392,114 5625 90,Home to School Transport,R3207,Transport Contract,
01/09/2022,60068852,155227,2626.8,New Earth Solutions (West) Limited T/A Mid-UK Recycling Ltd,RC505938,246 2500 29,Waste Management,R5021,TPP - Waste Disposal,
01/09/2022,60068853,155796,1121.4,New Earth Solutions (West) Limited T/A Mid-UK Recycling Ltd,RC505938,246 2500 29,Waste Management,R5021,TPP - Waste Disposal,
01/09/2022,60068854,156088,7628.77,New Earth Solutions (West) Limited T/A Mid-UK Recycling Ltd,RC505938,246 2500 29,Waste Management,R5003,TPP - Recycling Contract,
01/09/2022,60068855,156242,1259.84,New Earth Solutions (West) Limited T/A Mid-UK Recycling Ltd,RC505938,246 2500 29,Waste Management,R5021,TPP - Waste Disposal,
20/09/2022,60069234,NH200922,10024.11,New Hope Specialist Care Ltd,RC300956,,ASC S&R Homecare OP,R5029,TPP - Home Care,
10/09/2022,60069012,1928,3328,New Leaf Triangle CIC,RC300536,,Section 31 Holiday Activities and Food,R4401,Fees and Charges,
13/09/2022,60069166,7431000057,4608.33,"NHS Leicester, Leicestershire and Rutland ICB",RC508010,654468803,Smoking & Tobacco,R5017,TPP - Other,
13/09/2022,60069167,7431000058,3240.21,"NHS Leicester, Leicestershire and Rutland ICB",RC508010,654468803,Sexual Health,R5017,TPP - Other,
01/09/2022,60068836,5445,135,Nimble Media,RC509110,174 5562 88,Tourism,R4400,Professional Fees,
23/09/2022,60069454,34844,775.09,Nobilis Care East Limited,RC506799,,ASC S&R Homecare OP,R5029,TPP - Home Care,
23/09/2022,60069455,34845,789.18,Nobilis Care East Limited,RC506799,,ASC S&R Homecare OP,R5029,TPP - Home Care,
23/09/2022,60069456,34846,779.78,Nobilis Care East Limited,RC506799,,ASC S&R Homecare OP,R5029,TPP - Home Care,
23/09/2022,60069457,34847,789.18,Nobilis Care East Limited,RC506799,,ASC S&R Homecare OP,R5029,TPP - Home Care,
06/09/2022,60068824,VISYOGA22,510,Nomad Therapy,RC500418,,Children's Centres - Revenue,R4401,Fees and Charges,
14/09/2022,60069183,VISYOGA23,1020,Nomad Therapy,RC500418,,Children's Centres - Revenue,R4401,Fees and Charges,
13/09/2022,3761923,September 2022 dripfeed - High Needs Block Allocation,1804.85,North Luffenham C Of E Primary School,RC500422,,SEN Funding Maintained Schools and Academies,R6300,Schools - Budget Share,
13/09/2022,3761924,September 2022 dripfeed - Forces Pupil Premium,746.67,North Luffenham C Of E Primary School,RC500422,,Pupil Premium,R6300,Schools - Budget Share,
13/09/2022,3761925,September 2022 dripfeed - Disadvantaged Pupil Premium,1500.41,North Luffenham C Of E Primary School,RC500422,,Pupil Premium,R6300,Schools - Budget Share,
13/09/2022,3761926,September 2022 dripfeed - Post LAC Pupil Premium,602.5,North Luffenham C Of E Primary School,RC500422,,Pupil Premium,R6300,Schools - Budget Share,
13/09/2022,3761927,September 2022 dripfeed - UIFSM,9907,North Luffenham C Of E Primary School,RC500422,,UIFSM (free school meals),R5022,TPP - Schools & Colleges,
13/09/2022,3761928,September 2022 dripfeed - Schools Block Allocation,64084.1,North Luffenham C Of E Primary School,RC500422,,DSG,R6300,Schools - Budget Share,
13/09/2022,3761929,September 2022 dripfeed - In County Adjustment,5530.04,North Luffenham C Of E Primary School,RC500422,,DSG,R6300,Schools - Budget Share,
13/09/2022,3761930,September 2022 dripfeed - Schools Supplementary Grant,9459,North Luffenham C Of E Primary School,RC500422,,School Recharges,R9001,Government Grants Outside AEF,
01/09/2022,60068725,15950,182,Norton Taxi Services Ltd,RC301685,,Children Looked After Transport,R3207,Transport Contract,
22/09/2022,3762155,Redacted Personal Data,27,Nottingham City Council,RC502105,118 0454 92,Care Leavers,R6292,Section 24 Payments,
01/09/2022,60069230,81140,90,Now Education Group Ltd,RC301935,361018921,Pupil Premium Plus,R4401,Fees and Charges,
07/09/2022,60069298,81248,90,Now Education Group Ltd,RC301935,361018921,Pupil Premium Plus,R4401,Fees and Charges,
12/09/2022,60069112,A0009234556 - 12/9/22,815.89,Npower Commercial Gas Limited (T/A npower Business Solutions),RC301940,,Parking,R2100,Electricity,
,60068977,25/22,36,Oakham Art Group,RC302018,,Museums Service,R4318,Goods For Resale,
08/09/2022,60068924,2210,830,Oakham Baptist Church,RC301955,,Early Intervention Youth Services,R4401,Fees and Charges,
13/09/2022,3761931,September 2022 dripfeed - Schools Block Allocation,92301.29,Oakham C Of E Primary School,RC500457,,DSG,R6300,Schools - Budget Share,
13/09/2022,3761932,September 2022 dripfeed - High Needs Statemented Pupils,5867.69,Oakham C Of E Primary School,RC500457,,SEN Funding Maintained Schools and Academies,R6300,Schools - Budget Share,
13/09/2022,3761933,September 2022 dripfeed - In County Adjustment,1890.92,Oakham C Of E Primary School,RC500457,,SEN Funding Maintained Schools and Academies,R6300,Schools - Budget Share,
13/09/2022,3761934,September 2022 dripfeed - High Needs Placement Funding,11666,Oakham C Of E Primary School,RC500457,,SEN Funding Maintained Schools and Academies,R6300,Schools - Budget Share,
13/09/2022,3761935,September 2022 dripfeed - High Needs Additional Support,16599.17,Oakham C Of E Primary School,RC500457,,SEN Funding Maintained Schools and Academies,R6300,Schools - Budget Share,
13/09/2022,3761936,September 2022 dripfeed - Forces Pupil Premium,626.67,Oakham C Of E Primary School,RC500457,,Pupil Premium,R6300,Schools - Budget Share,
13/09/2022,3761937,September 2022 dripfeed - Disadvantaged Pupil Premium,6463.34,Oakham C Of E Primary School,RC500457,,Pupil Premium,R6300,Schools - Budget Share,
13/09/2022,3761938,September 2022 dripfeed - Post LAC Pupil Premium,301.25,Oakham C Of E Primary School,RC500457,,Pupil Premium,R6300,Schools - Budget Share,
13/09/2022,3761939,September 2022 dripfeed - Element 3 top up funding - no EHCP,3436.6,Oakham C Of E Primary School,RC500457,,Education Otherwise,R5022,TPP - Schools & Colleges,
29/09/2022,60069543,WELCOME BACK FUND - JULY 22,6872.82,Oakham Town Council,RC500468,,Heritage Projects,R5017,TPP - Other,
01/09/2022,60068746,INV-35671,25,Oakham Tyre Co (Rutland) Ltd,RC500470,121 1637 17,Transport Fleet,R3004,Vehicle Maintenance,
01/09/2022,60068747,INV-35690,25,Oakham Tyre Co (Rutland) Ltd,RC500470,121 1637 17,Transport Fleet,R3004,Vehicle Maintenance,
15/09/2022,3762020,Redacted Personal Data,635.97,Redacted Personal Data,RC301224,,3 & 4 Year Old Nursery Funding,R5020,TPP - Nursery Provision,
28/09/2022,3762328,Redacted Personal Data,578.16,Redacted Personal Data,RC301224,,3 & 4 Year Old Nursery Funding,R5020,TPP - Nursery Provision,
15/09/2022,3762103,2021/0672/FUL,1386,One off Invoice Payments - BACS,RC300802,,Development Control,R9303,Fees - Planning Application,
15/09/2022,3762104,2014/1054/FUL,172,One off Invoice Payments - BACS,RC300802,,Development Control,R9303,Fees - Planning Application,
15/09/2022,3762105,2021/0538/FUL,206,One off Invoice Payments - BACS,RC300802,,Development Control,R9303,Fees - Planning Application,
15/09/2022,3762106,2013/0980/FUL,385,One off Invoice Payments - BACS,RC300802,,Development Control,R9303,Fees - Planning Application,
,60068666,Redacted Personal Data,195.56,One off Invoice Payments - BACS,RC300802,,Homelessness,R5017,TPP - Other,
01/09/2022,60068684,22529,62,One off Invoice Payments - BACS,RC300802,,Community Care Finance,R4401,Fees and Charges,
,60068690,Oakham Library 16/8/22,100,One off Invoice Payments - BACS,RC300802,,Libraries,R4400,Professional Fees,
,60068693,001 - 2020/21,270,One off Invoice Payments - BACS,RC300802,,Waste Management,R2203,Property Leases,
,60068694,002 - 2021/22,270,One off Invoice Payments - BACS,RC300802,,Waste Management,R2203,Property Leases,
01/09/2022,60068715,Redacted Personal Data,920,One off Invoice Payments - BACS,RC300802,,Homelessness,R5017,TPP - Other,
01/09/2022,60068780,ENG220273,1300,One off Invoice Payments - BACS,RC300802,,Homelessness,R5017,TPP - Other,
01/09/2022,60068781,Redacted Personal Data,587.76,One off Invoice Payments - BACS,RC300802,,Homelessness,R5017,TPP - Other,
02/09/2022,60068791,Sale of Artwork - JB Aug 2022,200,One off Invoice Payments - BACS,RC300802,,Museum Trading Account,R4318,Goods For Resale,
02/09/2022,60068792,Sale of Artwork - KH Aug 2022,384,One off Invoice Payments - BACS,RC300802,,Museums Service,R4318,Goods For Resale,
06/09/2022,60068905,PSI0002340,95,One off Invoice Payments - BACS,RC300802,,Recreation and Leisure,R4401,Fees and Charges,
09/09/2022,60068922,Equipment Funding Sept 22,500,One off Invoice Payments - BACS,RC300802,,Leisure and Health,R4401,Fees and Charges,
12/09/2022,60068964,Redacted Personal Data,520.12,One off Invoice Payments - BACS,RC300802,,Homelessness,R5017,TPP - Other,
13/09/2022,60069171,22732,300,One off Invoice Payments - BACS,RC300802,,Museums Service,R4000,Furniture & Equipment,
21/09/2022,60069184,Sale of Artwork - Sept 22,200,One off Invoice Payments - BACS,RC300802,,Museums Service,R4318,Goods For Resale,
20/09/2022,60069188,HSF - AD,100,One off Invoice Payments - BACS,RC300802,,Household Support Fund,R5017,TPP - Other,
26/09/2022,60069442,COTSI23,129,One off Invoice Payments - BACS,RC300802,,Armed Forces Covenant Delivery,R5017,TPP - Other,
29/09/2022,60069546,OHL22218,163351,One off Invoice Payments - BACS,RC300802,,Covid Business Rates Support,R5017,TPP - Other,
27/09/2022,60069576,34313,23.46,One off Invoice Payments - BACS,RC300802,,Transport Fleet,R4000,Furniture & Equipment,
14/09/2022,60069114,2022/1041/DIS & 2022/1042/DIS,116,One off Invoice Payments - Cheques,RC300803,,Development Control,R9303,Fees - Planning Application,
21/09/2022,60069345,118.22.23,2928.75,Opinion Research Services Limited,RC302174,647 7177 02,Local Plan (Started 2021-22),R4400,Professional Fees,
05/09/2022,3761860,45966/62,2852,Orchard Court Leicester Ltd,RC300743,,Learning Disability,R5028,TPP - Residental Care,
21/09/2022,3762286,46126/68,2852,Orchard Court Leicester Ltd,RC300743,,Learning Disability,R5028,TPP - Residental Care,
05/09/2022,3761861,45982/63,1342.28,Orchard Manor View Ltd,RC302140,,Older People,R5028,TPP - Residental Care,
21/09/2022,3762287,46146/69,1342.28,Orchard Manor View Ltd,RC302140,,Older People,R5028,TPP - Residental Care,
05/09/2022,60068797,1108,6935,Osborne Thomas limited,RC301317,12145768,Directorate Management - Places,R1100,Agency Staff,
05/09/2022,3761842,45979/44,7144.7,Outcomes First Group,RC501992,,Learning Disability,R5028,TPP - Residental Care,
21/09/2022,3762265,46143/47,7144.7,Outcomes First Group,RC501992,,Learning Disability,R5028,TPP - Residental Care,
01/09/2022,60068567,2076,132,P & J Plumbing and Heating,RC500507,991 9126 83,Oakham Enterprise Park,R2003,R & M - Emergency Works,
01/09/2022,60068568,2079,209,P & J Plumbing and Heating,RC500507,991 9126 83,Oakham Enterprise Park,R2003,R & M - Emergency Works,
01/09/2022,60068569,2103,129,P & J Plumbing and Heating,RC500507,991 9126 83,Central Maintenance,R2003,R & M - Emergency Works,
01/09/2022,60068570,2115,257,P & J Plumbing and Heating,RC500507,991 9126 83,Central Maintenance,R2003,R & M - Emergency Works,
01/09/2022,60068571,2116,470,P & J Plumbing and Heating,RC500507,991 9126 83,Central Maintenance,R2003,R & M - Emergency Works,
01/09/2022,60068673,2078,163,P & J Plumbing and Heating,RC500507,991 9126 83,The King Centre,R2003,R & M - Emergency Works,
01/09/2022,60068674,2110,50,P & J Plumbing and Heating,RC500507,991 9126 83,Central Maintenance,R2003,R & M - Emergency Works,
01/09/2022,60068675,2117,125,P & J Plumbing and Heating,RC500507,991 9126 83,Oakham Enterprise Park,R2003,R & M - Emergency Works,
01/09/2022,60068565,19799,943.5,Park Avenue Recruitment Ltd,RC301994,255910205,Housing Options Team,R1100,Agency Staff,
06/09/2022,60068816,19981,1020,Park Avenue Recruitment Ltd,RC301994,255910205,Housing Options Team,R1100,Agency Staff,
13/09/2022,60069089,20151,1258,Park Avenue Recruitment Ltd,RC301994,255910205,Housing Options Team,R1100,Agency Staff,
20/09/2022,60069295,20324,1258,Park Avenue Recruitment Ltd,RC301994,255910205,Housing Options Team,R1100,Agency Staff,
27/09/2022,60069502,20500,1258,Park Avenue Recruitment Ltd,RC301994,255910205,Housing Options Team,R1100,Agency Staff,
01/09/2022,60068623,INV-17929,561,Park Hill Training,RC302127,896997908,SEN Funding EOTAS & Tuition,R4400,Professional Fees,
,60068618,RCC/CLA/22,405,Partners in Psychology,RC508979,,Virtual School Head Resp,R4401,Fees and Charges,
,60068622,RCC/CLA/21,1215,Partners in Psychology,RC508979,,Virtual School Head Resp,R4401,Fees and Charges,
,60068650,RCC/COMM/21,963.9,Partners in Psychology,RC508979,,SEN Operations,R4400,Professional Fees,
,60068651,RCC/HNF/EY/17,1215,Partners in Psychology,RC508979,,SEN Funding EOTAS & Tuition,R4400,Professional Fees,
,60068656,RCC/EIP/16,324,Partners in Psychology,RC508979,,SEN Recovery Plan Expenditure,R4400,Professional Fees,
01/09/2022,60068583,46890,728.53,Paul Mitchell Associates,RC301894,GB 535909717,Finance,R1100,Agency Staff,
05/09/2022,60068805,46897,433.18,Paul Mitchell Associates,RC301894,GB 535909717,Finance,R1100,Agency Staff,
12/09/2022,60069021,46904,728.53,Paul Mitchell Associates,RC301894,GB 535909717,Finance,R1100,Agency Staff,
20/09/2022,60069297,46911,728.53,Paul Mitchell Associates,RC301894,GB 535909717,Finance,R1100,Agency Staff,
26/09/2022,60069459,46919,443.03,Paul Mitchell Associates,RC301894,GB 535909717,Finance,R1100,Agency Staff,
16/09/2022,60069169,INV-5831,4200,Payonomy Limited T/A Asperato,RC300734,245621514,Green Waste Collections,R4401,Fees and Charges,
05/09/2022,3761862,45961/64,1678.9,Peaker Park Care Village,RC507500,,Older People,R5028,TPP - Residental Care,
21/09/2022,3762288,46121/70,1678.9,Peaker Park Care Village,RC507500,,Older People,R5028,TPP - Residental Care,
20/09/2022,60069337,INV-2170,22245,Peopletoo Ltd,RC302129,,Fair Cost of Care,R4400,Professional Fees,
25/09/2022,60069475,INV-106103,164.17,Person Centred Software Ltd,RC301607,162981976,Management of Community Support Services,R4535,Computing - Licences,
22/09/2022,60069368,Redacted Personal Data,138,Redacted Personal Data,RC302210,,Disabled Children,R6280,Direct Payments,
01/09/2022,60068431,OP/I941183,102.19,Phoenix Software Ltd,RC500565,755 3490 15,Development Control,R4531,Computing - Software,
01/09/2022,60068458,OP/I941207,76.08,Phoenix Software Ltd,RC500565,755 3490 15,Development Control,R4531,Computing - Software,
01/09/2022,60068552,69260581,24.68,Phs Group Plc,RC500568,542 9514 38,Libraries,R2704,Refuse Collection,
01/09/2022,60068553,69260582,8.78,Phs Group Plc,RC500568,542 9514 38,Libraries,R2704,Refuse Collection,
01/09/2022,60068554,69260583,8.78,Phs Group Plc,RC500568,542 9514 38,Libraries,R2704,Refuse Collection,
05/09/2022,3761840,45980/42,1258,Pilgrims Friend Society,RC301921,,Older People,R5028,TPP - Residental Care,
21/09/2022,3762263,46144/45,1258,Pilgrims Friend Society,RC301921,,Older People,R5028,TPP - Residental Care,
05/09/2022,3761837,45967/39,2064.18,PJ Care Ltd,RC507400,,Mental Health,R5028,TPP - Residental Care,
05/09/2022,3761838,45967/40,2014.18,PJ Care Ltd,RC507400,,Physical Disability,R5028,TPP - Residental Care,
05/09/2022,3761839,45967/41,4152.3,PJ Care Ltd,RC507400,,Older People,R5034,TPP - Nursing Care,
21/09/2022,3762260,46131/42,2064.18,PJ Care Ltd,RC507400,,Memory and Cognitive,R5028,TPP - Residental Care,
21/09/2022,3762261,46131/43,2014.18,PJ Care Ltd,RC507400,,Older People,R5028,TPP - Residental Care,
21/09/2022,3762262,46131/44,4152.3,PJ Care Ltd,RC507400,,Older People,R5034,TPP - Nursing Care,
01/09/2022,60068828,738,1953.2,Platform Up Ltd,RC301916,274231711,UASC 16-17,R6293,Asylum Seekers Allowance,
07/09/2022,60069096,739,1923.2,Platform Up Ltd,RC301916,274231711,UASC 16-17,R6293,Asylum Seekers Allowance,
01/09/2022,60069098,742,1651.2,Platform Up Ltd,RC301916,274231711,UASC 16-17,R6293,Asylum Seekers Allowance,
07/09/2022,60069099,743,1671.2,Platform Up Ltd,RC301916,274231711,UASC 16-17,R6293,Asylum Seekers Allowance,
14/09/2022,60069100,744,1671.2,Platform Up Ltd,RC301916,274231711,UASC 16-17,R6293,Asylum Seekers Allowance,
20/09/2022,60069101,745,1651.2,Platform Up Ltd,RC301916,274231711,UASC 16-17,R6293,Asylum Seekers Allowance,
14/09/2022,60069245,740,1923.2,Platform Up Ltd,RC301916,274231711,UASC 16-17,R6293,Asylum Seekers Allowance,
20/09/2022,60069246,741,1903.2,Platform Up Ltd,RC301916,274231711,UASC 16-17,R6293,Asylum Seekers Allowance,
01/09/2022,60068625,863167,103.18,Polycopy Limited,RC500592,115 9124 86,Community Learning,R4000,Furniture & Equipment,
01/09/2022,60068776,2022/0979/FUL,34,Portal Plan Quest Ltd,RC300843,207 4030 52,Development Control,R9303,Fees - Planning Application,
28/09/2022,60069526,PP-11538387,206,Portal Plan Quest Ltd,RC300843,207 4030 52,Development Control,R9303,Fees - Planning Application,
05/09/2022,3761863,45960/65,3043.4,Portland College,RC508221,117 7675 47,Learning Disability,R5028,TPP - Residental Care,
21/09/2022,3762289,46120/71,3043.4,Portland College,RC508221,117 7675 47,Learning Disability,R5028,TPP - Residental Care,
14/09/2022,60069177,1000/90061272,53.4,Post Office Ltd,RC302040,GB172670502,Council Tax Rebate Scheme,R4401,Fees and Charges,
22/09/2022,60069365,1000/90061446,24.5,Post Office Ltd,RC302040,GB172670502,Household Support Fund,R4401,Fees and Charges,
08/09/2022,60068957,Y0173,639.47,Potclays,RC506265,279 3840 16,Community Learning,R4000,Furniture & Equipment,
01/09/2022,60068815,1400130140,2355,Praxis Care,RC301819,,Disabled Children,R5028,TPP - Residental Care,
12/09/2022,60069039,1400130796,8325,Praxis Care,RC301819,,Disabled Children,R5028,TPP - Residental Care,
01/09/2022,60068615,1038143,3400,Precision Resourcing Group Limited,RC301972,214013569,SEN Operations,R1100,Agency Staff,
07/09/2022,60068872,1038575,1360,Precision Resourcing Group Limited,RC301972,214013569,SEN Operations,R1100,Agency Staff,
21/09/2022,60069356,1039698,1700,Precision Resourcing Group Limited,RC301972,214013569,SEN Operations,R1100,Agency Staff,
14/09/2022,60069361,1039279,1700,Precision Resourcing Group Limited,RC301972,214013569,SEN Operations,R1100,Agency Staff,
05/09/2022,3761866,45927/68,1116,Prime Life Ltd,RC502626,729 8397 74,Older People,R5028,TPP - Residental Care,
05/09/2022,3761867,45927/69,558,Prime Life Ltd,RC502626,729 8397 74,Older People,R5028,TPP - Residental Care,
21/09/2022,3762292,46110/74,478.29,Prime Life Ltd,RC502626,729 8397 74,ASC P&S Respite OP,R5018,TPP - Respite,
21/09/2022,3762293,46111/75,-1116,Prime Life Ltd,RC502626,729 8397 74,Older People,R5028,TPP - Residental Care,
21/09/2022,3762294,46111/76,-79.71,Prime Life Ltd,RC502626,729 8397 74,Older People,R5028,TPP - Residental Care,
,60068678,1015586,1700,Prime Life Ltd,RC502626,729 8397 74,Interim Beds (CCG),R5028,TPP - Residental Care,
,60068680,1017461,607.14,Prime Life Ltd,RC502626,729 8397 74,Interim Beds (CCG),R5028,TPP - Residental Care,
,60068681,1017462,1700,Prime Life Ltd,RC502626,729 8397 74,Interim Beds (CCG),R5028,TPP - Residental Care,
,60068682,1017514,41.14,Prime Life Ltd,RC502626,729 8397 74,Interim Beds (CCG),R5028,TPP - Residental Care,
,60068683,1017918,-1237.15,Prime Life Ltd,RC502626,729 8397 74,Interim Beds (CCG),R5028,TPP - Residental Care,
,60068858,1015596,1700,Prime Life Ltd,RC502626,729 8397 74,Interim Beds (CCG),R5028,TPP - Residental Care,
,60068859,1018047,-1092.86,Prime Life Ltd,RC502626,729 8397 74,Interim Beds (CCG),R5028,TPP - Residental Care,
,60068887,1018394,74749.29,Prime Life Ltd,RC502626,729 8397 74,Older People,R5028,TPP - Residental Care,
,60069113,1019392,1700,Prime Life Ltd,RC502626,729 8397 74,Interim Beds (CCG),R5028,TPP - Residental Care,
,60069189,1005871,398.57,Prime Life Ltd,RC502626,729 8397 74,Interim Beds (CCG),R5028,TPP - Residental Care,
,60069190,1006654,1046,Prime Life Ltd,RC502626,729 8397 74,Interim Beds (CCG),R5028,TPP - Residental Care,
,60069191,1015854,1578.57,Prime Life Ltd,RC502626,729 8397 74,Interim Beds (CCG),R5028,TPP - Residental Care,
,60069192,1015855,1700,Prime Life Ltd,RC502626,729 8397 74,Interim Beds (CCG),R5028,TPP - Residental Care,
05/09/2022,3761865,45913/67,2257.5,Prime Life Ltd (Rutland Care Village),RC502276,,Older People,R5034,TPP - Nursing Care,
01/09/2022,60068951,5530084,135.74,Prism Medical UK,RC508680,845 6079 03,"OT's, Aids & Equipment",R4401,Fees and Charges,
01/09/2022,60068952,5533289,37.83,Prism Medical UK,RC508680,845 6079 03,"OT's, Aids & Equipment",R4401,Fees and Charges,
28/09/2022,60069588,5540680,40,Prism Medical UK,RC508680,845 6079 03,"OT's, Aids & Equipment",R4401,Fees and Charges,
,60068473,13185,4769.05,Pure Homecare,RC300187,231 7071 38,Day Opportunities Services,R1100,Agency Staff,
18/09/2022,60069347,13281,4668.19,Pure Homecare,RC300187,231 7071 38,Day Opportunities Services,R1100,Agency Staff,
22/09/2022,60069391,CN-0465,-69,Pure Homecare,RC300187,231 7071 38,Day Opportunities Services,R1100,Agency Staff,
01/09/2022,3761550,Redacted Personal Data,206,Redacted Personal Data,RC508778,,Placements,R5017,TPP - Other,
01/09/2022,3761551,Redacted Personal Data,145,Redacted Personal Data,RC508778,,Placements,R5017,TPP - Other,
01/09/2022,3761566,Redacted Personal Data,218.81,Redacted Personal Data,RC508778,,Placements,R5017,TPP - Other,
01/09/2022,3761567,Redacted Personal Data,164.11,Redacted Personal Data,RC508778,,Placements,R5017,TPP - Other,
08/09/2022,3761739,Redacted Personal Data,206,Redacted Personal Data,RC508778,,Placements,R5017,TPP - Other,
08/09/2022,3761740,Redacted Personal Data,145,Redacted Personal Data,RC508778,,Placements,R5017,TPP - Other,
08/09/2022,3761755,Redacted Personal Data,218.81,Redacted Personal Data,RC508778,,Placements,R5017,TPP - Other,
08/09/2022,3761756,Redacted Personal Data,164.11,Redacted Personal Data,RC508778,,Placements,R5017,TPP - Other,
15/09/2022,3762039,Redacted Personal Data,206,Redacted Personal Data,RC508778,,Placements,R5017,TPP - Other,
15/09/2022,3762040,Redacted Personal Data,145,Redacted Personal Data,RC508778,,Placements,R5017,TPP - Other,
15/09/2022,3762055,Redacted Personal Data,218.81,Redacted Personal Data,RC508778,,Placements,R5017,TPP - Other,
15/09/2022,3762056,Redacted Personal Data,164.11,Redacted Personal Data,RC508778,,Placements,R5017,TPP - Other,
22/09/2022,3762159,Redacted Personal Data,206,Redacted Personal Data,RC508778,,Placements,R5017,TPP - Other,
22/09/2022,3762160,Redacted Personal Data,145,Redacted Personal Data,RC508778,,Placements,R5017,TPP - Other,
22/09/2022,3762175,Redacted Personal Data,218.81,Redacted Personal Data,RC508778,,Placements,R5017,TPP - Other,
22/09/2022,3762176,Redacted Personal Data,164.11,Redacted Personal Data,RC508778,,Placements,R5017,TPP - Other,
29/09/2022,3762369,Redacted Personal Data,206,Redacted Personal Data,RC508778,,Placements,R5017,TPP - Other,
29/09/2022,3762370,Redacted Personal Data,145,Redacted Personal Data,RC508778,,Placements,R5017,TPP - Other,
29/09/2022,3762386,Redacted Personal Data,218.81,Redacted Personal Data,RC508778,,Placements,R5017,TPP - Other,
29/09/2022,3762387,Redacted Personal Data,164.11,Redacted Personal Data,RC508778,,Placements,R5017,TPP - Other,
15/09/2022,3762124,Redacted Personal Data,316.57,Redacted Personal Data,RC302203,,SEN Transport,R3200,Hire of Vehicles & Plant,
,60068576,751,200,Rainbow Horses,RC302102,,SEN Funding EOTAS & Tuition,R4400,Professional Fees,
,60069253,735,2600,Rainbow Horses,RC302102,,SEN Funding EOTAS & Tuition,R4400,Professional Fees,
15/09/2022,3762013,3 and 4 Year Funding - September 2022 Claim and August Adjustment,2023.56,Rainbows - Exton,RC506365,,3 & 4 Year Old Nursery Funding,R5020,TPP - Nursery Provision,
16/09/2022,60069293,14107,1980,Reach Marketing Communications Ltd,RC506383,812869118,Planning Policy,R1700,Staff Advertising Costs,
23/09/2022,60069500,14135,550,Reach Marketing Communications Ltd,RC506383,812869118,Environmental Services,R1700,Staff Advertising Costs,
08/09/2022,3761797,Redacted Personal Data,600,Redacted Personal Data,RC302182,,Aiming High,R4400,Professional Fees,
01/09/2022,60068886,P17049,1804.8,Recycle Force Ltd,RC302063,,Waste Management,R5021,TPP - Waste Disposal,
04/09/2022,60068798,FB007724,245,Redwings Lodge (Rutland) Ltd,RC300089,168491177,Homelessness,R4900,Accommodation Costs,
01/09/2022,60068916,169628,120.33,Regent Office Care Ltd,RC500611,415 2528 73,The King Centre,R2004,R & M - Programmed,
01/09/2022,60068950,169576,39.75,Regent Office Care Ltd,RC500611,415 2528 73,Museums Service,R2003,R & M - Emergency Works,
01/09/2022,60068876,6160,1320,Resource Futures Ltd,RC301499,,Waste Management,R4400,Professional Fees,
01/09/2022,60068626,2376,172,Rhubarb Theatre,RC302101,856 9400 95,Children's Centres - Revenue,R4401,Fees and Charges,
01/09/2022,60068648,2152,5.6,Rippleglen Select Convenience - Uppingham,RC301846,,Libraries,R4310,Newspapers and Magazines,
24/09/2022,60069518,2210,5.9,Rippleglen Select Convenience - Uppingham,RC301846,,Libraries,R4310,Newspapers and Magazines,
,60069255,922003,1011.72,Robert Evans Catmose Limited T/A Taxi Bob,RC302204,,SEN Transport,R3207,Transport Contract,
05/09/2022,3761868,45974/70,1146,Roman Park Ltd,RC502283,,Learning Disability,R5028,TPP - Residental Care,
21/09/2022,3762295,46138/77,1146,Roman Park Ltd,RC502283,,Learning Disability,R5028,TPP - Residental Care,
05/09/2022,3761869,45905/71,500,Roman Park Ltd (Day Care),RC300484,,ASC S&R Daycare LD,R5030,TPP - Daycare,
21/09/2022,3762296,46105/78,500,Roman Park Ltd (Day Care),RC300484,,ASC S&R Daycare LD,R5030,TPP - Daycare,
,60068579,INV-1752,250,Root-and-Branch Out CIC,RC300442,,Children's Centres - Revenue,R4400,Professional Fees,
08/09/2022,60068927,80922,65,Redacted Personal Data,RC509437,,Children's Centres - Revenue,R4401,Fees and Charges,
01/09/2022,60068904,9065655213,3.99,Royal Mail Group Ltd,RC500772,243 1700 02,Elections - Administration,R4503,Postage,
19/09/2022,60069394,1109609580,517.78,Royal Mail Group Ltd,RC500772,243 1700 02,Reprographics & Post,R4503,Postage,
12/09/2022,60069396,9065728527,87.5,Royal Mail Group Ltd,RC500772,243 1700 02,Reprographics & Post,R4503,Postage,
26/09/2022,60069439,9065809078,0.48,Royal Mail Group Ltd,RC500772,243 1700 02,Children's Centres - Revenue,R4503,Postage,
05/09/2022,3761833,45958/35,1380,Royal Masonic Benevolent Institution No 4 A/C,RC508527,,Older People,R5034,TPP - Nursing Care,
21/09/2022,3762256,46130/38,1380,Royal Masonic Benevolent Institution No 4 A/C,RC508527,,Older People,R5034,TPP - Nursing Care,
05/09/2022,3761799,45983/1,17602.3,Rushcliffe Care Group,RC506846,,Older People,R5028,TPP - Residental Care,
13/09/2022,3761943,September 2022 dripfeed - Primary High Needs Block Allocation,1805.93,Rutland & District Schools' Federation (catmose),RC502547,,SEN Funding Maintained Schools and Academies,R6300,Schools - Budget Share,
13/09/2022,3761944,September 2022 dripfeed - In County Adjustment,4675,Rutland & District Schools' Federation (catmose),RC502547,,SEN Funding Maintained Schools and Academies,R5022,TPP - Schools & Colleges,
13/09/2022,3761956,September 2022 - College High Needs Statemented Pupils,5217.79,Rutland & District Schools' Federation (catmose),RC502547,,SEN Funding Maintained Schools and Academies,R6300,Schools - Budget Share,
13/09/2022,3761957,September 2022 - College High Needs DSP,18320.3,Rutland & District Schools' Federation (catmose),RC502547,,SEN Funding Maintained Schools and Academies,R6300,Schools - Budget Share,
01/09/2022,60068762,27 - AU,197.99,Rutland Genie Tutoring Ltd,RC301501,,SEN Funding EOTAS & Tuition,R4400,Professional Fees,
26/09/2022,60069483,28 - AU,1152,Rutland Genie Tutoring Ltd,RC301501,,SEN Funding EOTAS & Tuition,R4400,Professional Fees,
21/09/2022,60069346,237,570,Rutland Gymnastics,RC500798,,Aiming High,R4401,Fees and Charges,
05/09/2022,3761823,45907/25,2138.64,Rutland House Community Trust Ltd,RC502287,,ASC S&R Homecare LD,R5029,TPP - Home Care,
05/09/2022,3761824,45907/26,1783.5,Rutland House Community Trust Ltd,RC502287,,ASC S&R Homecare LD,R5029,TPP - Home Care,
05/09/2022,3761825,45907/27,754,Rutland House Community Trust Ltd,RC502287,,ASC S&R Homecare PD,R5029,TPP - Home Care,
05/09/2022,3761892,45908/94,1058.58,Rutland House Community Trust Ltd,RC502287,,ASC S&R Homecare LD,R5029,TPP - Home Care,
05/09/2022,3761893,45908/95,2514.58,Rutland House Community Trust Ltd,RC502287,,Learning Disability,R5028,TPP - Residental Care,
05/09/2022,3761894,45908/96,1058.58,Rutland House Community Trust Ltd,RC502287,,Learning Disability,R5028,TPP - Residental Care,
05/09/2022,3761895,45916/97,1456,Rutland House Community Trust Ltd,RC502287,,Learning Disability,R5028,TPP - Residental Care,
05/09/2022,3761896,45916/98,2042.64,Rutland House Community Trust Ltd,RC502287,,Learning Disability,R5028,TPP - Residental Care,
05/09/2022,3761897,45916/99,2321.6,Rutland House Community Trust Ltd,RC502287,,Learning Disability,R5028,TPP - Residental Care,
05/09/2022,3761898,45916/100,1456,Rutland House Community Trust Ltd,RC502287,,Learning Disability,R5028,TPP - Residental Care,
05/09/2022,3761899,45906/101,696,Rutland House Community Trust Ltd,RC502287,,ASC S&R Homecare LD,R5029,TPP - Home Care,
21/09/2022,3762245,46150/27,2138.64,Rutland House Community Trust Ltd,RC502287,,ASC S&R Homecare LD,R5029,TPP - Home Care,
21/09/2022,3762246,46150/28,1783.5,Rutland House Community Trust Ltd,RC502287,,ASC S&R Homecare LD,R5029,TPP - Home Care,
21/09/2022,3762247,46150/29,754,Rutland House Community Trust Ltd,RC502287,,ASC S&R Homecare PD,R5029,TPP - Home Care,
21/09/2022,3762318,46151/100,1058.58,Rutland House Community Trust Ltd,RC502287,,ASC S&R Homecare LD,R5029,TPP - Home Care,
21/09/2022,3762319,46151/101,2514.58,Rutland House Community Trust Ltd,RC502287,,Learning Disability,R5028,TPP - Residental Care,
21/09/2022,3762320,46151/102,1058.58,Rutland House Community Trust Ltd,RC502287,,Learning Disability,R5028,TPP - Residental Care,
21/09/2022,3762321,46114/103,1456,Rutland House Community Trust Ltd,RC502287,,Learning Disability,R5028,TPP - Residental Care,
21/09/2022,3762322,46114/104,2042.64,Rutland House Community Trust Ltd,RC502287,,Learning Disability,R5028,TPP - Residental Care,
21/09/2022,3762323,46114/105,2321.6,Rutland House Community Trust Ltd,RC502287,,Learning Disability,R5028,TPP - Residental Care,
21/09/2022,3762324,46114/106,1456,Rutland House Community Trust Ltd,RC502287,,Learning Disability,R5028,TPP - Residental Care,
21/09/2022,3762325,46149/107,696,Rutland House Community Trust Ltd,RC502287,,ASC S&R Homecare LD,R5029,TPP - Home Care,
07/09/2022,60068877,A-23716,375,Rutland House Councelling & Psychotherapy,RC302057,288207281,Family Support Services,R4400,Professional Fees,
,60068978,115,6008.2,Rutland Youth Dance Academy,RC302180,,Section 31 Holiday Activities and Food,R4401,Fees and Charges,
13/09/2022,3761941,Ryhall September 2022 - High Needs Block Allocation,90.09,Ryhall CE Academy,RC508475,,SEN Funding Maintained Schools and Academies,R6300,Schools - Budget Share,
13/09/2022,3761942,September 2022 dripfeed - In County Adjustment,730.41,Ryhall CE Academy,RC508475,,SEN Funding Maintained Schools and Academies,R5022,TPP - Schools & Colleges,
15/09/2022,3761994,2 Year Funding -September 2022 Claim and August 2022 Adjustment,367.62,Ryhall Childcare Centre,RC500824,,3 & 4 Year Old Nursery Funding,R5020,TPP - Nursery Provision,
15/09/2022,3762014,3 and 4 Year Funding - September 2022 Claim and August Adjustment,2486.09,Ryhall Childcare Centre,RC500824,,3 & 4 Year Old Nursery Funding,R5020,TPP - Nursery Provision,
01/09/2022,60068971,S4F-2290,321.28,S4 Facilities Management Limited,RC508550,205 863 902,Day Opportunities Services,R2700,Contract Cleaning,
01/09/2022,60068972,S4F-2291,904.95,S4 Facilities Management Limited,RC508550,205 863 902,Day Opportunities Services,R2700,Contract Cleaning,
01/09/2022,60068973,S4F-2289,8390.73,S4 Facilities Management Limited,RC508550,205 863 902,Oakham Enterprise Park,R2700,Contract Cleaning,
01/09/2022,60068766,856918,200,Safeguard Glazing Supplies Ltd,RC500834,638 6614 12,Central Maintenance,R2003,R & M - Emergency Works,
15/09/2022,3762123,Redacted Personal Data,304.69,Redacted Personal Data,RC302191,,SEN Transport,R3200,Hire of Vehicles & Plant,
01/09/2022,3761542,Redacted Personal Data,64,Redacted Personal Data,RC508568,,Care Leavers,R6292,Section 24 Payments,
08/09/2022,3761737,Redacted Personal Data,64,Redacted Personal Data,RC508568,,Care Leavers,R6292,Section 24 Payments,
15/09/2022,3762038,Redacted Personal Data,64,Redacted Personal Data,RC508568,,Care Leavers,R6292,Section 24 Payments,
22/09/2022,3762154,Redacted Personal Data,64,Redacted Personal Data,RC508568,,Care Leavers,R6292,Section 24 Payments,
29/09/2022,3762357,Redacted Personal Data,64,Redacted Personal Data,RC508568,,Care Leavers,R6292,Section 24 Payments,
22/09/2022,3762214,Redacted Personal Data,400,Redacted Personal Data,RC508904,,Aiming High,R4400,Professional Fees,
01/09/2022,3761600,Redacted Personal Data,289.7,Redacted Personal Data,RC301689,,Placements,R5017,TPP - Other,
08/09/2022,3761789,Redacted Personal Data,289.7,Redacted Personal Data,RC301689,,Placements,R5017,TPP - Other,
15/09/2022,3762089,Redacted Personal Data,289.7,Redacted Personal Data,RC301689,,Placements,R5017,TPP - Other,
22/09/2022,3762209,Redacted Personal Data,289.7,Redacted Personal Data,RC301689,,Placements,R5017,TPP - Other,
29/09/2022,3762421,Redacted Personal Data,289.7,Redacted Personal Data,RC301689,,Placements,R5017,TPP - Other,
15/09/2022,3762100,Redacted Personal Data,150,Redacted Personal Data,RC301976,,Placements,R4400,Professional Fees,
15/09/2022,3761993,2 Year Funding -September 2022 Claim and August 2022 Adjustment,367.62,Sarah Moore T/A Little Legs Nursery,RC300792,,2 Year Old Nursery Funding,R5020,TPP - Nursery Provision,
15/09/2022,3762011,3 and 4 Year Funding - September 2022 Claim and August Adjustment,10973.52,Sarah Moore T/A Little Legs Nursery,RC300792,,3 & 4 Year Old Nursery Funding,R5020,TPP - Nursery Provision,
30/09/2022,60069393,762980,500,Savills (UK) Ltd,RC500912,217 9157 51,Pit Lane,R2202,Property Rental,
15/09/2022,3761995,2 Year Funding -September 2022 Claim and August 2022 Adjustment,1191.09,Scallywags Day Nursery,RC500853,,2 Year Old Nursery Funding,R5020,TPP - Nursery Provision,
15/09/2022,3762015,3 and 4 Year Funding - September 2022 Claim and August Adjustment,8479.8,Scallywags Day Nursery,RC500853,,3 & 4 Year Old Nursery Funding,R5020,TPP - Nursery Provision,
07/09/2022,60069410,FF Sept 2022,150,Scallywags Day Nursery,RC500853,,Targeted Intervention Service,R4400,Professional Fees,
01/09/2022,60068767,S-SIN1322807,93.5,Securitas Security Services (UK) Ltd,RC300778,GB 603 1758 64,Libraries,R2003,R & M - Emergency Works,
08/09/2022,60069340,S-SIN1325952,87.41,Securitas Security Services (UK) Ltd,RC300778,GB 603 1758 64,Libraries,R2004,R & M - Programmed,
01/09/2022,60068676,INV433184,637.6,Sellick Partnership Ltd,RC300496,864 2880 95,Legal Services,R1100,Agency Staff,
01/09/2022,60068689,INV432228,799.8,Sellick Partnership Ltd,RC300496,864 2880 95,Legal Services,R1100,Agency Staff,
12/09/2022,60069024,INV434735,353.4,Sellick Partnership Ltd,RC300496,864 2880 95,Legal Services,R1100,Agency Staff,
13/09/2022,60069062,INV435908,255.04,Sellick Partnership Ltd,RC300496,864 2880 95,Legal Services,R1100,Agency Staff,
13/09/2022,60069063,INV435909,637.6,Sellick Partnership Ltd,RC300496,864 2880 95,Legal Services,R1100,Agency Staff,
20/09/2022,60069339,INV436287,155,Sellick Partnership Ltd,RC300496,864 2880 95,Legal Services,R1100,Agency Staff,
22/09/2022,60069385,INV437234,701.36,Sellick Partnership Ltd,RC300496,864 2880 95,Legal Services,R1100,Agency Staff,
01/09/2022,60067571,769,1306.63,SFC (Midlands) Limited,RC301693,3502 027 08,Central Maintenance,R2003,R & M - Emergency Works,
01/09/2022,60068616,806,9024.23,SFC (Midlands) Limited,RC301693,3502 027 08,Day Opportunities Services,R2004,R & M - Programmed,
01/09/2022,3761530,Redacted Personal Data,203.56,Redacted Personal Data,RC301349,,Care Leavers,R4900,Accommodation Costs,
01/09/2022,3761531,Redacted Personal Data,203.56,Redacted Personal Data,RC301349,,Care Leavers,R4900,Accommodation Costs,
08/09/2022,3761732,Redacted Personal Data,203.56,Redacted Personal Data,RC301349,,Care Leavers,R4900,Accommodation Costs,
08/09/2022,3761733,Redacted Personal Data,203.56,Redacted Personal Data,RC301349,,Care Leavers,R4900,Accommodation Costs,
15/09/2022,3762033,Redacted Personal Data,203.56,Redacted Personal Data,RC301349,,Care Leavers,R4900,Accommodation Costs,
15/09/2022,3762034,Redacted Personal Data,203.56,Redacted Personal Data,RC301349,,Care Leavers,R4900,Accommodation Costs,
22/09/2022,3762140,Redacted Personal Data,203.56,Redacted Personal Data,RC301349,,Care Leavers,R4900,Accommodation Costs,
22/09/2022,3762141,Redacted Personal Data,203.56,Redacted Personal Data,RC301349,,Care Leavers,R4900,Accommodation Costs,
29/09/2022,3762331,Redacted Personal Data,22.59,Redacted Personal Data,RC301349,,Care Leavers,R3300,Public Transport,
29/09/2022,3762332,Redacted Personal Data,22.59,Redacted Personal Data,RC301349,,Care Leavers,R3300,Public Transport,
29/09/2022,3762333,Redacted Personal Data,22.59,Redacted Personal Data,RC301349,,Care Leavers,R3300,Public Transport,
29/09/2022,3762334,Redacted Personal Data,22.59,Redacted Personal Data,RC301349,,Care Leavers,R3300,Public Transport,
29/09/2022,3762335,Redacted Personal Data,21.9,Redacted Personal Data,RC301349,,Care Leavers,R3300,Public Transport,
29/09/2022,3762336,Redacted Personal Data,21.9,Redacted Personal Data,RC301349,,Care Leavers,R3300,Public Transport,
29/09/2022,3762337,Redacted Personal Data,21.9,Redacted Personal Data,RC301349,,Care Leavers,R3300,Public Transport,
29/09/2022,3762346,Redacted Personal Data,203.56,Redacted Personal Data,RC301349,,Care Leavers,R4900,Accommodation Costs,
29/09/2022,3762347,Redacted Personal Data,203.56,Redacted Personal Data,RC301349,,Care Leavers,R4900,Accommodation Costs,
01/09/2022,60068923,140,1739.75,Sheerwood Skip Services,RC500887,638 2780 15,Waste Management,R5021,TPP - Waste Disposal,
01/09/2022,3761602,Redacted Personal Data,74.25,Redacted Personal Data,RC300036,,Family Support Services,R4400,Professional Fees,
08/09/2022,3761793,Redacted Personal Data,74.25,Redacted Personal Data,RC300036,,Family Support Services,R4400,Professional Fees,
15/09/2022,3762091,Redacted Personal Data,74.25,Redacted Personal Data,RC300036,,Family Support Services,R4400,Professional Fees,
22/09/2022,3762211,Redacted Personal Data,74.25,Redacted Personal Data,RC300036,,Family Support Services,R4400,Professional Fees,
29/09/2022,3762426,Redacted Personal Data,74.25,Redacted Personal Data,RC300036,,Family Support Services,R4400,Professional Fees,
08/09/2022,60069173,1028710140,230.41,Siemens Plc,RC500898,479 9852 60,Admin Buildings,R4401,Fees and Charges,
01/09/2022,60068763,INV-02646,114,Signs and Graphx,RC300668,873239895,The King Centre,R2004,R & M - Programmed,
01/09/2022,3761557,Redacted Personal Data,165,Redacted Personal Data,RC300929,,Placements,R5017,TPP - Other,
01/09/2022,3761558,Redacted Personal Data,165,Redacted Personal Data,RC300929,,Placements,R5017,TPP - Other,
01/09/2022,3761573,Redacted Personal Data,218.81,Redacted Personal Data,RC300929,,Placements,R5017,TPP - Other,
01/09/2022,3761574,Redacted Personal Data,164.11,Redacted Personal Data,RC300929,,Placements,R5017,TPP - Other,
08/09/2022,3761746,Redacted Personal Data,165,Redacted Personal Data,RC300929,,Placements,R5017,TPP - Other,
08/09/2022,3761747,Redacted Personal Data,165,Redacted Personal Data,RC300929,,Placements,R5017,TPP - Other,
08/09/2022,3761762,Redacted Personal Data,218.81,Redacted Personal Data,RC300929,,Placements,R5017,TPP - Other,
08/09/2022,3761763,Redacted Personal Data,164.11,Redacted Personal Data,RC300929,,Placements,R5017,TPP - Other,
08/09/2022,3761791,Redacted Personal Data,200,Redacted Personal Data,RC300929,,Placements,R5017,TPP - Other,
08/09/2022,3761792,Redacted Personal Data,200,Redacted Personal Data,RC300929,,Placements,R5017,TPP - Other,
15/09/2022,3762046,Redacted Personal Data,165,Redacted Personal Data,RC300929,,Placements,R5017,TPP - Other,
15/09/2022,3762047,Redacted Personal Data,165,Redacted Personal Data,RC300929,,Placements,R5017,TPP - Other,
15/09/2022,3762062,Redacted Personal Data,218.81,Redacted Personal Data,RC300929,,Placements,R5017,TPP - Other,
15/09/2022,3762063,Redacted Personal Data,164.11,Redacted Personal Data,RC300929,,Placements,R5017,TPP - Other,
22/09/2022,3762166,Redacted Personal Data,165,Redacted Personal Data,RC300929,,Placements,R5017,TPP - Other,
22/09/2022,3762167,Redacted Personal Data,165,Redacted Personal Data,RC300929,,Placements,R5017,TPP - Other,
22/09/2022,3762182,Redacted Personal Data,218.81,Redacted Personal Data,RC300929,,Placements,R5017,TPP - Other,
22/09/2022,3762183,Redacted Personal Data,164.11,Redacted Personal Data,RC300929,,Placements,R5017,TPP - Other,
29/09/2022,3762376,Redacted Personal Data,165,Redacted Personal Data,RC300929,,Placements,R5017,TPP - Other,
29/09/2022,3762377,Redacted Personal Data,165,Redacted Personal Data,RC300929,,Placements,R5017,TPP - Other,
29/09/2022,3762378,Redacted Personal Data,165,Redacted Personal Data,RC300929,,Placements,R5017,TPP - Other,
29/09/2022,3762393,Redacted Personal Data,218.81,Redacted Personal Data,RC300929,,Placements,R5017,TPP - Other,
29/09/2022,3762394,Redacted Personal Data,164.11,Redacted Personal Data,RC300929,,Placements,R5017,TPP - Other,
29/09/2022,3762395,Redacted Personal Data,270,Redacted Personal Data,RC300929,,Placements,R5017,TPP - Other,
01/09/2022,60068578,SI-2613,359.5,Simply Moving Removals Limited,RC302089,,Capital Programme People - Adults,C1150,Capital Grant Expenditure,
22/09/2022,3762151,Redacted Personal Data,270,Redacted Personal Data,RC301118,,Care Leavers,R6292,Section 24 Payments,
01/09/2022,60068750,1432,1050,Skeen Computing Services Limited,RC509489,428 5652 32,Digital Rutland,R4400,Professional Fees,
16/09/2022,60069236,RCC00033,3439.47,Snowdrop Home Care Rutland Ltd,RC301472,,ASC S&R Homecare OP,R5029,TPP - Home Care,
01/09/2022,3761543,Redacted Personal Data,27,Redacted Personal Data,RC301475,,Care Leavers,R6292,Section 24 Payments,
01/09/2022,3761544,Redacted Personal Data,19,Redacted Personal Data,RC301475,,Care Leavers,R6292,Section 24 Payments,
01/09/2022,3761545,Redacted Personal Data,50,Redacted Personal Data,RC301475,,Care Leavers,R6292,Section 24 Payments,
08/09/2022,3761738,Redacted Personal Data,10,Redacted Personal Data,RC301475,,Care Leavers,R6292,Section 24 Payments,
22/09/2022,3762150,Redacted Personal Data,10,Redacted Personal Data,RC301475,,Care Leavers,R6292,Section 24 Payments,
29/09/2022,3762358,Redacted Personal Data,27,Redacted Personal Data,RC301475,,Care Leavers,R6292,Section 24 Payments,
29/09/2022,3762359,Redacted Personal Data,19,Redacted Personal Data,RC301475,,Care Leavers,R6292,Section 24 Payments,
29/09/2022,3762360,Redacted Personal Data,50,Redacted Personal Data,RC301475,,Care Leavers,R6292,Section 24 Payments,
01/09/2022,60068659,INV144608,75,Solo Protect Limited,RC301206,836270427,Childrens Social Care Staffing,R4401,Fees and Charges,
01/09/2022,60066201,I0132116,11401.26,South Kesteven District Council,RC500928,118 1054 06,Development Control,R4400,Professional Fees,
09/09/2022,60069129,62/22,4430,SP Marks (Services) Ltd,RC508766,694 9617 70,Capital Programme People - Adults,C1150,Capital Grant Expenditure,
05/09/2022,3761841,45968/43,1494.4,St Bernard's Hallaton Manor Ltd,RC502292,,Older People,R5034,TPP - Nursing Care,
21/09/2022,3762264,46132/46,1494.4,St Bernard's Hallaton Manor Ltd,RC502292,,Older People,R5034,TPP - Nursing Care,
13/09/2022,3761907,September 2022 dripfeed - High Needs Block Allocation,1018.72,St Thomas Aquinas Catholic Multi Academy Trust T/A English Martyrs Catholic Voluntary Academy,RC507715,,SEN Funding Maintained Schools and Academies,R6300,Schools - Budget Share,
13/09/2022,3761908,September 2022 dripfeed - In County Adjustment,607,St Thomas Aquinas Catholic Multi Academy Trust T/A English Martyrs Catholic Voluntary Academy,RC507715,,SEN Funding Maintained Schools and Academies,R5022,TPP - Schools & Colleges,
13/09/2022,3761909,September 2022 dripfeed - Element 3 top up funding - no EHCP,10819,St Thomas Aquinas Catholic Multi Academy Trust T/A English Martyrs Catholic Voluntary Academy,RC507715,,Education Otherwise,R5022,TPP - Schools & Colleges,
01/09/2022,60068881,2201175,986.5,StaffAid Limited,RC300674,246 0481 17,Management of Community Support Services,R1100,Agency Staff,
07/09/2022,60069029,2201234,1462.85,StaffAid Limited,RC300674,246 0481 17,Management of Community Support Services,R1100,Agency Staff,
07/09/2022,60069032,2201252,2857.31,StaffAid Limited,RC300674,246 0481 17,Management of Community Support Services,R1100,Agency Staff,
14/09/2022,60069266,2201260,2397.75,StaffAid Limited,RC300674,246 0481 17,Management of Community Support Services,R1100,Agency Staff,
14/09/2022,60069267,2201282,2256.13,StaffAid Limited,RC300674,246 0481 17,Management of Community Support Services,R1100,Agency Staff,
21/09/2022,60069381,2201312,2512.25,StaffAid Limited,RC300674,246 0481 17,Management of Community Support Services,R1100,Agency Staff,
21/09/2022,60069427,2201294,1627.5,StaffAid Limited,RC300674,246 0481 17,Management of Community Support Services,R1100,Agency Staff,
07/09/2022,60068954,1085463273,3041,Stannah Lift Services Limited,RC300848,236 7783 28,Capital Programme People - Adults,C1150,Capital Grant Expenditure,
01/09/2022,60069018,42174,211.76,Star Editions Limited,RC300590,922 7942 09,Museums Service,R4318,Goods For Resale,
21/09/2022,60069458,42647,179.36,Star Editions Limited,RC300590,922 7942 09,Museums Service,R4318,Goods For Resale,
15/09/2022,3762122,Redacted Personal Data,304.69,Redacted Personal Data,RC302131,,SEN Transport,R3200,Hire of Vehicles & Plant,
15/09/2022,3762016,3 and 4 Year Funding - September 2022 Claim and August Adjustment,3044.97,Stepping Stones Pre-School (Upp),RC500975,,3 & 4 Year Old Nursery Funding,R5020,TPP - Nursery Provision,
15/09/2022,3762126,Redacted Personal Data,295.65,Redacted Personal Data,RC302205,,3 & 4 Year Old Nursery Funding,R5020,TPP - Nursery Provision,
,60068541,Redacted Personal Data,1776,Super Scientists,RC301671,,SEN Funding EOTAS & Tuition,R4400,Professional Fees,
,60068542,Redacted Personal Data,896,Super Scientists,RC301671,,Education Otherwise,R4400,Professional Fees,
,60068543,Redacted Personal Data,832,Super Scientists,RC301671,,Education Otherwise,R4400,Professional Fees,
,60068544,Redacted Personal Data,1216,Super Scientists,RC301671,,SEN Funding EOTAS & Tuition,R4400,Professional Fees,
,60068545,Redacted Personal Data,1504,Super Scientists,RC301671,,Education Otherwise,R4400,Professional Fees,
,60068546,Redacted Personal Data,74,Super Scientists,RC301671,,SEN Funding EOTAS & Tuition,R4400,Professional Fees,
,60069051,167 OBM,64,Super Scientists,RC301671,,SEN Funding EOTAS & Tuition,R4400,Professional Fees,
,60069056,Redacted Personal Data,192,Super Scientists,RC301671,,SEN Funding EOTAS & Tuition,R4400,Professional Fees,
,60069057,Redacted Personal Data,64,Super Scientists,RC301671,,Education Otherwise,R4400,Professional Fees,
,60069103,Redacted Personal Data,64,Super Scientists,RC301671,,Education Otherwise,R4400,Professional Fees,
,60069104,Redacted Personal Data,64,Super Scientists,RC301671,,Education Otherwise,R4400,Professional Fees,
,60069447,Redacted Personal Data,128,Super Scientists,RC301671,,SEN Funding EOTAS & Tuition,R4400,Professional Fees,
,60069490,Redacted Personal Data,640,Super Scientists,RC301671,,SEN Funding EOTAS & Tuition,R4400,Professional Fees,
,60069497,Redacted Personal Data,2880,Super Scientists,RC301671,,SEN Funding EOTAS & Tuition,R4400,Professional Fees,
,60069544,Redacted Personal Data,1024,Super Scientists,RC301671,,Education Otherwise,R4400,Professional Fees,
,60069545,Redacted Personal Data,960,Super Scientists,RC301671,,Education Otherwise,R4400,Professional Fees,
05/09/2022,3761872,45975/74,1252,Tallington Care Home,RC507295,,Older People,R5028,TPP - Residental Care,
21/09/2022,3762299,46139/81,1252,Tallington Care Home,RC507295,,Older People,R5028,TPP - Residental Care,
01/09/2022,60068591,J078 / 130110 / 19,290.54,Tarmac Trading Ltd,RC507911,143 7761 02,Forestry Maintenance,R5009,TPP - Highway`s,
01/09/2022,60068592,J078 / 130110 / 21,16729.27,Tarmac Trading Ltd,RC507911,143 7761 02,Capital Programme Places - Highways,C1015,Engineering Works,
01/09/2022,60068595,J078 / 130111 / 2,5448.09,Tarmac Trading Ltd,RC507911,143 7761 02,Capital Programme Places - Highways,C1015,Engineering Works,
01/09/2022,60069123,J078 / 130110 / 57,50.14,Tarmac Trading Ltd,RC507911,143 7761 02,Highways Third Party Claims,R5009,TPP - Highway`s,
01/09/2022,60069124,J078 / 130110 / 58,9740.5,Tarmac Trading Ltd,RC507911,143 7761 02,Highways Third Party Claims,R5009,TPP - Highway`s,
01/09/2022,60069125,J078 / 130110 / 59,287.72,Tarmac Trading Ltd,RC507911,143 7761 02,Highways Third Party Claims,R5009,TPP - Highway`s,
01/09/2022,60069126,J078 / 130110 / 60,136.08,Tarmac Trading Ltd,RC507911,143 7761 02,Highways Third Party Claims,R5009,TPP - Highway`s,
01/09/2022,60069244,J078 / 130108 / 1,1288.8,Tarmac Trading Ltd,RC507911,143 7761 02,Winter Maintenance,R5009,TPP - Highway`s,
01/09/2022,60069247,J078 / 130109 / 4,13075.66,Tarmac Trading Ltd,RC507911,143 7761 02,Capital Programme Places - Highways,C1015,Engineering Works,
01/09/2022,60069250,J078 / 130109 / 5,49595.97,Tarmac Trading Ltd,RC507911,143 7761 02,Capital Programme Places - Highways,C1015,Engineering Works,
01/09/2022,60069251,J078 / 130110 / 48,1152.77,Tarmac Trading Ltd,RC507911,143 7761 02,Capital Programme Places - Highways,C1015,Engineering Works,
01/09/2022,60069254,J078 / 130110 / 49,108.47,Tarmac Trading Ltd,RC507911,143 7761 02,Parking,R5009,TPP - Highway`s,
01/09/2022,60069256,J078 / 130110 / 50,933.85,Tarmac Trading Ltd,RC507911,143 7761 02,Drainage and Jetting,R5009,TPP - Highway`s,
01/09/2022,60069257,J078 / 130110 / 51,6775.15,Tarmac Trading Ltd,RC507911,143 7761 02,Safety,R5009,TPP - Highway`s,
01/09/2022,60069258,J078 / 130110 / 52,7918.53,Tarmac Trading Ltd,RC507911,143 7761 02,Minor Repairs,R5009,TPP - Highway`s,
01/09/2022,60069259,J078 / 130110 / 54,19465.5,Tarmac Trading Ltd,RC507911,143 7761 02,Capital Programme Places - Highways,C1015,Engineering Works,
01/09/2022,60069260,J078 / 130110 / 55,4642.79,Tarmac Trading Ltd,RC507911,143 7761 02,Street Lighting,R5016,TPP - Private Contractors,
01/09/2022,60069261,J078 / 130110 / 61,532.07,Tarmac Trading Ltd,RC507911,143 7761 02,Bridges and Culverts,R5009,TPP - Highway`s,
01/09/2022,60069262,J078 / 130111 / 5,182.7,Tarmac Trading Ltd,RC507911,143 7761 02,Capital Programme Places - Highways,C1015,Engineering Works,
01/09/2022,60069386,J078 / 130110 / 53,75.21,Tarmac Trading Ltd,RC507911,143 7761 02,Forestry Maintenance,R5009,TPP - Highway`s,
05/09/2022,3761873,45964/75,1600,The Amwell Care Home,RC300501,,Older People,R5028,TPP - Residental Care,
05/09/2022,3761874,45964/76,1276,The Amwell Care Home,RC300501,,Older People,R5028,TPP - Residental Care,
05/09/2022,3761875,45964/77,1600,The Amwell Care Home,RC300501,,Older People,R5028,TPP - Residental Care,
21/09/2022,3762300,46124/82,-1485.71,The Amwell Care Home,RC300501,,Older People,R5028,TPP - Residental Care,
21/09/2022,3762301,46124/83,1276,The Amwell Care Home,RC300501,,Older People,R5028,TPP - Residental Care,
06/09/2022,60068832,1053A,560,The Ark Association,RC501042,,Early Senco (0-3yrs support),R5020,TPP - Nursery Provision,
15/09/2022,3761985,2 Year Funding -September 2022 Claim and August 2022 Adjustment,980.32,The Ark Association (1),RC501043,,2 Year Old Nursery Funding,R5020,TPP - Nursery Provision,
15/09/2022,3761999,3 and 4 Year Funding - September 2022 Claim and August Adjustment,4143.52,The Ark Association (1),RC501043,,3 & 4 Year Old Nursery Funding,R5020,TPP - Nursery Provision,
15/09/2022,3761986,2 Year Funding -September 2022 Claim and August 2022 Adjustment,845.53,The Ark Association (Early Yrs) 2,RC501044,,2 Year Old Nursery Funding,R5020,TPP - Nursery Provision,
15/09/2022,3762000,3 and 4 Year Funding - September 2022 Claim and August Adjustment,5883.74,The Ark Association (Early Yrs) 2,RC501044,,3 & 4 Year Old Nursery Funding,R5020,TPP - Nursery Provision,
01/09/2022,60068818,SI-3732,3529.89,The Baca Charity,RC507453,,Unaccompanied Asylum Seekers - Over 18,R6293,Asylum Seekers Allowance,
01/09/2022,60068819,SI-3731,3473.45,The Baca Charity,RC507453,,UASC 16-17,R6293,Asylum Seekers Allowance,
01/09/2022,60068820,SI-3730,3487.38,The Baca Charity,RC507453,,UASC 16-17,R6293,Asylum Seekers Allowance,
,60068868,SI-3733,140.99,The Baca Charity,RC507453,,Unaccompanied Asylum Seekers - Over 18,R6292,Section 24 Payments,
08/09/2022,60068946,20004095,35,The British Museum Great Court Limited Treasure Account,RC302178,GB710521585,Museums Service,R4000,Furniture & Equipment,
26/09/2022,60069508,20004104,37.5,The British Museum Great Court Limited Treasure Account,RC302178,GB710521585,Museums Service,R4000,Furniture & Equipment,
01/09/2022,60068825,1544,14250,The Caldecott Foundation,RC509064,,Placements,R5017,TPP - Other,
13/09/2022,60068997,211267,5.76,The Card Processing Advisory Service Ltd,RC301048,236 6645 87,Corporate Financial Expenses,R4401,Fees and Charges,
,60068585,04409-04410,651.28,The Caring Company Rutland,RC508741,,ASC S&R Homecare OP,R5029,TPP - Home Care,
04/09/2022,60068842,04425-04426,748.52,The Caring Company Rutland,RC508741,,ASC S&R Homecare OP,R5029,TPP - Home Care,
11/09/2022,60069243,04429-04430,706.28,The Caring Company Rutland,RC508741,,ASC S&R Homecare OP,R5029,TPP - Home Care,
18/09/2022,60069307,04433-04434,725.07,The Caring Company Rutland,RC508741,,ASC S&R Homecare OP,R5029,TPP - Home Care,
25/09/2022,60069499,04444 - 04445,713.03,The Caring Company Rutland,RC508741,,ASC S&R Homecare OP,R5029,TPP - Home Care,
01/09/2022,60068794,1020235,1830.84,The Copyright Licensing Agency Ltd,RC501069,386463025,Communication,R4701,Subscriptions,
01/09/2022,60068640,OAK180922,250,The Ferrers Household,RC302162,,Oakham Castle,R4400,Professional Fees,
06/09/2022,60068864,Oakham Castle & Museum Doncations Aug 2022,17,The Friends Of Rutland County Museum & Oakham Castle,RC301908,,Museums Service,R9140,Donations,
05/09/2022,3761876,45977/78,5870.16,The Hollies,RC502822,,Learning Disability,R5028,TPP - Residental Care,
21/09/2022,3762302,46141/84,5870.16,The Hollies,RC502822,,Learning Disability,R5028,TPP - Residental Care,
05/09/2022,3761877,45978/79,1450,The Linkage Community Trust,RC502300,,Learning Disability,R5028,TPP - Residental Care,
21/09/2022,3762303,46142/85,1450,The Linkage Community Trust,RC502300,,Learning Disability,R5028,TPP - Residental Care,
05/09/2022,3761878,45914/80,2218.76,The Lodge Trust,RC501110,,Learning Disability,R5028,TPP - Residental Care,
05/09/2022,3761879,45914/81,2571.62,The Lodge Trust,RC501110,,Learning Disability,R5028,TPP - Residental Care,
21/09/2022,3762304,46112/86,2218.76,The Lodge Trust,RC501110,,Learning Disability,R5028,TPP - Residental Care,
21/09/2022,3762305,46112/87,2571.62,The Lodge Trust,RC501110,,Learning Disability,R5028,TPP - Residental Care,
01/09/2022,60069196,10935715,1813,The Oyster Partnership Ltd,RC302167,832961025,Highways Management,R1100,Agency Staff,
01/09/2022,60069197,10935716,1813,The Oyster Partnership Ltd,RC302167,832961025,Highways Management,R1100,Agency Staff,
01/09/2022,60069198,10935717,1813,The Oyster Partnership Ltd,RC302167,832961025,Highways Management,R1100,Agency Staff,
01/09/2022,60069199,10935718,1813,The Oyster Partnership Ltd,RC302167,832961025,Highways Management,R1100,Agency Staff,
01/09/2022,60069200,10936315,1813,The Oyster Partnership Ltd,RC302167,832961025,Highways Management,R1100,Agency Staff,
01/09/2022,60069201,10936316,1813,The Oyster Partnership Ltd,RC302167,832961025,Highways Management,R1100,Agency Staff,
01/09/2022,60069202,10936912,1813,The Oyster Partnership Ltd,RC302167,832961025,Highways Management,R1100,Agency Staff,
01/09/2022,60069203,10937525,1813,The Oyster Partnership Ltd,RC302167,832961025,Highways Management,R1100,Agency Staff,
07/09/2022,60069204,10938152,1323,The Oyster Partnership Ltd,RC302167,832961025,Highways Management,R1100,Agency Staff,
14/09/2022,60069205,10938841,1813,The Oyster Partnership Ltd,RC302167,832961025,Highways Management,R1100,Agency Staff,
13/09/2022,3761958,September 2022 dripfeed - Placement Funding,6250,The Parks Nursery School,RC501123,,SEN Funding Maintained Schools and Academies,R6300,Schools - Budget Share,
13/09/2022,3761959,September 2022 dripfeed - High Needs Additional Support,14643.25,The Parks Nursery School,RC501123,,SEN Funding Maintained Schools and Academies,R6300,Schools - Budget Share,
13/09/2022,3761960,September 2022 dripfeed - Disadvantaged Pupil Premium,230.83,The Parks Nursery School,RC501123,,Pupil Premium,R6300,Schools - Budget Share,
01/09/2022,60069305,INV-1316,4950,The Place,RC301153,,Family Support Services,R4400,Professional Fees,
13/09/2022,3761906,Cottesmore September 2022 dripfeed - High Needs Block Allocation,1981.1,The Rutland Learning Trust,RC300895,,SEN Funding Maintained Schools and Academies,R6300,Schools - Budget Share,
13/09/2022,3761910,Empingham September 2022 - High Needs Block Allocation,769.27,The Rutland Learning Trust,RC300895,,SEN Funding Maintained Schools and Academies,R6300,Schools - Budget Share,
13/09/2022,3761911,1 September 2022 dripfeed - In County Adjustment,3436.6,The Rutland Learning Trust,RC300895,,SEN Funding Maintained Schools and Academies,R5022,TPP - Schools & Colleges,
13/09/2022,3761914,Exton September 2022 - High Needs Block Allocation,769.27,The Rutland Learning Trust,RC300895,,SEN Funding Maintained Schools and Academies,R6300,Schools - Budget Share,
13/09/2022,3761915,2 September 2022 dripfeed - In County Adjustment,497.67,The Rutland Learning Trust,RC300895,,SEN Funding Maintained Schools and Academies,R5022,TPP - Schools & Colleges,
13/09/2022,3761916,Gt Cast September 2022 dripfeed - High Needs Block Allocation,1937.41,The Rutland Learning Trust,RC300895,,SEN Funding Maintained Schools and Academies,R6300,Schools - Budget Share,
13/09/2022,3761917,3 September 2022 dripfeed - In County Adjustment,166.53,The Rutland Learning Trust,RC300895,,SEN Funding Maintained Schools and Academies,R5022,TPP - Schools & Colleges,
13/09/2022,3761919,Ketton September 2022 - High Needs Block allocation,1254.73,The Rutland Learning Trust,RC300895,,SEN Funding Maintained Schools and Academies,R6300,Schools - Budget Share,
13/09/2022,3761920,Langham September 2022 - High Needs Block Allocation,558.76,The Rutland Learning Trust,RC300895,,SEN Funding Maintained Schools and Academies,R6300,Schools - Budget Share,
13/09/2022,3761945,St Nicholas September 2022 - High Needs Block Allocation,1441.21,The Rutland Learning Trust,RC300895,,SEN Funding Maintained Schools and Academies,R6300,Schools - Budget Share,
13/09/2022,3761946,1 September 2022 dripfeed - Element 3 top up funding - no EHCP,6873.2,The Rutland Learning Trust,RC300895,,Education Otherwise,R5022,TPP - Schools & Colleges,
13/09/2022,3761947,Upp Primary September 2022 - High Needs Block Allocation,1262.12,The Rutland Learning Trust,RC300895,,SEN Funding Maintained Schools and Academies,R6300,Schools - Budget Share,
13/09/2022,3761948,2 September 2022 dripfeed - Element 3 top up funding - no EHCP,8254.45,The Rutland Learning Trust,RC300895,,SEN Funding Maintained Schools and Academies,R5022,TPP - Schools & Colleges,
13/09/2022,3761949,Whissendine September 2022 - High Needs Block Allocation,1489.28,The Rutland Learning Trust,RC300895,,SEN Funding Maintained Schools and Academies,R6300,Schools - Budget Share,
13/09/2022,3761950,3 September 2022 dripfeed - Element 3 top up funding - no EHCP,1004.6,The Rutland Learning Trust,RC300895,,Education Otherwise,R5022,TPP - Schools & Colleges,
01/09/2022,3761587,Redacted Personal Data,120,Redacted Personal Data,RC507391,,Placements,R5017,TPP - Other,
08/09/2022,3761776,Redacted Personal Data,120,Redacted Personal Data,RC507391,,Placements,R5017,TPP - Other,
15/09/2022,3762076,Redacted Personal Data,120,Redacted Personal Data,RC507391,,Placements,R5017,TPP - Other,
22/09/2022,3762196,Redacted Personal Data,120,Redacted Personal Data,RC507391,,Placements,R5017,TPP - Other,
29/09/2022,3762408,Redacted Personal Data,120,Redacted Personal Data,RC507391,,Placements,R5017,TPP - Other,
01/09/2022,60068539,CCTV JUNE 2022,223.78,Thomas Wilson Architects,RC504066,114 6983 59,CCTV,R2100,Electricity,
,60068613,6063341,4183.27,Thornbury Nursing Services,RC302070,676 285 493,Disabled Children,R4401,Fees and Charges,
07/09/2022,60068869,6074952,4750.12,Thornbury Nursing Services,RC302070,676 285 493,Disabled Children,R4401,Fees and Charges,
07/09/2022,60068891,6074954,-304.08,Thornbury Nursing Services,RC302070,676 285 493,Disabled Children,R4401,Fees and Charges,
14/09/2022,60069176,6086517,3631.16,Thornbury Nursing Services,RC302070,676 285 493,Disabled Children,R4401,Fees and Charges,
21/09/2022,60069357,6096867,3672.52,Thornbury Nursing Services,RC302070,676 285 493,Disabled Children,R4401,Fees and Charges,
23/09/2022,60069387,6102640,-325.72,Thornbury Nursing Services,RC302070,676 285 493,Disabled Children,R4401,Fees and Charges,
27/09/2022,60069486,6107986,-325.72,Thornbury Nursing Services,RC302070,676 285 493,Disabled Children,R4401,Fees and Charges,
28/09/2022,60069562,6109119,5356.09,Thornbury Nursing Services,RC302070,676 285 493,Disabled Children,R4401,Fees and Charges,
01/09/2022,3761564,Redacted Personal Data,145,Redacted Personal Data,RC302008,,Placements,R5017,TPP - Other,
01/09/2022,3761565,Redacted Personal Data,165,Redacted Personal Data,RC302008,,Placements,R5017,TPP - Other,
01/09/2022,3761579,Redacted Personal Data,124.74,Redacted Personal Data,RC302008,,Placements,R5017,TPP - Other,
01/09/2022,3761580,Redacted Personal Data,93.56,Redacted Personal Data,RC302008,,Placements,R5017,TPP - Other,
08/09/2022,3761753,Redacted Personal Data,145,Redacted Personal Data,RC302008,,Placements,R5017,TPP - Other,
08/09/2022,3761754,Redacted Personal Data,165,Redacted Personal Data,RC302008,,Placements,R5017,TPP - Other,
08/09/2022,3761768,Redacted Personal Data,124.74,Redacted Personal Data,RC302008,,Placements,R5017,TPP - Other,
08/09/2022,3761769,Redacted Personal Data,93.56,Redacted Personal Data,RC302008,,Placements,R5017,TPP - Other,
15/09/2022,3762053,Redacted Personal Data,145,Redacted Personal Data,RC302008,,Placements,R5017,TPP - Other,
15/09/2022,3762054,Redacted Personal Data,165,Redacted Personal Data,RC302008,,Placements,R5017,TPP - Other,
15/09/2022,3762068,Redacted Personal Data,124.74,Redacted Personal Data,RC302008,,Placements,R5017,TPP - Other,
15/09/2022,3762069,Redacted Personal Data,93.56,Redacted Personal Data,RC302008,,Placements,R5017,TPP - Other,
